date,department,beneficiary,amount,summary of purpose,category,Transaction number,SAP vendor number
17.11.2023,Collection Fund,GREATER LONDON AUTHORITY,"9,289,051.00",NNDR ACCOUNT - GLA SHARE,EXTERNAL AGENCIES AND BODIES,5902609141,1000015827
19.11.2023,Housing,HILL PARTNERSHIP LTD,"8,263,522.25",CAPITAL PS (HRA),CONSTRUCTION MAIN CONTRACT -CERTIFICATED,2103784778,3000002185
23.11.2023,Collection Fund,GREATER LONDON AUTHORITY,"4,752,146.41",GLA PRECEPT,LEVIES,5902610000,1000015827
04.11.2023,Housing,BY DEVELOPMENT LTD,"3,091,639.75",CAPITAL PS (HRA),CONSTRUCTION MAIN CONTRACT -CERTIFICATED,2103778353,3000002255
19.11.2023,Suspense,HM REVENUE & CUSTOMS,"2,966,515.24",SUSPENSE ACCOUNT (COMPANY CODE 1000),INLAND REVENUE,2103775261,1016231
19.11.2023,Suspense,HM REVENUE & CUSTOMS,"2,471,726.87",SUSPENSE ACCOUNT (COMPANY CODE 1000),INLAND REVENUE,2103775260,1016231
24.11.2023,Environment Neighbourhoods and Growth,VEOLIA ES SOUTHWARK LTD,"2,448,280.83",WASTE PFI,PFI/PPP PAYMENTS,5902610136,1000056979
24.11.2023,Environment Neighbourhoods and Growth,VEOLIA ES SOUTHWARK LTD,"2,295,659.16",WASTE PFI,PFI/PPP PAYMENTS,5902610143,1000056979
17.11.2023,Corporate,TRANSPORT TRADING LTD,"1,997,317.00",FREEDOM PASS,CONCESSIONARY FARES,5902609142,1000019757
02.11.2023,Housing,EQUANS REGENERATION (APOLLO) LTD,"1,774,835.38",CAPITAL PS (HRA),CONSTRUCTION MAIN CONTRACT -CERTIFICATED,2103778357,4000449
02.11.2023,Finance,POST OFFICE LTD,"1,450,000.00",COST OF LIVING FUND,GRANTS,5902606379,1000087679
13.11.2023,Children and Adults,TEACHERS' PENSIONS,"1,411,197.06",TEACHERS PENSION MONTHLY RETURN,PAYROLL CREDITORS - TEACHERS PENSIONS & AVCS,5902608239,1000015184
10.11.2023,Housing,A & E ELKINS LTD,"1,406,285.46",CAPITAL PS (HRA),CONSTRUCTION MAIN CONTRACT -CERTIFICATED,2103780992,4012501
16.11.2023,Housing,EQUANS REGENERATION LTD,"1,378,370.00",CAPITAL PS (HRA),CONSTRUCTION MAIN CONTRACT -CERTIFICATED,2103781235,3000002035
20.11.2023,Environment Neighbourhoods and Growth,BL CW HOLDINGS LTD,"1,353,145.39",CAPITAL PS (REGEN),CONSTRUCTION FEES  - EXTERNAL,5902609430,1000086680
30.11.2023,Housing,A & E ELKINS LTD,"1,180,158.89",CAPITAL PS (HRA),CONSTRUCTION MAIN CONTRACT -CERTIFICATED,2103792063,4012501
16.11.2023,Housing,HILL PARTNERSHIP LTD,"1,117,579.17",CAPITAL PS (HRA),CONSTRUCTION MAIN CONTRACT -CERTIFICATED,2103781003,3000002185
10.11.2023,Housing,A & E ELKINS LTD,"1,034,287.10",CAPITAL PS (HRA),CONSTRUCTION MAIN CONTRACT -CERTIFICATED,2103780993,4012501
22.11.2023,Housing,A & E ELKINS LTD,"1,011,992.90",CAPITAL PS (HRA),CONSTRUCTION,2103788105,4012501
10.11.2023,Governance and Assurance,MATRIX SCM LIMITED,"948,005.94",WEEKLY PAYMENTS,AGENCY STAFF,5902607863,1000089740
30.11.2023,Governance and Assurance,MATRIX SCM LIMITED,"907,160.64",WEEKLY PAYMENTS,AGENCY STAFF,5902610958,1000089740
24.11.2023,Governance and Assurance,MATRIX SCM LIMITED,"904,710.34",WEEKLY PAYMENTS,AGENCY STAFF,5902610158,1000089740
17.11.2023,Governance and Assurance,MATRIX SCM LIMITED,"885,725.57",WEEKLY PAYMENTS,AGENCY STAFF,5902609139,1000089740
28.11.2023,Collection Fund,GREATER LONDON AUTHORITY,"823,053.00",GLA CROSSRAIL BUSINESS RATE SUPPLEMENT,LEVIES,5902610523,1000015827
03.11.2023,Governance and Assurance,MATRIX SCM LIMITED,"789,798.28",WEEKLY PAYMENTS,AGENCY STAFF,5902606528,1000089740
24.11.2023,Environment Neighbourhoods and Growth,BOUYGUES (UK) LTD,"766,591.51",CAPITAL PS (REGEN),CONSTRUCTION MAIN CONTRACT -CERTIFICATED,2103787769,3000002179
21.11.2023,Corporate,ARTHUR J GALLAGHER INSURANCE BROKER,"724,262.56",LIABILITY RELATED INSURANCE,PROPERTY INSURANCE COSTS,5902609600,1000045282
14.11.2023,Housing,SMITH & BYFORD LTD,"686,219.20",SMITH AND BYFORD,I-WORLD CONTRACTORS HOLDING ACCOUNT,2103783152,3000000520
17.11.2023,Collection Fund,MINISTRY OF HOUSING COMMUNITIES & LOCAL GOVERNMENT,"619,187.00",NNDR CLG SHARE,EXTERNAL AGENCIES AND BODIES,5902609145,1000081809
10.11.2023,Children and Adults,THE ST THOMAS THE APOSTLE COLLEGE,"601,029.00",THE ST THOMAS THE APOSTLE COLLEGE,SCHOOLS CAPITATION,5902607779,5001000074
13.11.2023,Housing,OCO LIMITED,"599,590.50",PAYMENTS CONTROL ACCOUNT - OCO,I-WORLD CONTRACTORS HOLDING ACCOUNT,5902608243,1006066
07.11.2023,Housing,BUILDTRUST LTD,"599,158.49",BUILD TRUST,I-WORLD CONTRACTORS HOLDING ACCOUNT,2103780412,3000002010
23.11.2023,Governance and Assurance,ATALIAN SERVEST LTD,"574,713.34",FM SERVICES BY INTERSERVE,INTEGRATED FACILITIES MANAGEMENT CONTRACT,5902610021,1000088775
10.11.2023,Housing,ARJ CONSTRUCTION LTD,"572,544.28",CAPITAL PS (HRA),CONSTRUCTION MAIN CONTRACT,2103779219,3000002232
01.11.2023,Housing,ARJ CONSTRUCTION LTD,"572,544.28",CAPITAL PS (HRA),CONSTRUCTION MAIN CONTRACT,5902606413,3000002232
10.11.2023,Children and Adults,ST SAVIOURS & ST OLAVES SCHOOL,"500,000.00",ST SAVIOUR & OLAVE'S CE,SCHOOLS CAPITATION,5902607800,5001000084
14.11.2023,Environment Neighbourhoods and Growth,APCOA PARKING (UK) LTD,"471,536.76",PARKING OVERHEADS,OTHER CONTRACTORS,5902608449,1718645
30.11.2023,Housing,NEWINGTON BUTTS MANAGEMENT LTD,"456,937.29",PRIVATE SERVICE CHARGES,SERVICE CHARGES,5902610981,1000081298
13.11.2023,Housing,GUIDELINE LIFT SERVICES LTD,"438,924.50",GUIDELINE,I-WORLD CONTRACTORS HOLDING ACCOUNT,5902608052,1000064176
19.11.2023,Housing,STACK LONDON LTD,"421,557.08",CAPITAL PS (HRA),CONSTRUCTION MAIN CONTRACT -CERTIFICATED,2103784311,3000002216
02.11.2023,Environment Neighbourhoods and Growth,APCOA PARKING (UK) LTD,"414,818.26",PARKING OVERHEADS,OTHER CONTRACTORS,5902606302,1718645
13.11.2023,Housing,SMITH & BYFORD LTD,"382,450.38",CAPITAL PS (HRA),CONSTRUCTION,2103781596,3000000520
26.11.2023,Housing,SPOKEMEAD MAINTENANCE LTD,"374,905.21",PAYMENTS CONTROL ACCOUNT - SPOKEMEAD,I-WORLD CONTRACTORS HOLDING ACCOUNT,5902609483,1000059211
12.11.2023,Environment Neighbourhoods and Growth,GUILDMORE LTD,"345,584.23",CAPITAL PS (REGEN),CONSTRUCTION MAIN CONTRACT -CERTIFICATED,2103780437,3000002150
13.11.2023,Housing,GUILDMORE LTD,"325,802.89",CAPITAL PS (HRA),CONSTRUCTION MAIN CONTRACT -CERTIFICATED,2103781230,3000002150
30.11.2023,Housing,A & E ELKINS LTD,"319,737.42",CAPITAL PS (HRA),CONSTRUCTION,2103788577,4012501
03.11.2023,Housing,NIBLOCK (BUILDERS) LTD,"308,349.35",CAPITAL PS (HRA),CONSTRUCTION,2103779341,3000000235
29.11.2023,Housing,ZFA ACCOMMODATION LTD,"304,692.50",NIGHTLY TA (NSC),EXTERNAL AGENCIES AND BODIES,5902610695,1000082620
04.11.2023,Housing,A & E ELKINS LTD,"286,908.44",CAPITAL PS (HRA),CONSTRUCTION,2103776757,4012501
07.11.2023,Children and Adults,COBOURG PRIMARY SCHOOL,"280,496.00",COBOURG PRIMARY SCHOOL,SCHOOLS CAPITATION,2103780198,5001000021
22.11.2023,Finance,LONDON BRIDGE BUSINESS IMPROVEMENT,"273,644.29",TEAM LONDON BRIDGE,EXTERNAL AGENCIES AND BODIES,5902609699,1000050879
30.11.2023,Housing,NATIONWIDE ACCOMMODATION,"270,357.14",NIGHTLY TA (NSC),EXTERNAL AGENCIES AND BODIES,5902611030,1000076112
10.11.2023,Children and Adults,PHOENIX PRIMARY SCHOOL,"261,582.00",PHOENIX PRIMARY SCHOOL,SCHOOLS CAPITATION,5902607671,5001000032
30.11.2023,Corporate,4 FUTURES PHASE 1 LIMITED,"250,642.05",ONGOING SCHOOLS PFI COSTS,PFI/PPP PAYMENTS,5902610900,1000061400
30.11.2023,Corporate,4 FUTURES PHASE 2 LTD,"235,804.20",ONGOING SCHOOLS PFI COSTS,PFI/PPP PAYMENTS,5902610902,1000068567
30.11.2023,Corporate,4 FUTURES PHASE 2 LTD,"235,804.20",ONGOING SCHOOLS PFI COSTS,PFI/PPP PAYMENTS,5902610902,1000068567
10.11.2023,Children and Adults,BESSEMER GRANGE PRIMARY SCHOOL,"235,656.00",BESSEMER GRANGE PRIMARY SCHOOL,SCHOOLS CAPITATION,5902607613,5001000009
22.11.2023,Children and Adults,AGE UK  LEWISHAM & SOUTHWARK,"229,701.51",OLDER PEOPLES HUBS,EXTERNAL AGENCIES AND BODIES,5902609908,1000066751
30.11.2023,Housing,EQUANS REGENERATION LTD,"229,409.65",CAPITAL PS (HRA),CONSTRUCTION MAIN CONTRACT -CERTIFICATED,2103792005,3000002035
10.11.2023,Children and Adults,GOODRICH PRIMARY SCHOOL,"228,097.00",GOODRICH PRIMARY SCHOOL,SCHOOLS CAPITATION,5902607658,5001000028
17.11.2023,Corporate,LONDON COUNCILS,"226,570.00",FREEDOM PASS,CONCESSIONARY FARES,5902609140,11237079
13.11.2023,Housing,GLENMAN CORPORATION LTD,"224,874.15",CAPITAL PS (HRA),CONSTRUCTION MAIN CONTRACT -CERTIFICATED,2103781233,3000002230
10.11.2023,Children and Adults,JOHN RUSKIN PRIMARY SCHOOL,"221,989.00",JOHN RUSKIN PRIMARY SCHOOL,SCHOOLS CAPITATION,5902607692,5001000040
16.11.2023,Finance,BETTER BANKSIDE,"221,179.27",BETTER BANKSIDE,EXTERNAL AGENCIES AND BODIES,5902609010,1000036227
13.11.2023,Housing,TKC HOUSING LIMITED,"213,764.53",PSL PLACEMENTS,EXTERNAL AGENCIES AND BODIES,5902608112,1000088199
10.11.2023,Children and Adults,CRAWFORD PRIMARY SCHOOL,"209,469.00",CRAWFORD PRIMARY SCHOOL,SCHOOLS CAPITATION,5902607652,5001000024
16.11.2023,Housing,NATIONWIDE ACCOMMODATION,"206,620.70",NIGHTLY TA (NSC),EXTERNAL AGENCIES AND BODIES,5902608837,1000076112
10.11.2023,Children and Adults,IVYDALE PRIMARY SCHOOL,"206,315.00",IVYDALE PRIMARY SCHOOL,SCHOOLS CAPITATION,5902607688,5001000038
10.11.2023,Children and Adults,MICHAEL FARADAY PRIMARY SCHOOL,"206,283.00",MICHAEL FARADAY PRIMARY SCHOOL,SCHOOLS CAPITATION,5902607709,5001000048
10.11.2023,Children and Adults,ST JAMES CE PRIMARY SCHOOL,"206,053.00",ST JAMES' CE PRIMARY SCHOOL,SCHOOLS CAPITATION,5902607768,5001000070
10.11.2023,Children and Adults,ALBION PRIMARY SCHOOL,"204,446.00",ALBION PRIMARY SCHOOL,SCHOOLS CAPITATION,5902607599,5001000000
10.11.2023,Children and Adults,DULWICH WOOD PRIMARY SCHOOL,"204,089.00",DULWICH WOOD PRIMARY SCHOOL,SCHOOLS CAPITATION,5902607701,5001000042
23.11.2023,DSO,PROPERTY FACILITIES GROUP PLC,"201,717.96",SR COMMUNAL - DELIVERY TEAM,OTHER CONTRACTORS,2103788575,3000001420
21.11.2023,Housing,BCS (ELECTRICAL & BUILDING SERVICES LTD),"201,374.69",BCS,I-WORLD CONTRACTORS HOLDING ACCOUNT,5902609486,1000062321
07.11.2023,Housing,GUILDMORE LTD,"200,310.36",CAPITAL PS (HRA),CONSTRUCTION MAIN CONTRACT -CERTIFICATED,2103780411,3000002150
10.11.2023,Children and Adults,SOUTHWARK PARK PRIMARY SCHOOL,"199,293.00",SOUTHWARK PARK PRIMARY SCHOOL,SCHOOLS CAPITATION,5902607750,5001000062
20.11.2023,Housing,A & E ELKINS LTD,"198,702.95",CAPITAL PS (HRA),CONSTRUCTION,2103784789,4012501
10.11.2023,Children and Adults,HEBER PRIMARY SCHOOL,"197,113.00",HEBER PRIMARY SCHOOL,SCHOOLS CAPITATION,5902607679,5001000035
03.11.2023,Housing,BUILDING ASSOCIATES LTD,"194,011.46",CAPITAL PS (HRA),CONSTRUCTION MAIN CONTRACT,2103776405,3000002218
10.11.2023,Children and Adults,ST ANTHONYS RC SCHOOL,"193,935.00",ST ANTHONY'S CATHOLIC PRIMARY SCHOOL,SCHOOLS CAPITATION,5902607754,5001000064
15.11.2023,Housing,SPOKEMEAD MAINTENANCE LTD,"193,693.16",PAYMENTS CONTROL ACCOUNT - SPOKEMEAD,I-WORLD CONTRACTORS HOLDING ACCOUNT,5902608615,1000059211
12.11.2023,Environment Neighbourhoods and Growth,GUILDMORE LTD,"191,005.86",CAPITAL PS (REGEN),CONSTRUCTION MAIN CONTRACT -CERTIFICATED,2103780437,3000002150
10.11.2023,Children and Adults,ALFRED SALTER PRIMARY SCHOOL,"187,229.00",ALFRED SALTER PRIMARY SCHOOL,SCHOOLS CAPITATION,5902607603,5001000005
10.11.2023,Children and Adults,BRUNSWICK PARK PRIMARY SCHOOL,"185,605.00",BRUNSWICK PARK PRIMARY SCHOOL,SCHOOLS CAPITATION,5902607621,5001000013
10.11.2023,Children and Adults,OASIS AQUILA HOUSING,"184,920.25",SEMI-IND CONTRACTS,EXTERNAL AGENCIES AND BODIES,5902606517,1000002184
27.11.2023,Children and Adults,STANDAGE & CO LTD,"184,732.60",CAPITAL PS (SOC SERV),CONSTRUCTION MAIN CONTRACT -CERTIFICATED,2103789122,4002817
23.11.2023,Housing,HIGGINS PARTNERSHIPS,"184,403.52",CAPITAL PS (HRA),CONSTRUCTION,2103788828,4000859
22.11.2023,Housing,GUIDELINE LIFT SERVICES LTD,"183,878.34",GUIDELINE,I-WORLD CONTRACTORS HOLDING ACCOUNT,5902609833,1000064176
14.11.2023,Housing,WILLOW ESTATE AGENTS (LONDON) LTD,"183,000.91",NIGHTLY TA (NSC),EXTERNAL AGENCIES AND BODIES,5902608558,1000060607
10.11.2023,Children and Adults,CAMELOT PRIMARY SCHOOL,"179,542.00",CAMELOT PRIMARY SCHOOL,SCHOOLS CAPITATION,5902607627,5001000014
16.11.2023,Children and Adults,FAITHFUL & GOULD,"179,328.91",CAPITAL PS (EDUCATION),CONSTRUCTION FEES  - EXTERNAL,5902608915,1000061390
10.11.2023,Children and Adults,OLIVER GOLDSMITH PRIMARY SCHOOL,"177,788.00",OLIVER GOLDSMITH PRIMARY SCHOOL,SCHOOLS CAPITATION,5902607716,5001000051
18.11.2023,Housing,SMITH & BYFORD LTD,"176,879.52",CAPITAL PS (HRA),CONSTRUCTION,2103784460,3000000520
10.11.2023,Children and Adults,HIGHSHORE SCHOOL,"175,500.00",HIGHSHORE,HIGH NEEDS - TOP UP FUNDING,5902607706,5001000046
10.11.2023,Children and Adults,ST JOHNS & ST CLEMENTS CE SCHOOL,"175,491.00",ST JOHN'S & ST CLEMENT'S CE PRIMARY SCHO,SCHOOLS CAPITATION,5902607775,5001000073
22.11.2023,Finance,ARTHUR J GALLAGHER INSURANCE BROKER,"173,120.23","COURAGE YARD, SHAD THAMES",PROPERTY INSURANCE COSTS,5902609784,1000087751
10.11.2023,Children and Adults,KEYWORTH PRIMARY SCHOOL,"170,721.00",KEYWORTH PRIMARY SCHOOL,SCHOOLS CAPITATION,5902607698,5001000041
10.11.2023,Children and Adults,CHERRY GARDEN SCHOOL,"169,333.00",CHERRY GARDEN PRIMARY SCHOOL,HIGH NEEDS - TOP UP FUNDING,5902607644,5001000020
30.11.2023,Housing,THEORI HOUSING MANAGEMENT SERVICES,"169,095.29",PSL PLACEMENTS,EXTERNAL AGENCIES AND BODIES,5902610772,1000079264
10.11.2023,Children and Adults,GRANGE PRIMARY SCHOOL,"168,700.00",GRANGE PRIMARY SCHOOL,SCHOOLS CAPITATION,5902607661,5001000029
10.11.2023,Children and Adults,ENGLISH MARTYRS RC PRIMARY SCHOOL,"168,613.00",ENGLISH MARTYRS RC PRIMARY SCHOOL,SCHOOLS CAPITATION,5902607665,5001000030
25.11.2023,Children and Adults,CHANGE GROW LIVE SERVICES LTD,"167,521.75",SSMTRG,OTHER CONTRACTORS,5902609386,1000082721
23.11.2023,DSO,ARMINA LTD,"163,549.52",DAMP & MOULD TEAM,OTHER CONTRACTORS,2103788574,3000002121
04.11.2023,Children and Adults,SOUTH LONDON & MAUDSLEY HOSPITAL,"161,554.66",SLAM SLA CAMHS TEAM,EXTERNAL AGENCIES AND BODIES,5902605770,1000013096
02.11.2023,Housing,OCO LIMITED,"161,372.83",PAYMENTS CONTROL ACCOUNT - OCO,I-WORLD CONTRACTORS HOLDING ACCOUNT,5902606360,1006066
23.11.2023,Children and Adults,NEILCOTT SPECIAL WORKS LTD,"160,406.01",CAPITAL PS (EDUCATION),CONSTRUCTION FEES  - EXTERNAL,5902609937,1000049404
10.11.2023,Housing,ZFA ACCOMMODATION LTD,"157,791.10",PSL PLACEMENTS,EXTERNAL AGENCIES AND BODIES,5902607575,1000082620
02.11.2023,Housing,EQUANS REGENERATION LTD,"154,524.94",CAPITAL PS (HRA),CONSTRUCTION MAIN CONTRACT -CERTIFICATED,2103779212,3000002035
22.11.2023,Housing,KIND & COMPANY (BUILDERS) LTD,"153,592.00",CAPITAL PS (HRA),CONSTRUCTION SITE COSTS,2103788543,3000001608
10.11.2023,Children and Adults,TUKE SCHOOL,"152,750.00",TUKE SCHOOL,HIGH NEEDS - TOP UP FUNDING,5902607818,5001000097
22.11.2023,Corporate,GREATER LONDON AUTHORITY,"152,354.90",LONDON PENSION FUND,LEVIES,5902609771,1000015827
13.11.2023,Children and Adults,ALLPAY LTD (0-25),"150,000.00",SCH TRANS � TRAVEL,OTHER PAYMENTS FOR CLIENTS,5902608016,1000083062
10.11.2023,Children and Adults,ST FRANCIS'S RC PRIMARY SCHOOL,"148,391.00",ST FRANCIS RC PRIMARY SCHOOL,SCHOOLS CAPITATION,5902607758,5001000067
14.11.2023,Housing,WILLMOTT DIXON CONSTRUCTION LIMITED,"147,877.00",CAPITAL PS (HRA),CONSTRUCTION FEES  - EXTERNAL,5902608482,1000047807
10.11.2023,Children and Adults,THE ST THOMAS THE APOSTLE COLLEGE,"147,515.00",YPLA SCHL SIXTH FORM,SCHOOLS CAPITATION,5902607780,5001000074
21.11.2023,Housing,COLEMAN & COMPANY LTD,"142,388.59",CAPITAL PS (HRA),CONSTRUCTION SITE COSTS,2103787878,3000002278
02.11.2023,Housing,SMITH & BYFORD LTD,"140,141.00",SMITH AND BYFORD,I-WORLD CONTRACTORS HOLDING ACCOUNT,5902606361,11212119
21.11.2023,Suspense,LONDON MUTUAL CREDIT UNION,"135,106.00",SUSPENSE ACCOUNT (COMPANY CODE 1000),PAYROLL - 3RD PARTY DEDUCTIONS,2103787781,1000015860
10.11.2023,Children and Adults,RYE OAK PRIMARY SCHOOL,"135,089.00",RYE OAK  DFES,SCHOOLS CAPITATION,5902607738,5001000059
14.11.2023,DSO,BCS (ELECTRICAL & BUILDING) LTD,"135,077.62",SR - VOIDS TEAM,OTHER CONTRACTORS,2103783154,3000001471
17.11.2023,Housing,KENT COUNTY COUNCIL - LASER,"134,472.68",HEATING ACCOUNT,ELECTRICITY,5902609160,1000012926
17.11.2023,Housing,PRB ESTATES LTD,"131,624.91",PRBE,I-WORLD CONTRACTORS HOLDING ACCOUNT,2103786292,3000001691
10.11.2023,Children and Adults,BETHLEM & MAUDSLEY HOSPITAL SCHOOL,"130,340.00",MAUDSLEY & BETHLEM,HIGH NEEDS - TOP UP FUNDING,5902607617,5001000010
13.11.2023,Housing,STAR PEOPLE LTD,"129,891.35",NIGHTLY TA (NSC),EXTERNAL AGENCIES AND BODIES,5902608141,1000088790
07.11.2023,Children and Adults,METROPOLITAN HOUSING TRUST LTD,"129,619.25",S75 SUPHSG SCH LBS LEAD,EXTERNAL AGENCIES AND BODIES,5902607005,1000047547
07.11.2023,Children and Adults,METROPOLITAN HOUSING TRUST LTD,"129,619.25",S75 SUPHSG SCH LBS LEAD,EXTERNAL AGENCIES AND BODIES,5902607013,1000047547
10.11.2023,Children and Adults,ILDERTON PRIMARY SCHOOL,"129,347.00",ILDERTON PRIMARY SCHOOL,SCHOOLS CAPITATION,5902607684,5001000037
10.11.2023,Children and Adults,DULWICH VILLAGE CE INFANTS SCHOOL,"128,946.00",DULWICH VILLAGE CE INFANTS' SCHOOL,SCHOOLS CAPITATION,5902607655,5001000027
28.11.2023,Housing,FINEFAIR LTD,"128,761.76",PSL PLACEMENTS,EXTERNAL AGENCIES AND BODIES,5902610517,1000075570
17.11.2023,Housing,ARCHITECTURAL DECORATORS LTD,"128,745.18",CAPITAL PS (HRA),CONSTRUCTION MAIN CONTRACT -CERTIFICATED,2103784784,3000001065
03.11.2023,Environment Neighbourhoods and Growth,F M CONWAY LTD,"128,277.20",CAPITAL PS (LEISURE),CONSTRUCTION,2103779340,4001384
20.11.2023,Housing,FAITHDEAN PLC,"127,734.99",CAPITAL PS (HRA),CONSTRUCTION MAIN CONTRACT -CERTIFICATED,2103786308,3000002188
10.11.2023,Children and Adults,HIGHSHORE SCHOOL,"127,500.00",HIGHSHORE,HIGH NEEDS - BASE FUNDING,5902607705,5001000046
10.11.2023,Children and Adults,HAYMERLE SCHOOL,"124,417.00",HAYMERLE PRIMARY SCHOOL,HIGH NEEDS - TOP UP FUNDING,5902607704,5001000045
26.11.2023,Environment Neighbourhoods and Growth,CYCLEHOOP LTD,"124,192.00",CAPITAL PS (LEISURE),CONSTRUCTION,5902609689,1000057894
20.11.2023,Children and Adults,HATS GROUP LTD,"123,483.42",SCH TRANS � TRAVEL,CAB FARES,5902609422,1000042743
14.11.2023,DSO,SANDERSONS BUILDING SERVICES LTD,"123,430.35",SR - VOIDS TEAM,OTHER CONTRACTORS,2103783156,3000002065
10.11.2023,Children and Adults,ST JOSEPHS RC JUNIOR  SCHOOL,"123,142.00",ST JOSEPHS RC JUNIOR(5203) SCHOOL,SCHOOLS CAPITATION,5902607635,5001000017
20.11.2023,Environment Neighbourhoods and Growth,GUILDMORE LTD,"122,324.15",CAPITAL PS (REGEN),CONSTRUCTION MAIN CONTRACT -CERTIFICATED,2103784788,3000002150
30.11.2023,Environment Neighbourhoods and Growth,F M CONWAY LTD,"122,064.13",CAPITAL PS (LEISURE),CONSTRUCTION,2103791408,4001384
10.11.2023,Children and Adults,CAMELOT PRIMARY SCHOOL,"119,466.36",CAMELOT PRIMARY SCHOOL,SCHOOLS CAPITATION,5902607630,5001000014
21.11.2023,Corporate,ARTHUR J GALLAGHER INSURANCE BROKER,"116,562.88",PROPERTY RELATED INSURANCE,PROPERTY INSURANCE COSTS,5902609599,1000045282
10.11.2023,Children and Adults,ST JAMES THE GREAT RC SCHOOL,"115,945.00",ST JAMES THE GREAT RC PRIMARY SCHOOL,SCHOOLS CAPITATION,5902607772,5001000071
06.11.2023,Children and Adults,MIHOMECARE LTD,"115,920.00",REABLEMENT CONTRACT,HOMECARE - IC,5902606114,1000042594
27.11.2023,Children and Adults,MIHOMECARE LTD,"115,920.00",REABLEMENT CONTRACT,HOMECARE - IC,5902610295,1000042594
14.11.2023,Housing,BLOOM PROCUREMENT SERVICES LTD,"115,836.00",LEDBURY ESTATE,SECURITY SERVICES,5902608473,1000082531
14.11.2023,Finance,INFOSYS LIMITED,"114,454.00",CAPITAL PS (STRAT SERV),ICT ACQUISITION,5902608384,1000088973
14.11.2023,DSO,CRATUS BUILDING SERVICES LIMITED,"114,371.89",SR - VOIDS TEAM,OTHER CONTRACTORS,2103783158,3000001055
10.11.2023,Children and Adults,CRAMPTON PRIMARY SCHOOL,"113,229.00",CRAMPTON PRIMARY SCHOOL,SCHOOLS CAPITATION,5902607649,5001000023
16.11.2023,Housing,MX ESTATES LTD,"113,146.25",NIGHTLY TA (NSC),EXTERNAL AGENCIES AND BODIES,5902608964,1000083639
15.11.2023,Housing,BRIDGEWATER ROOFING CONTRACTORS LTD,"112,622.11",BRC,I-WORLD CONTRACTORS HOLDING ACCOUNT,2103784354,3000001482
26.11.2023,Housing,SPOKEMEAD MAINTENANCE LTD,"111,645.57",PAYMENTS CONTROL ACCOUNT - SPOKEMEAD,I-WORLD CONTRACTORS HOLDING ACCOUNT,5902609484,1000059211
10.11.2023,Children and Adults,ST JOHNS RC PRIMARY SCHOOL,"109,938.00",ST JOHN'S RC PRIMARY SCHOOL,SCHOOLS CAPITATION,5902607783,5001000075
10.11.2023,Children and Adults,ST JOSEPHS CATHOLIC PRIMARY SCHOOL,"109,513.00",ST JOSEPHS RC (3476) PRIMARY SCHOOL,SCHOOLS CAPITATION,5902607791,5001000078
10.11.2023,Children and Adults,CATHEDRAL SCHOOL OF ST SAVIOUR & MARY,"107,888.00",THE CATHEDRAL OF ST. SAVIOUR & ST OLAVES,SCHOOLS CAPITATION,5902607805,5001000088
10.11.2023,Children and Adults,PILGRIM'S WAY PRIMARY SCHOOL,"107,575.00",PILGRIMS WAY PRIMARY SCHOOL,SCHOOLS CAPITATION,5902607725,5001000054
02.11.2023,Environment Neighbourhoods and Growth,F M CONWAY LTD,"107,456.29",CAPITAL PS (LEISURE),CONSTRUCTION,2103778361,4001384
20.11.2023,Children and Adults,FOUNTAIN CARE LTD,"106,882.19",LD LTS 18-64,RESIDENTIAL CARE,2103786664,1000066815
10.11.2023,Children and Adults,BOUCHER C OF E PRIMARY SCHOOL,"106,752.00",BOUTCHER CE PRIMARY SCHOOL,SCHOOLS CAPITATION,5902607618,5001000011
24.11.2023,Environment Neighbourhoods and Growth,F M CONWAY LTD,"106,612.27",CAPITAL PS (LEISURE),CONSTR'N SUB CONTRACT - NON CERTIFICATED,2103788836,4001384
10.11.2023,Children and Adults,RIVERSIDE PRIMARY SCHOOL,"106,304.00",RIVERSIDE PRIMARY SCHOOL,SCHOOLS CAPITATION,5902607729,5001000056
10.11.2023,Environment Neighbourhoods and Growth,TRANSPORT FOR LONDON,"106,250.16",TRAFFIC SIGNALS,EXTERNAL AGENCIES AND BODIES,5902607556,1000023986
23.11.2023,Housing,NIBLOCK (BUILDERS) LTD,"105,750.03",CAPITAL PS (HRA),CONSTRUCTION MAIN CONTRACT -CERTIFICATED,2103786322,3000000235
15.11.2023,Housing,A & E ELKINS LTD,"105,078.06",A&E ELKINS,I-WORLD CONTRACTORS HOLDING ACCOUNT,2103784353,4012501
10.11.2023,Children and Adults,BELLENDEN PRIMARY SCHOOL,"104,329.00",BELLENDEN PRIMARY SCHOOL,SCHOOLS CAPITATION,5902607607,5001000007
10.11.2023,Children and Adults,ST JOSEPHS CATHOLIC SCHOOL,"103,446.00",ST JOSEPHS RC (3484) SCHOOL,SCHOOLS CAPITATION,5902607787,5001000076
10.11.2023,Children and Adults,ROBERT BROWNING PRIMARY SCHOOL,"103,224.00",ROBERT BROWNING PRIMARY SCHOOL,SCHOOLS CAPITATION,5902607733,5001000057
23.11.2023,Housing,LETTING INTERNATIONAL LTD,"102,295.00",NIGHTLY TA (NSC),EXTERNAL AGENCIES AND BODIES,5902609941,1000070102
10.11.2023,Children and Adults,ST PETERS CE SCHOOL,"101,694.00",ST PETER'S CE PRIMARY SCHOOL,SCHOOLS CAPITATION,5902607797,5001000083
08.11.2023,Children and Adults,KINTORE WAY CHILDRENS CENTRE,"100,000.00",KINTORE WAY CHILDRENS CENTRE,SCHOOLS CAPITATION,2103780970,5001000047
10.11.2023,Children and Adults,FRIARS PRIMARY (FOUNDATION) SCHOOL,"99,265.00",FRIARS FOUNDATION PRIMARY SCHOOL,SCHOOLS CAPITATION,5902607675,5001000033
16.11.2023,Children and Adults,CHELSEA AND WESTMINSTER HOSPITAL,"97,804.30",SEXUAL HEALTH - STI,MEDICAL / HEALTH & SAFETY SERVICES,5902608912,1000072053
10.11.2023,Children and Adults,SNOWSFIELDS PRIMARY SCHOOL,"97,656.00",SNOWSFIELDS PRIMARY SCHOOL,SCHOOLS CAPITATION,5902607744,5001000061
10.11.2023,Children and Adults,CHARLOTTE  SHARMAN PRIMARY SCHOOL,"96,267.00",CHARLOTTE SHARMAN PRIMARY SCHOOL,SCHOOLS CAPITATION,5902607632,5001000016
09.11.2023,Environment Neighbourhoods and Growth,SOUTH LONDON & MAUDSLEY NHS TRUST,"95,856.78",CHIEF EXECUTIVE'S OFFICE,EXTERNAL AGENCIES AND BODIES,5902607483,1000018045
10.11.2023,Children and Adults,TOWER BRIDGE PRIMARY SCHOOL,"95,256.00",TOWER BRIDGE PRIMARY SCHOOL,SCHOOLS CAPITATION,5902607814,5001000095
14.11.2023,DSO,GC CONSTRUCT LTD,"95,128.16",SR - VOIDS TEAM,OTHER CONTRACTORS,2103783153,3000002106
16.11.2023,Housing,MAIER LANG LIMITED,"93,835.48",NIGHTLY TA (NSC),EXTERNAL AGENCIES AND BODIES,5902609007,1000084930
10.11.2023,Children and Adults,ST GEORGES CE SCHOOL,"92,127.00",ST GEORGE'S CE PRIMARY SCHOOL,SCHOOLS CAPITATION,5902607765,5001000069
10.11.2023,Children and Adults,ST GEORGES RC SCHOOL,"92,116.00",ST GEORGE'S CATHEDRAL RC PRIMARY SCHOOL,SCHOOLS CAPITATION,5902607762,5001000068
10.11.2023,Children and Adults,SOUTHWARK INCLUSIVE LEARNING SERVICE,"92,071.00",SILS,HIGH NEEDS - TOP UP FUNDING,5902607825,5001000105
10.11.2023,Children and Adults,HOLLYDALE PRIMARY SCHOOL,"91,852.00",HOLLYDALE PRIMARY SCHOOL,SCHOOLS CAPITATION,5902607681,5001000036
10.11.2023,Children and Adults,COMBER GROVE PRIMARY SCHOOL,"91,381.00",COMBER GROVE PRIMARY SCHOOL,SCHOOLS CAPITATION,5902607646,5001000022
17.11.2023,Housing,PRB ESTATES LTD,"90,688.58",PRBE,I-WORLD CONTRACTORS HOLDING ACCOUNT,2103786291,3000001691
15.11.2023,Housing,BCS (ELECTRICAL & BUILDING SERVICES LTD),"90,065.30",PAYMENTS CONTROL ACCOUNT - SPOKEMEAD,I-WORLD CONTRACTORS HOLDING ACCOUNT,5902608621,1000062321
30.11.2023,Children and Adults,ALLPAY LTD (APPOINTEESHIPS - ADULTS,"90,000.00",APPOINTEESHIPS,EXTERNAL AGENCIES AND BODIES,2103792304,1000079890
13.11.2023,Housing,DUCTCLEAN (UK) LIMITED,"90,000.00",CAPITAL PS (HRA),CONSTRUCTION,5902608191,1000062478
17.11.2023,Housing,KENT COUNTY COUNCIL - LASER,"89,671.59",HEATING ACCOUNT,GAS,5902609161,1000012926
23.11.2023,DSO,E & E BUILDING SERVICES LTD,"88,690.02",SR - VOIDS TEAM,OTHER CONTRACTORS,2103788576,3000001176
15.11.2023,Children and Adults,SOUTHWARK INCLUSIVE LEARNING SERVICE,"88,006.96",AP SILS,SCHOOLS CAPITATION,2103784529,5001000105
27.11.2023,Housing,DENHAN PROPERTY SERVICES LTD,"86,228.04",PSL PLACEMENTS,EXTERNAL AGENCIES AND BODIES,5902610373,1000082464
10.11.2023,Children and Adults,ST SAVIOURS & ST OLAVES SCHOOL,"84,467.00",YPLA SCHL SIXTH FORM,SCHOOLS CAPITATION,5902607801,5001000084
13.11.2023,Environment Neighbourhoods and Growth,BUXTON BUILDING CONTRACTORS LTD,"83,718.00",CAPITAL PS (LEISURE),CONSTRUCTION MAIN CONTRACT -CERTIFICATED,2103781592,3000000830
06.11.2023,Environment Neighbourhoods and Growth,ALLPAY LTD,"83,228.72",NO RECOURSE TO PUBLIC FUNDS,OTHER PAYMENTS FOR CLIENTS,5902606666,1000078859
20.11.2023,Environment Neighbourhoods and Growth,F M CONWAY LTD,"82,419.58",CAPITAL PS (LEISURE),CONSTR'N SUB CONTRACT - NON CERTIFICATED,2103786312,4001384
02.11.2023,Environment Neighbourhoods and Growth,F M CONWAY LTD,"81,558.47",CAPITAL PS (LEISURE),CONSTRUCTION,2103778359,4001384
21.11.2023,Housing,MX ESTATES LTD,"81,194.89",PSL PLACEMENTS,EXTERNAL AGENCIES AND BODIES,5902609546,1000083639
20.11.2023,Children and Adults,CHOICE CARE GROUP,"80,992.01",LD LTS 18-64,RESIDENTIAL CARE,2103787171,1572506
20.11.2023,Children and Adults,CHOICE CARE GROUP,"80,178.67",LD LTS 18-64,RESIDENTIAL CARE,2103787374,1572506
16.11.2023,Housing,NIBLOCK (BUILDERS) LTD,"80,168.25",CAPITAL PS (HRA),CONSTRUCTION MAIN CONTRACT -CERTIFICATED,2103784312,3000000235
15.11.2023,Children and Adults,ANN BERNADT NURSERY SCHOOL,"80,000.00",ANN BERNADT (SUMNER),SCHOOLS CAPITATION,2103784530,5001000085
10.11.2023,Children and Adults,SOUTHWARK INCLUSIVE LEARNING SERVICE,"79,167.00",SILS,HIGH NEEDS - BASE FUNDING,5902607824,5001000105
10.11.2023,Children and Adults,TUKE SCHOOL,"78,403.00",TUKE SCHOOL,HIGH NEEDS - BASE FUNDING,5902607817,5001000097
10.11.2023,Children and Adults,THAMES REACH,"78,236.34",S75 SUPHSG SCH LBS LEAD,EXTERNAL AGENCIES AND BODIES,5902607934,1723415
15.11.2023,Housing,SOLACE WOMEN'S AID,"78,186.00",NIGHTLY TA (NSC),EXTERNAL AGENCIES AND BODIES,5902608624,1000057231
10.11.2023,Housing,APCOA PARKING (UK) LTD,"77,913.88",PARKING CONTROL,OTHER CONTRACTORS,5902607399,1718645
25.11.2023,Children and Adults,CHANGE GROW LIVE SERVICES LTD,"77,418.00",ROUGH SLEEPERS SM,OTHER CONTRACTORS,5902609344,1000082721
06.11.2023,Housing,IDEAL QUARTERS LTD,"77,314.24",PSL PLACEMENTS,EXTERNAL AGENCIES AND BODIES,5902606607,1000079241
14.11.2023,Housing,SITTARA LTD,"77,206.04",NIGHTLY TA (NSC),EXTERNAL AGENCIES AND BODIES,5902608457,1000080857
10.11.2023,Children and Adults,EVELINA HOSPITAL SCHOOL,"74,231.00",EVELINA HOSPITAL SCHOOL,HIGH NEEDS - TOP UP FUNDING,5902607669,5001000031
17.11.2023,Environment Neighbourhoods and Growth,110 (UK) LIMITED,"73,246.32",CAPITAL PS (LEISURE),"PLANT, MACHINERY & EQUIPMENT ACQUISITION",5902609250,1000089749
29.11.2023,Housing,LETTING INTERNATIONAL LTD,"72,062.50",PSL PLACEMENTS,EXTERNAL AGENCIES AND BODIES,5902610697,1000070102
21.11.2023,Children and Adults,THE ST THOMAS THE APOSTLE COLLEGE,"70,449.00",TEACHERS PAY GRANT,SCHOOLS CAPITATION,2103787991,5001000074
03.11.2023,Environment Neighbourhoods and Growth,C S G (USHERS) LTD,"70,309.50",TREES TERM CONTRACT,TREE MAINTENANCE,5902606555,1000073203
14.11.2023,DSO,ARMINA LTD,"69,521.86",SR TEMPORARY ACCOMMODATION DD,OTHER CONTRACTORS,2103783160,3000002121
10.11.2023,Children and Adults,PETER HILLS CE SCHOOL,"69,509.00",PETER HILLS CE PRIMARY SCHOOL,SCHOOLS CAPITATION,5902607720,5001000053
20.11.2023,Housing,PROPERTY FACILITIES GROUP PLC,"68,908.63",PROPERTY FACILITIES GROUP,I-WORLD CONTRACTORS HOLDING ACCOUNT,2103786311,3000001420
10.11.2023,Children and Adults,VICTORY SCHOOL,"68,672.00",VICTORY PRIMARY SCHOOL,SCHOOLS CAPITATION,5902607820,5001000098
19.11.2023,Corporate,HM REVENUE & CUSTOMS,"67,912.71",APPRENTICESHIP LEVY,APPRENTICESHIP LEVY,2103775278,1016231
24.11.2023,Housing,SOLACE WOMEN'S AID,"67,182.00",RAPID REHOUSING,PROFESSIONAL FEES,5902610247,1000057231
10.11.2023,Children and Adults,ST MARY MAGDALENE CE SCHOOL,"66,404.00",ST MARY MAGDALENE CE PRIMARY SCHOOL,SCHOOLS CAPITATION,5902607794,5001000080
29.11.2023,Housing,HOMES 2 LET UK LTD,"66,355.40",NIGHTLY TA (NSC),EXTERNAL AGENCIES AND BODIES,5902610760,1000079868
29.11.2023,Children and Adults,IVORY COTTAGE LTD,"66,012.75",CHILDREN�S RESID,RESIDENTIAL CARE,2103790096,1000089809
28.11.2023,Housing,SILK & MACKMAN SERVICES LTD,"65,998.39",PAYMENTS CONTROL ACCOUNT SILK & MACKMAN,I-WORLD CONTRACTORS HOLDING ACCOUNT,5902610556,1000035282
15.11.2023,Housing,MONTAGU EVANS LLP,"65,535.00",HSG REGEN,PROFESSIONAL FEES,5902608775,1000073283
10.11.2023,Children and Adults,ST JOSEPHS CATHOLIC INFANTS SCHOOL,"65,237.00",ST JOSEPHS RC INFANT(5204),SCHOOLS CAPITATION,5902607637,5001000018
17.11.2023,Children and Adults,PEOPLE PLUS GROUP LTD (INDEPENDENT LIVING SERVICES),"64,243.20",LD LTS 18-64,PAYMENTS TO CLIENTS (DIRECT PAYMENTS),2103785699,1000061886
10.11.2023,Children and Adults,SOUTHSIDE PARTNERSHIP LTD,"63,353.76",S75 SUPHSG SCH LBS LEAD,EXTERNAL AGENCIES AND BODIES,5902607548,1716624
30.11.2023,Environment Neighbourhoods and Growth,MARWOOD ELECTRICAL COMPANY LTD,"62,643.96",PUBLIC LIGHTING,MATERIALS,5902610996,1001874
28.11.2023,Housing,FINEFAIR LTD,"62,392.16",PSL PLACEMENTS,EXTERNAL AGENCIES AND BODIES,5902610517,1000075570
29.11.2023,Environment Neighbourhoods and Growth,LONDON BOROUGH OF LEWISHAM,"62,112.35",CAPITAL PS (LEISURE),CONSTRUCTION FEES,5902610714,1000008478
15.11.2023,Housing,PROPERTYPLACEBOOK LTD,"61,068.20",NIGHTLY TA (NSC),EXTERNAL AGENCIES AND BODIES,5902608730,1000077817
21.11.2023,Housing,HIGGINS PARTNERSHIPS,"60,893.50",CAPITAL PS (HRA),CONSTRUCTION,2103787877,4000859
10.11.2023,Environment Neighbourhoods and Growth,WHITELEYS OFFICE SUPPLIES LTD,"60,433.18",CAPITAL PS (REGEN),CONSTRUCTION MAIN CONTRACT,5902607839,1000083121
10.11.2023,Children and Adults,HAYMERLE SCHOOL,"60,278.00",HAYMERLE PRIMARY SCHOOL,HIGH NEEDS - BASE FUNDING,5902607703,5001000045
29.11.2023,Children and Adults,AEGIS 24/7 LTD,"59,965.50",CHILDREN�S RESID,RESIDENTIAL CARE,2103790083,1000089533
30.11.2023,Children and Adults,LOOK AHEAD CARE AND SUPPORT LTD,"59,591.50",S75 SUPHSG SCH LBS LEAD,EXTERNAL AGENCIES AND BODIES,5902610939,1000047299
10.11.2023,Environment Neighbourhoods and Growth,MARWOOD ELECTRICAL COMPANY LTD,"59,572.31",PUBLIC LIGHTING,MATERIALS,5902607567,1001874
14.11.2023,Housing,ZFA ACCOMMODATION LTD,"59,445.50",TA PLACEMENTS,EXTERNAL AGENCIES AND BODIES,5902608434,1000082620
20.11.2023,Housing,A & E ELKINS LTD,"59,358.52",CAPITAL PS (HRA),CONSTRUCTION,2103784790,4012501
14.11.2023,DSO,BCS (ELECTRICAL & BUILDING) LTD,"58,911.55",SR - VOIDS TEAM,OTHER CONTRACTORS,2103783155,3000001471
23.11.2023,DSO,EXACTLY TECH LTD,"58,300.00",REORGANISATION COSTS,CONSULTANTS SERVICES,5902609942,1000083655
02.11.2023,Children and Adults,THE VILLA SCHOOL & NURSERY LTD,"58,225.20",NURSERY ED GRANT 3 AND 4 YR OLDS,GRANTS,2103778291,1000003742
16.11.2023,Housing,WENTWORTH HOUSING LTD,"57,865.22",PSL PLACEMENTS,EXTERNAL AGENCIES AND BODIES,5902608933,1000083640
03.11.2023,Housing,ST MUNGOS,"57,572.00",AFEO,GRANTS,5902606540,1000017600
28.11.2023,Children and Adults,FAMILY SOCIETY,"57,362.00",ALS INTER AGENCY,EXTERNAL AGENCIES AND BODIES,5902610553,1000062924
18.11.2023,Children and Adults,LONDON CARE LTD,"57,245.45",EXTRA CARE CONTRACT,HOMECARE - C&V,5902608136,1000003398
14.11.2023,DSO,CRATUS BUILDING SERVICES LIMITED,"56,726.01",SR - VOIDS TEAM,OTHER CONTRACTORS,2103783157,3000001055
15.11.2023,Environment Neighbourhoods and Growth,WYBONE LTD,"56,248.50",MANAGEMENT TEAM,GROUNDS MAINTENANCE,5902608798,1000042643
10.11.2023,Children and Adults,ST JUDES CHURCH OF ENGLAND PRIMARY,"56,091.00",ST JUDE'S CE PRIMARY SCHOOL,SCHOOLS CAPITATION,5902607640,5001000019
30.11.2023,Housing,PRB ESTATES LTD,"55,987.10",GARAGE REPAIRS,BUILDING R&M,2103791406,3000001691
16.11.2023,Housing,WENTWORTH HOUSING LTD,"55,641.90",PSL PLACEMENTS,EXTERNAL AGENCIES AND BODIES,5902608938,1000083640
30.11.2023,Finance,ARCH CONSULTING,"55,371.38",INCOME MANAGEMENT,SOFTWARE,5902610995,1000056829
08.11.2023,Environment Neighbourhoods and Growth,F M CONWAY LTD,"54,120.29",HIGHWAY MAINTENANCE OVERHEADS,HIGHWAYS TERM CONTRACT,2103776408,4001384
21.11.2023,Children and Adults,ST SAVIOURS & ST OLAVES SCHOOL,"53,637.00",TEACHERS PAY GRANT,SCHOOLS CAPITATION,2103787985,5001000084
10.11.2023,Children and Adults,BETHLEM & MAUDSLEY HOSPITAL SCHOOL,"53,333.00",MAUDSLEY & BETHLEM,HIGH NEEDS - BASE FUNDING,5902607616,5001000010
10.11.2023,Children and Adults,ACCESS MOBILITY TRANSPORT LTD,"53,264.20",SCH TRANS � TRAVEL,CAB FARES,5902607933,1000074637
02.11.2023,Children and Adults,REDRIFF PRIMARY SCHOOL,"52,978.48",NURSERY ED GRANT 3 AND 4 YR OLDS,GRANTS,2103778274,1000067877
14.11.2023,DSO,SER CONTRACTOR LTD,"51,498.46",SR - VOIDS TEAM,OTHER CONTRACTORS,2103783159,3000002234
30.11.2023,Environment Neighbourhoods and Growth,MARWOOD ELECTRICAL COMPANY LTD,"51,328.20",PUBLIC LIGHTING,MATERIALS,5902610994,1001874
14.11.2023,Governance and Assurance,CORPORATE DOCUMENT SERVICES LTD,"51,169.93",REPAIR AND MAINTENANCE SERVICES,PRINTING,5902608382,11324274
02.11.2023,Housing,NIBLOCK (BUILDERS) LTD,"51,062.35",CAPITAL PS (HRA),CONSTRUCTION MAIN CONTRACT -CERTIFICATED,2103776001,3000000235
20.11.2023,Children and Adults,FOUR SEASONS (UPLANDS CARE HOME),"50,914.28",PHY LTS 65+,NURSING PLACEMENTS FEES,2103787167,11290299
20.11.2023,Children and Adults,CHOICE CARE GROUP,"50,746.50",LD LTS 18-64,RESIDENTIAL CARE,2103786869,1572506
02.11.2023,Environment Neighbourhoods and Growth,TW BARBER LIMITED,"50,334.68",CAPITAL PS (LEISURE),CONSTRUCTION MAIN CONTRACT,2103779213,3000002267
21.11.2023,Corporate,ARTHUR J GALLAGHER INSURANCE BROKER,"50,233.12",PROPERTY RELATED INSURANCE,PROPERTY INSURANCE COSTS,5902609602,1000045282
02.11.2023,Children and Adults,MINI TREASURES NURSERY,"50,231.85",NURSERY ED GRANT 3 AND 4 YR OLDS,GRANTS,2103778264,1000062250
18.11.2023,Children and Adults,LONDON CARE LTD,"50,002.07",EXTRA CARE CONTRACT,HOMECARE - C&V,5902608135,1000003398
09.11.2023,Corporate,ZURICH MUNICIPAL (IMPREST ACCOUNT),"50,000.00",MOTOR RELATED INSURANCE,COMPENSATION,5902606186,1000079549
08.11.2023,Corporate,ZURICH MUNICIPAL (IMPREST ACCOUNT),"50,000.00",MOTOR RELATED INSURANCE,COMPENSATION,5902607161,1000079549
28.11.2023,Children and Adults,AGINCARE (SOUTHWARK) LIMITED,"49,560.90",PHY LTS 65+,RESIDENTIAL CARE,2103789529,1000089635
14.11.2023,DSO,J KASH LTD,"49,340.04",DAMP & MOULD TEAM,OTHER CONTRACTORS,2103783162,3000002219
06.11.2023,Children and Adults,LINK MAKER SYSTEMS LTD,"48,795.68",ADOPT LONDON SOUTH,SUBSCRIPTIONS,5902606658,1000074722
16.11.2023,Children and Adults,CHERRY GARDEN SCHOOL,"48,141.87",CENTRAL COSTS - SEN,PROFESSIONAL FEES,5902608980,5001000020
22.11.2023,Environment Neighbourhoods and Growth,RENAISI LTD,"48,110.58",CHIEF EXECUTIVE'S OFFICE,EXTERNAL AGENCIES AND BODIES,5902609876,1000022051
07.11.2023,Environment Neighbourhoods and Growth,CABLE TEST LTD,"48,110.22",PUBLIC LIGHTING,OTHER CONTRACTORS,5902607023,1000079183
02.11.2023,Children and Adults,1ST PLACE CHILDREN & PARENTS CENTRE,"47,457.30",NURSERY ED GRANT 3 AND 4 YR OLDS,GRANTS,2103778206,1000049952
09.11.2023,DSO,PROPERTY FACILITIES GROUP LTD,"47,344.07",DAMP & MOULD TEAM,OTHER CONTRACTORS,5902607209,1000063713
30.11.2023,DSO,GC CONSTRUCT LTD,"46,967.76",SR - VOIDS TEAM,OTHER CONTRACTORS,2103792591,3000002106
20.11.2023,DSO,GC CONSTRUCT LTD,"46,556.86",SR - VOIDS TEAM,OTHER CONTRACTORS,2103787685,3000002106
09.11.2023,DSO,PROPERTY FACILITIES GROUP LTD,"46,500.73",DAMP & MOULD TEAM,OTHER CONTRACTORS,5902607206,1000063713
17.11.2023,Environment Neighbourhoods and Growth,ESTATE LIGHTING SOLUTIONS LTD,"46,459.50",PUBLIC LIGHTING,OTHER CONTRACTORS,2103784781,3000002130
23.11.2023,DSO,PROPERTY FACILITIES GROUP LTD,"46,159.76",DAMP & MOULD TEAM,OTHER CONTRACTORS,5902610011,1000063713
07.11.2023,Environment Neighbourhoods and Growth,THAMES REACH,"46,071.84",CHIEF EXECUTIVE'S OFFICE,EXTERNAL AGENCIES AND BODIES,5902606863,1723415
02.11.2023,Housing,EQUANS REGENERATION (APOLLO) LTD,"45,970.10",CAPITAL PS (HRA),CONSTRUCTION MAIN CONTRACT -CERTIFICATED,2103778354,4000449
24.11.2023,Housing,K3 PROPERTY MANAGEMENT LTD,"45,360.00",NIGHTLY TA (NSC),EXTERNAL AGENCIES AND BODIES,5902610104,1000068219
23.11.2023,Housing,LETTING INTERNATIONAL LTD,"45,225.00",NIGHTLY TA (NSC),EXTERNAL AGENCIES AND BODIES,5902609941,1000070102
13.11.2023,Children and Adults,IVYDALE PRIMARY SCHOOL,"45,211.50",SHORT BREAKS INNV FUND,EXTERNAL AGENCIES AND BODIES,5902607143,5001000038
22.11.2023,Housing,DIAMOND PROPERTY MANAGEMENT LTD,"45,107.85",NIGHTLY TA (NSC),EXTERNAL AGENCIES AND BODIES,5902609904,1000088789
14.11.2023,Children and Adults,NORTHUMBERLAND COUNTY COUNCIL,"44,950.00",CHILDREN�S RESID,RESIDENTIAL CARE,2103783324,1000030424
30.11.2023,Housing,DUCTCLEAN (UK) LIMITED,"44,950.00",CAPITAL PS (HRA),CONSTRUCTION,5902610830,1000062478
10.11.2023,Children and Adults,CHERRY GARDEN SCHOOL,"44,777.00",CHERRY GARDEN PRIMARY SCHOOL,HIGH NEEDS - BASE FUNDING,5902607643,5001000020
10.11.2023,Children and Adults,BEORMUND PRIMARY SCHOOL,"44,500.00",BEORMUND PRIMARY SCHOOL,HIGH NEEDS - TOP UP FUNDING,5902607611,5001000008
17.11.2023,Environment Neighbourhoods and Growth,MARWOOD ELECTRICAL COMPANY LTD,"44,440.00",PUBLIC LIGHTING,MATERIALS,5902609214,1001874
10.11.2023,Environment Neighbourhoods and Growth,MARWOOD ELECTRICAL COMPANY LTD,"44,286.26",PUBLIC LIGHTING,MATERIALS,5902607569,1001874
10.11.2023,Children and Adults,EVELINA HOSPITAL SCHOOL,"44,167.00",EVELINA HOSPITAL SCHOOL,HIGH NEEDS - BASE FUNDING,5902607668,5001000031
22.11.2023,Housing,WEBBER AND QUENTIN LTD,"43,967.50",WEBBER & QUENTIN TMO,M&M ALLOWANCE CO-OPS,5902609849,1000077088
30.11.2023,Children and Adults,ROTHERHITHE PRIMARY SCHOOL,"43,910.10",NURSERY ED GRANT 3 AND 4 YR OLDS,GRANTS,2103792021,1000089862
16.11.2023,Children and Adults,INTEGRATED FOSTERING SERVICES LTD,"43,825.01",FRIENDS & FAMILY FOSTERING,EXTERNAL AGENCIES AND BODIES,2103784599,1000082605
18.11.2023,Children and Adults,LONDON CARE LTD,"43,535.07",EXTRA CARE CONTRACT,HOMECARE - C&V,5902608137,1000003398
21.11.2023,Children and Adults,NELL GWYNN NURSERY SCHOOL,"43,479.67",NELL GWYNN CHILDRENS CENTRE,EARLY YEARS - 3 AND 4 YEAR OLDS,2103787920,5001000049
07.11.2023,Children and Adults,TRANSFORMING YOUNG PEOPLE LTD,"42,957.14",SEMI-IND LAC 16-17,EXTERNAL AGENCIES AND BODIES,2103780396,1000089530
20.11.2023,Children and Adults,COUNTRY COURT CARE HOMES 2 LTD,"42,952.00",PHY LTS 18-64,NURSING PLACEMENTS FEES,2103787166,1000080172
09.11.2023,DSO,PROPERTY FACILITIES GROUP LTD,"42,921.51",DAMP & MOULD TEAM,OTHER CONTRACTORS,5902607204,1000063713
24.11.2023,Housing,FRANKLYN SHAW ASSOCIATES LTD,"42,841.46",FRANKLIN SHAW ASSOCIATES,I-WORLD CONTRACTORS HOLDING ACCOUNT,2103788832,3000001465
16.11.2023,Housing,GEM ENVIRONMENTAL BUILDING,"42,570.38",CAPITAL PS (HRA),CONSTRUCTION,5902607546,1000075428
23.11.2023,DSO,PROPERTY FACILITIES GROUP LTD,"42,073.88",DAMP & MOULD TEAM,OTHER CONTRACTORS,5902610012,1000063713
30.11.2023,Environment Neighbourhoods and Growth,F M CONWAY LTD,"41,826.81",CAPITAL PS (LEISURE),CONSTRUCTION,2103791409,4001384
21.11.2023,Corporate,ARTHUR J GALLAGHER INSURANCE BROKER,"41,552.00",SCHOOLS RELATED INSURANCE,PROPERTY INSURANCE COSTS,5902609597,1000045282
16.11.2023,Housing,1ST ACE SECURITY LTD,"41,133.60",LAKANAL (TENANCY),SECURITY SERVICES,5902608583,1000006992
10.11.2023,Children and Adults,ALZHEIMER'S SOCIETY,"41,000.00",LOCAL COMMUNITY OFFER,EXTERNAL AGENCIES AND BODIES,5902607985,1000005179
10.11.2023,Children and Adults,ALZHEIMER'S SOCIETY,"41,000.00",LOCAL COMMUNITY OFFER,EXTERNAL AGENCIES AND BODIES,5902607989,1000005179
13.11.2023,Children and Adults,ALZHEIMER'S SOCIETY,"41,000.00",LOCAL COMMUNITY OFFER,EXTERNAL AGENCIES AND BODIES,5902608004,1000005179
30.11.2023,Housing,STENFORD PROPERTY LTD,"40,790.25",NIGHTLY TA (NSC),EXTERNAL AGENCIES AND BODIES,5902610933,1000074759
16.11.2023,Housing,CROMWOOD HOUSING,"40,743.50",NIGHTLY TA (NSC),EXTERNAL AGENCIES AND BODIES,5902609028,1000071450
20.11.2023,Environment Neighbourhoods and Growth,BL CW HOLDINGS LTD,"40,594.36",CAPITAL PS (REGEN),CONSTRUCTION FEES  - EXTERNAL,5902609429,1000086680
22.11.2023,Finance,LONDON BRIDGE BUSINESS IMPROVEMENT,"40,210.05",TEAM LONDON BRIDGE,EXTERNAL AGENCIES AND BODIES,5902609699,1000050879
24.11.2023,Housing,THE DULWICH ESTATE,"40,000.00",CAMBERWELL,RENTS,2103788853,3000036
10.11.2023,Finance,FAMILY FUND TRADING LTD,"39,797.09",SESS,OTHER PAYMENTS FOR CLIENTS,5902607485,1000071092
20.11.2023,Housing,SPOKEMEAD MAINTENANCE LTD,"39,624.09",PAYMENTS CONTROL ACCOUNT - SPOKEMEAD,I-WORLD CONTRACTORS HOLDING ACCOUNT,2103786314,4002791
27.11.2023,Environment Neighbourhoods and Growth,UNITY WORKS SOCIAL ENTERPRISES,"39,385.22",CHIEF EXECUTIVE'S OFFICE,EXTERNAL AGENCIES AND BODIES,5902610293,1000083486
23.11.2023,Environment Neighbourhoods and Growth,VEOLIA ES SOUTHWARK LTD,"39,217.01",WASTE PFI,VEHICLE FUEL,5902610048,1000056979
13.11.2023,Children and Adults,FAMILY FUTURES CIC,"39,121.50",ALS INTER AGENCY,EXTERNAL AGENCIES AND BODIES,5902608272,1000027893
10.11.2023,Children and Adults,PARENTS AND CHILDREN TOGETHER,"39,121.00",ALS INTER AGENCY,EXTERNAL AGENCIES AND BODIES,5902607879,1000068128
02.11.2023,Children and Adults,SURREY SQUARE PRIMARY SCHOOL,"39,051.68",NURSERY ED GRANT 3 AND 4 YR OLDS,GRANTS,2103778288,1000082648
19.11.2023,Housing,SMITH & BYFORD LTD,"38,873.49",CAPITAL PS (HRA),CONSTRUCTION,2103784775,3000000520
08.11.2023,Children and Adults,THE ST THOMAS THE APOSTLE COLLEGE,"38,761.00",PENSIONS INCREASE GRANT,SCHOOLS CAPITATION,2103780911,5001000074
20.11.2023,Housing,STANDAGE & CO LTD,"38,412.52",CAPITAL PS (HRA),CONSTRUCTION MAIN CONTRACT -CERTIFICATED,2103784783,4002817
30.11.2023,Governance and Assurance,SODEXO MOTIVATION SOLUTIONS UK LTD,"38,187.84",HR PAYROLL COSTS,OTHER EMPLOYEE EXPENSES,5902610753,1000078322
20.11.2023,Environment Neighbourhoods and Growth,SOCIETYWORKS LTD,"38,000.00",STREET CLEANING-GENERAL,SOFTWARE,5902609343,1000089214
20.11.2023,Environment Neighbourhoods and Growth,KINDLY PROPERTIES LTD,"37,820.00",NO RECOURSE TO PUBLIC FUNDS,ACCOMMODATION CHARGES,5902609407,1000060734
15.11.2023,Suspense,INLAND REVENUE,"37,786.43",SUSPENSE ACCOUNT (COMPANY CODE 1000),CONSTRUCTION INDUSTRY TAX,2103783408,4003039
06.11.2023,Housing,BRESLIN CONSTRUCTION LTD,"37,767.25",COMMERCIAL PROPERTIES,BUILDING R&M,2103779745,3000001948
25.11.2023,Children and Adults,PREMIER ROOFING AND CONSTRUCTION LTD,"37,669.23",CAPITAL PS (EDUCATION),CONSTRUCTION MAIN CONTRACT,2103788822,3000002158
17.11.2023,Children and Adults,COUNTRY COURT CARE HOMES 2 LTD,"37,614.57",PHY LTS 65+,RESIDENTIAL CARE,5902608500,1000080172
27.11.2023,Children and Adults,ROTHERHITHE PRIMARY SCHOOL,"37,438.92",SCHOOLS SUPPLEMENTARY GRANT,SCHOOLS CAPITATION,2103789127,1000089862
08.11.2023,Environment Neighbourhoods and Growth,KINDLY PROPERTIES LTD,"37,182.00",NO RECOURSE TO PUBLIC FUNDS,ACCOMMODATION CHARGES,5902607202,1000060734
20.11.2023,Children and Adults,POSITIVE SOLUTIONS KENT,"37,101.44",LD LTS 18-64,RESIDENTIAL CARE,2103786866,1000090389
02.11.2023,Children and Adults,TIGERS CHILDCARE LTD,"37,069.35",NURSERY ED GRANT 3 AND 4 YR OLDS,GRANTS,2103778292,1000084290
04.11.2023,Housing,BUILDING ASSOCIATES LTD,"37,038.98",CAPITAL PS (HRA),CONSTRUCTION MAIN CONTRACT,2103779211,3000002218
06.11.2023,Housing,APEX HOUSING SOLUTIONS LTD,"36,987.95",NIGHTLY TA (NSC),EXTERNAL AGENCIES AND BODIES,5902606650,1000079786
03.11.2023,Children and Adults,BLAK DIAMOND SOCIAL CARE LTD,"36,358.35",SEMI-IND LAC 16-17,EXTERNAL AGENCIES AND BODIES,2103779254,1000090161
06.11.2023,Housing,STENFORD PROPERTY LTD,"36,198.75",NIGHTLY TA (NSC),EXTERNAL AGENCIES AND BODIES,5902606618,1000074759
20.11.2023,Children and Adults,SAFFRONLAND HOMES (MUNDANIA),"36,192.86",LD LTS 18-64,RESIDENTIAL CARE,2103786636,1000072153
21.11.2023,Corporate,ARTHUR J GALLAGHER INSURANCE BROKER,"36,043.28",LIABILITY RELATED INSURANCE,PROPERTY INSURANCE COSTS,5902609595,1000045282
21.11.2023,Environment Neighbourhoods and Growth,TWIN EMPLOYMENT & TRAINING,"35,756.60",CHIEF EXECUTIVE'S OFFICE,EXTERNAL AGENCIES AND BODIES,5902609625,1000083699
06.11.2023,Children and Adults,ALLEN CARR'S EASYWAY (INTERNATIONAL,"35,728.00",STOP SMOKING,EXTERNAL AGENCIES AND BODIES,5902606588,1000090277
15.11.2023,Children and Adults,ALLEYNS JUNIOR SCHOOL,"35,634.00",NURSERY ED GRANT 3 AND 4 YR OLDS,GRANTS,2103784531,1000020848
14.11.2023,Housing,NATIONWIDE ACCOMMODATION,"35,556.50",TA PLACEMENTS,EXTERNAL AGENCIES AND BODIES,5902608559,1000076112
24.11.2023,Environment Neighbourhoods and Growth,ST GILES TRUST,"35,312.61",CHIEF EXECUTIVE'S OFFICE,EXTERNAL AGENCIES AND BODIES,5902609177,1013828
09.11.2023,Environment Neighbourhoods and Growth,ST GILES TRUST,"35,299.00",CHIEF EXECUTIVE'S OFFICE,EXTERNAL AGENCIES AND BODIES,5902606852,1013828
02.11.2023,Children and Adults,SMART START NURSERY,"35,233.43",NURSERY ED GRANT 3 AND 4 YR OLDS,GRANTS,2103778282,1000056317
27.11.2023,Finance,MERRELL PUBLISHERS LTD,"35,200.00",STAKEHOLDER ENGAGEMENT,MARKETING & PUBLICITY SERVICES,5902609886,1000044615
05.11.2023,Children and Adults,COUNTRY COURT CARE HOMES 2 LTD,"35,000.00",PHY STS 18-64,NURSING PLACEMENTS FEES,5902605919,1000080172
21.11.2023,Children and Adults,THE GROVE CHILDRENS CENTRE,"34,829.33",THE GROVE NURSERY SCHOOL,EARLY YEARS - 3 AND 4 YEAR OLDS,2103787921,5001000090
30.11.2023,Housing,NEWINGTON BUTTS MANAGEMENT LTD,"34,483.63",PRIVATE SERVICE CHARGES,SERVICE CHARGES,5902610981,1000081298
03.11.2023,Children and Adults,OAKLEY HOUSE (KENT) LIMITED,"34,372.80",CHILDREN�S RESID,RESIDENTIAL CARE,2103779270,1000090039
02.11.2023,Housing,KENT COUNTY COUNCIL - LASER,"34,048.22",RESIDENT SERVICES BUSINESS SUPPORT,ELECTRICITY,5902605430,1000012926
02.11.2023,Environment Neighbourhoods and Growth,BRIGHTLY SOFTWARE LTD,"34,000.00",OPE. F & A INFORMATION TECHNOLOGY,SOFTWARE,5902606392,1000088840
09.11.2023,Children and Adults,CRESSEY OASIS EDUCATION LTD,"33,999.94",NMSS/ INDEP SPECIAL,STATEMENTED FEES,2103780994,1000068133
22.11.2023,Environment Neighbourhoods and Growth,INSIDE OFFICE CONSULTANCY LIMITED,"33,990.00",CAPITAL PS (REGEN),CONSTRUCTION MAIN CONTRACT,5902609854,1000089915
24.11.2023,Environment Neighbourhoods and Growth,ST GILES TRUST,"33,977.79",CHIEF EXECUTIVE'S OFFICE,EXTERNAL AGENCIES AND BODIES,5902609180,1013828
14.11.2023,Environment Neighbourhoods and Growth,NATIONWIDE ACCOMMODATION,"33,703.82",NO RECOURSE TO PUBLIC FUNDS,ACCOMMODATION CHARGES,5902608501,1000076112
09.11.2023,Housing,EASYMOVE EA LIMITED,"33,502.89",PSL PLACEMENTS,EXTERNAL AGENCIES AND BODIES,5902607384,1000066859
30.11.2023,Environment Neighbourhoods and Growth,KNOX BHAVAN ARCHITECTS LLP,"33,374.89",CAPITAL PS (REGEN),CONSTRUCTION FEES - ARCHITECT,5902610944,1000088675
24.11.2023,Housing,DUCTCLEAN (UK) LTD,"33,028.50",DUCTCLEAN,I-WORLD CONTRACTORS HOLDING ACCOUNT,2103788835,3000001635
24.11.2023,Housing,RSM RISK ASSURANCE SERVICES LLP,"32,791.00",GF SUPPORT SERVICES,PROFESSIONAL FEES,5902610181,1000050690
13.11.2023,Housing,GLENMAN CORPORATION LTD,"32,666.18",CAPITAL PS (HRA),CONSTRUCTION MAIN CONTRACT -CERTIFICATED,2103781234,3000002230
17.11.2023,Finance,5TH STUDIO,"32,524.43",CANADA WATER,PROFESSIONAL FEES,5902608783,1000068725
09.11.2023,Environment Neighbourhoods and Growth,ST GILES TRUST,"32,467.00",CHIEF EXECUTIVE'S OFFICE,EXTERNAL AGENCIES AND BODIES,5902606802,1013828
21.11.2023,Corporate,ST SAVIOURS & ST OLAVES SCHOOL,"32,312.84",EDUCATION VAT INPUTS,VAT CONTROL ACCOUNT,2103788076,5001000084
21.11.2023,Children and Adults,THE SALMON YOUTH CENTRE,"32,239.00",SPECIALIST CARE,EXTERNAL AGENCIES AND BODIES,5902609629,1000040686
02.11.2023,Children and Adults,CHARTER SCHOOLS EDUCATIONAL TRUST T/A LYNDHURST PRIMARY SCHOOL,"32,140.75",NURSERY ED GRANT 3 AND 4 YR OLDS,GRANTS,2103778258,1000086766
14.11.2023,Housing,NATIONWIDE ACCOMMODATION,"31,557.00",NIGHTLY TA (NSC),EXTERNAL AGENCIES AND BODIES,5902608496,1000076112
25.11.2023,Environment Neighbourhoods and Growth,CYCLE CONFIDENT LTD,"31,218.80","ROAD SAFETY EDUCATION,TRAINING&PUBLICITY",PROFESSIONAL FEES,5902609577,1000070228
14.11.2023,Children and Adults,SOUTHSIDE PARTNERSHIP LTD,"31,213.98",S75 SUPHSG SCH LBS LEAD,EXTERNAL AGENCIES AND BODIES,5902608506,1716624
20.11.2023,Environment Neighbourhoods and Growth,KENT COUNTY COUNCIL - LASER,"31,213.28",PECKHAM PULSE LEISURE CENTRE,ELECTRICITY,5902609369,1000012926
24.11.2023,Housing,DUCTCLEAN (UK) LTD,"31,073.51",DUCTCLEAN,I-WORLD CONTRACTORS HOLDING ACCOUNT,2103788834,3000001635
07.11.2023,Environment Neighbourhoods and Growth,THAMES REACH,"30,812.66",CHIEF EXECUTIVE'S OFFICE,EXTERNAL AGENCIES AND BODIES,5902606859,1723415
10.11.2023,Children and Adults,DULWICH WOOD CHILDRENS CENTRE,"30,639.00",DULWICH WOOD NURSERY SCHOOL,EARLY YEARS - 3 AND 4 YEAR OLDS,5902607822,5001000099
27.11.2023,Children and Adults,DOG KENNEL HILL PRIMARY SCHOOL,"30,623.83",SCHOOLS SUPPLEMENTARY GRANT,SCHOOLS CAPITATION,2103789126,1000089861
03.11.2023,Housing,SOUTH LONDON & MAUDSLEY HOSPITAL,"30,610.95",RAPID REHOUSING,PROFESSIONAL FEES,5902606535,1000013096
20.11.2023,Children and Adults,SPECTRA CARE LTD,"30,590.00",LD LTS 18-64,SUPPORTED LIVING,2103787073,1000086280
02.11.2023,Housing,LEATHERMARKET JMB HOUSING,"30,306.51",LEATHERMARKET CO-OP,M&M ALLOWANCE CO-OPS,5902605313,11182872
08.11.2023,Environment Neighbourhoods and Growth,DIAMOND PROPERTY MANAGEMENT LTD,"30,276.50",NO RECOURSE TO PUBLIC FUNDS,ACCOMMODATION CHARGES,5902607217,1000088789
21.11.2023,Children and Adults,PHOENIX PRIMARY SCHOOL,"30,199.00",TEACHERS PAY GRANT,SCHOOLS CAPITATION,2103787961,5001000032
28.11.2023,Housing,HOWELLS LEGAL LIMITED,"30,000.00",CAPITAL PS (HRA),CAPITAL GRANTS,2103788914,1000090391
16.11.2023,Children and Adults,ALLPAY LTD (CHILDREN - INSTANT ISSU,"30,000.00",C & F FINANCE TEAM,OTHER PAYMENTS FOR CLIENTS,5902608811,1000079883
04.11.2023,Finance,BDO LLP,"29,936.08",INTERNAL AUDIT CONTRACTS,PAYMENTS FOR FINANCIAL SERVICES,5902606023,1000057898
28.11.2023,Housing,CALFORD SEADEN LLP,"29,833.41",CAPITAL PS (HRA),CONSTRUCTION FEES - EMPLOYERS AGENT,5902610571,1061592
08.11.2023,Environment Neighbourhoods and Growth,SITTARA LTD,"29,822.00",NO RECOURSE TO PUBLIC FUNDS,ACCOMMODATION CHARGES,5902607153,1000080857
28.11.2023,Children and Adults,FAMILY FUTURES CIC,"29,760.00",SPECIAL GUARDIANSHIP,EXTERNAL AGENCIES AND BODIES,5902610554,1000027893
23.11.2023,DSO,ARMINA LTD,"29,746.66",CAMBERWELL DD,OTHER CONTRACTORS,2103788574,3000002121
14.11.2023,Housing,KINDLY PROPERTIES LTD,"29,688.00",NIGHTLY TA (NSC),EXTERNAL AGENCIES AND BODIES,5902608543,1000060734
10.11.2023,Children and Adults,RIVERSIDE,"29,640.00",S75 SUPHSG SCH LBS LEAD,EXTERNAL AGENCIES AND BODIES,5902606403,11134939
30.11.2023,Housing,HARROW GREEN LTD,"29,438.51",RESIDENT SERVICES BUSINESS SUPPORT,REMOVAL EXPENSES,5902610445,1000076673
08.11.2023,Environment Neighbourhoods and Growth,MORGAN SINDALL PROPERTY SERVICES LTD,"29,393.66",CAPITAL PS (REGEN),CONSTRUCTION FEES  - EXTERNAL,5902607296,1000089196
24.11.2023,Environment Neighbourhoods and Growth,ST GILES TRUST,"29,362.63",CHIEF EXECUTIVE'S OFFICE,EXTERNAL AGENCIES AND BODIES,5902609178,1013828
10.11.2023,Children and Adults,BEORMUND PRIMARY SCHOOL,"29,167.00",BEORMUND PRIMARY SCHOOL,HIGH NEEDS - BASE FUNDING,5902607610,5001000008
07.11.2023,Children and Adults,RSM RISK ASSURANCE SERVICES LLP,"28,507.81",STRATEGIC DIRECTOR OF C&AS,PROFESSIONAL FEES,5902607060,1000050690
16.11.2023,Environment Neighbourhoods and Growth,CONSTELLIA PUBLIC LIMITED,"28,383.42",CAPITAL PS (LEISURE),CONSTRUCTION FEES,5902608858,1000088137
30.11.2023,Environment Neighbourhoods and Growth,INDO LIGHTING LTD,"28,362.00",PUBLIC LIGHTING,MATERIALS,5902611048,1000063084
21.11.2023,Corporate,ARTHUR J GALLAGHER INSURANCE BROKER,"28,351.56",SCHOOLS RELATED INSURANCE,PROPERTY INSURANCE COSTS,5902609603,1000045282
17.11.2023,Environment Neighbourhoods and Growth,GLENDALE COUNTRYSIDE LTD,"28,181.53",TREES TERM CONTRACT,TREE MAINTENANCE,5902608451,1000070980
30.11.2023,Housing,SALVATION ARMY HOUSING ASSOCIATION,"27,964.24",DAVID BARKER HOSTEL,EXTERNAL AGENCIES AND BODIES,5902610949,1000089956
13.11.2023,Housing,EXACTLY TECH LTD,"27,775.00",REPAIRS OPERATIONS,SOFTWARE,5902608031,1000083655
17.11.2023,Environment Neighbourhoods and Growth,TRANSPORT FOR LONDON,"27,261.76",CAPITAL PS (LEISURE),CONSTRUCTION,5902609192,1000023986
20.11.2023,Environment Neighbourhoods and Growth,F M CONWAY LTD,"27,131.56",CAPITAL PS (LEISURE),CONSTR'N SUB CONTRACT - NON CERTIFICATED,2103786313,4001384
14.11.2023,Housing,GLOUCESTER GROVE ESTATE TMO,"27,122.21",GLOUCESTER GROVE ESTATE,M&M ALLOWANCE CO-OPS,5902608564,1000073072
10.11.2023,Housing,M3 HOUSING LTD,"26,990.00",DEVELOPMENT DELIVERY,SOFTWARE,5902607930,1000059696
20.11.2023,Children and Adults,AGINCARE (SOUTHWARK) LIMITED,"26,981.98",PHY LTS 65+,RESIDENTIAL CARE,5902609263,1000089635
21.11.2023,Children and Adults,JOHN RUSKIN PRIMARY SCHOOL,"26,941.00",TEACHERS PAY GRANT,SCHOOLS CAPITATION,2103787951,5001000040
13.11.2023,Housing,SOUTH LONDON & MAUDSLEY HOSPITAL,"26,604.22",RAPID REHOUSING,PROFESSIONAL FEES,5902608199,1000013096
13.11.2023,Children and Adults,THAMES WATER UTILITIES LTD,"26,548.00",CAPITAL PS (EDUCATION),UTILITIES INSTALLATION,5902608105,1000051868
30.11.2023,Environment Neighbourhoods and Growth,MARWOOD ELECTRICAL COMPANY LTD,"26,444.41",PUBLIC LIGHTING,MATERIALS,5902610993,1001874
11.11.2023,Environment Neighbourhoods and Growth,PROPERTYPLACEBOOK LTD,"26,427.50",NO RECOURSE TO PUBLIC FUNDS,ACCOMMODATION CHARGES,5902607458,1000077817
09.11.2023,Corporate,CDER GROUP,"26,413.12",VAT INPUTS - ADJUSTMENTS,VAT CONTROL ACCOUNT,2103781587,1000085307
13.11.2023,Corporate,MARSTON GROUP LTD,"26,413.12",VAT INPUTS - ADJUSTMENTS,VAT CONTROL ACCOUNT,2103781589,1000076638
02.11.2023,Children and Adults,LONDON & QUADRANT HOUSING TRUST,"26,395.07",COMMISSIONING DIRECTORATE,RENTS,2103778387,1000014718
21.11.2023,Children and Adults,BESSEMER GRANGE PRIMARY SCHOOL,"26,386.71",NURSERY ED GRANT 3 AND 4 YR OLDS,EARLY YEARS - 3 AND 4 YEAR OLDS,2103787932,5001000009
10.11.2023,Children and Adults,NELL GWYNN NURSERY SCHOOL,"26,236.00",NELL GWYNN CHILDRENS CENTRE,EARLY YEARS - 3 AND 4 YEAR OLDS,5902607713,5001000049
21.11.2023,Children and Adults,GOODRICH PRIMARY SCHOOL,"26,216.00",TEACHERS PAY GRANT,SCHOOLS CAPITATION,2103787945,5001000028
13.11.2023,Housing,JUDGE AND PRIESTLEY SOLICITORS,"26,100.00",DISREPAIR,BUILDING R&M,5902608143,1472217
22.11.2023,Children and Adults,DIAGRAMA FOUNDATION CHILDREN SERVICES,"26,081.00",ALS INTER AGENCY,EXTERNAL AGENCIES AND BODIES,5902609906,1000078697
21.11.2023,Children and Adults,ST JAMES CE PRIMARY SCHOOL,"25,951.00",TEACHERS PAY GRANT,SCHOOLS CAPITATION,2103787974,5001000070
22.11.2023,Finance,LONDON BRIDGE BUSINESS IMPROVEMENT,"25,912.68",TEAM LONDON BRIDGE,EXTERNAL AGENCIES AND BODIES,5902609699,1000050879
21.11.2023,Children and Adults,BESSEMER GRANGE PRIMARY SCHOOL,"25,884.00",TEACHERS PAY GRANT,SCHOOLS CAPITATION,2103787965,5001000009
29.11.2023,Children and Adults,CHILDHOOD FIRST,"25,834.28",CHILDREN�S RESID,RESIDENTIAL CARE,2103790097,1000076330
09.11.2023,Children and Adults,BLANDFORD HOUSE UK LTD,"25,829.64",DISABILITIES LAC,EXTERNAL AGENCIES AND BODIES,2103781051,1000088662
21.11.2023,Corporate,HIGHSHORE SCHOOL,"25,824.07",EDUCATION VAT INPUTS,VAT CONTROL ACCOUNT,2103788048,5001000046
02.11.2023,Children and Adults,TUTELAGE CARE HARTLEY LTD,"25,735.39",CHILDREN�S RESID,RESIDENTIAL CARE,2103779149,1000088664
13.11.2023,Housing,SK HOUSING LTD,"25,720.70",NIGHTLY TA (NSC),EXTERNAL AGENCIES AND BODIES,5902608047,1000070716
21.11.2023,Housing,RS REAL ESTATE LTD,"25,683.50",NIGHTLY TA (NSC),EXTERNAL AGENCIES AND BODIES,5902609655,1000072485
14.11.2023,Children and Adults,INTEGRATED FOSTERING SERVICES LTD,"25,597.01",FRIENDS & FAMILY FOSTERING,EXTERNAL AGENCIES AND BODIES,2103783395,1000082605
02.11.2023,Children and Adults,1ST PLACE CHILDREN & PARENTS CENTRE,"25,596.98",NURSERY ED GRANT 3 AND 4 YR OLDS,GRANTS,2103778207,1000049952
25.11.2023,Finance,MONTAGU EVANS LLP,"25,556.78",SANDGATE ST INDUSTRIAL ESTATE,PROFESSIONAL FEES,5902609870,1000073283
26.11.2023,Housing,FAITHFUL & GOULD,"25,328.30",CAPITAL PS (HRA),CONSTRUCTION FEES - EMPLOYERS AGENT,5902609411,1000061390
20.11.2023,Children and Adults,BRANDON TRUST,"25,184.52",LD LTS 18-64,SUPPORTED LIVING,2103787666,1000042417
02.11.2023,Children and Adults,CHARLES DICKENS PRIMARY SCHOOL,"25,089.68",NURSERY ED GRANT 3 AND 4 YR OLDS,GRANTS,2103778228,1000085158
02.11.2023,Children and Adults,LILIES DAY NURSERY,"25,080.38",NURSERY ED GRANT 3 AND 4 YR OLDS,GRANTS,2103778251,1000078155
21.11.2023,Children and Adults,CRAWFORD PRIMARY SCHOOL,"25,072.00",TEACHERS PAY GRANT,SCHOOLS CAPITATION,2103787944,5001000024
23.11.2023,Finance,FAMILY FUND TRADING LTD,"25,000.00",SESS,OTHER PAYMENTS FOR CLIENTS,5902608987,1000071092
13.11.2023,Strategy and Communities,CORDIS BRIGHT LIGHT LIMITED,"24,999.00",CORPORATE & DEPARTMENTAL EXPENDITURE,CONSULTANTS SERVICES,5902608055,1000053178
30.11.2023,DSO,GC CONSTRUCT LTD,"24,998.85",SR - VOIDS TEAM,OTHER CONTRACTORS,2103792592,3000002106
30.11.2023,Children and Adults,DOG KENNEL HILL PRIMARY SCHOOL,"24,905.40",NURSERY ED GRANT 3 AND 4 YR OLDS,GRANTS,2103792018,1000089861
29.11.2023,Children and Adults,TUTELAGE CARE HARTLEY LTD,"24,905.22",CHILDREN�S RESID,RESIDENTIAL CARE,2103790099,1000088664
23.11.2023,DSO,ARMINA LTD,"24,851.13",PECKHAM & DULWICH DD,OTHER CONTRACTORS,2103788574,3000002121
14.11.2023,Housing,FINEFAIR LTD,"24,774.61",NIGHTLY TA (NSC),EXTERNAL AGENCIES AND BODIES,5902608463,1000075570
02.11.2023,Environment Neighbourhoods and Growth,F M CONWAY LTD,"24,651.73",CAPITAL PS (LEISURE),CONSTRUCTION,2103778360,4001384
21.11.2023,Children and Adults,IVYDALE PRIMARY SCHOOL,"24,456.00",TEACHERS PAY GRANT,SCHOOLS CAPITATION,2103787950,5001000038
10.11.2023,Environment Neighbourhoods and Growth,LONDON COUNCILS,"24,438.23",ALG ACCOUNT,PROFESSIONAL FEES,5902607377,11237079
07.11.2023,Environment Neighbourhoods and Growth,BUDMAX CONSTRUCTION LTD,"24,424.00",GRANGE DOORS,OTHER CONTRACTORS,2103780130,3000001936
20.11.2023,Children and Adults,AGINCARE (SOUTHWARK) LIMITED,"24,375.00",MEM LTS 65+,RESIDENTIAL CARE,2103786720,1000089635
08.11.2023,Children and Adults,GOOSE GREEN PRIMARY AND NURSERY SCHOOL,"24,270.30",NURSERY ED GRANT 3 AND 4 YR OLDS,GRANTS,2103780894,1000070613
09.11.2023,Environment Neighbourhoods and Growth,LONDON COUNCILS,"24,219.00",ALG ACCOUNT,PROFESSIONAL FEES,5902607380,11237079
18.11.2023,Housing,LONDON CARE LTD,"24,154.20",CAPITAL PS (HRA),CONSTRUCTION MAIN CONTRACT -CERTIFICATED,5902608194,1000003398
14.11.2023,Housing,LONDON CARE LTD,"24,154.20",CAPITAL PS (HRA),CONSTRUCTION MAIN CONTRACT -CERTIFICATED,5902608358,1000003398
30.11.2023,Children and Adults,BACONS COLLEGE,"24,120.00",AAD TEAM,EXTERNAL AGENCIES AND BODIES,5902610916,1693125
22.11.2023,Environment Neighbourhoods and Growth,INSIDE OFFICE CONSULTANCY LIMITED,"24,110.00",CAPITAL PS (REGEN),CONSTRUCTION MAIN CONTRACT,5902609854,1000089915
15.11.2023,Children and Adults,KINTORE WAY CHILDRENS CENTRE,"24,000.00",SCHOOLS SUPPLEMENTARY GRANT,SCHOOLS CAPITATION,2103784502,5001000047
21.11.2023,Children and Adults,ALBION PRIMARY SCHOOL,"23,981.00",TEACHERS PAY GRANT,SCHOOLS CAPITATION,2103787938,5001000000
21.11.2023,Children and Adults,SOUTHWARK PARK PRIMARY SCHOOL,"23,941.00",TEACHERS PAY GRANT,SCHOOLS CAPITATION,2103787958,5001000062
24.11.2023,Finance,BNP PARIBAS REAL ESTATE ADVISORY & PROPERTY MANAGEMENT,"23,925.00",14-20 SHAND STREET,PROFESSIONAL FEES,5902608976,1000053153
24.11.2023,Environment Neighbourhoods and Growth,ST GILES TRUST,"23,775.30",CHIEF EXECUTIVE'S OFFICE,EXTERNAL AGENCIES AND BODIES,5902609182,1013828
27.11.2023,Children and Adults,HIGHSHORE SCHOOL,"23,773.22",TRUST FUND DRAW DOWN,SCHOOLS CAPITATION,2103789130,5001000046
07.11.2023,Children and Adults,BLAK DIAMOND SOCIAL CARE LTD,"23,592.49",SEMI-IND LAC 16-17,EXTERNAL AGENCIES AND BODIES,2103780381,1000090161
08.11.2023,Environment Neighbourhoods and Growth,ZFA ACCOMMODATION LTD,"23,576.00",NO RECOURSE TO PUBLIC FUNDS,ACCOMMODATION CHARGES,5902607195,1000082620
10.11.2023,Children and Adults,DULWICH WOOD CHILDRENS CENTRE,"23,571.00",DULWICH WOOD NURSERY SCHOOL,EARLY YEARS - 3 AND 4 YEAR OLDS,5902607823,5001000099
22.11.2023,Environment Neighbourhoods and Growth,CYCLEHOOP LTD,"23,286.00",CAPITAL PS (LEISURE),CONSTRUCTION,5902609686,1000057894
22.11.2023,Environment Neighbourhoods and Growth,LEE VALLEY REGIONAL PARK AUTHORITY,"23,113.31",LEE VALLEY LEVY,LEVIES,5902609770,11020407
21.11.2023,Children and Adults,MICHAEL FARADAY PRIMARY SCHOOL,"23,096.00",TEACHERS PAY GRANT,SCHOOLS CAPITATION,2103787954,5001000048
16.11.2023,Housing,DMS PROPERTIES SERVICES LTD,"23,039.25",NIGHTLY TA (NSC),EXTERNAL AGENCIES AND BODIES,5902608909,1000081522
21.11.2023,Children and Adults,BRUNSWICK PARK PRIMARY SCHOOL,"22,932.00",TEACHERS PAY GRANT,SCHOOLS CAPITATION,2103787966,5001000013
02.11.2023,Children and Adults,1ST PLACE CHILDREN & PARENTS CENTRE,"22,858.88",NURSERY ED GRANT 3 AND 4 YR OLDS,GRANTS,2103778205,1000049952
08.11.2023,Children and Adults,ST SAVIOURS & ST OLAVES SCHOOL,"22,640.00",PENSIONS INCREASE GRANT,SCHOOLS CAPITATION,2103780910,5001000084
09.11.2023,Environment Neighbourhoods and Growth,ST GILES TRUST,"22,610.36",CHIEF EXECUTIVE'S OFFICE,EXTERNAL AGENCIES AND BODIES,5902606857,1013828
10.11.2023,Environment Neighbourhoods and Growth,GRAEME MASSIE ARCHITECTS LTD,"22,508.75",CAPITAL PS (REGEN),CONSTRUCTION FEES - ARCHITECT,5902606771,1000085622
16.11.2023,Housing,SOLACE WOMEN'S AID,"22,394.00",RAPID REHOUSING,PROFESSIONAL FEES,5902608859,1000057231
21.11.2023,Children and Adults,ST ANTHONYS RC SCHOOL,"22,387.00",TEACHERS PAY GRANT,SCHOOLS CAPITATION,2103787986,5001000064
21.11.2023,Children and Adults,DULWICH WOOD PRIMARY SCHOOL,"22,321.00",TEACHERS PAY GRANT,SCHOOLS CAPITATION,2103787953,5001000042
21.11.2023,Children and Adults,CAMELOT PRIMARY SCHOOL,"22,278.00",TEACHERS PAY GRANT,SCHOOLS CAPITATION,2103787940,5001000014
22.11.2023,Housing,T BROWN & SONS (HEATING) LTD,"22,204.64",HEATING AND HOT WATER,HEATING -DISTRICT SERVICE (CONTRACT SUM),5902609781,1000040191
06.11.2023,Environment Neighbourhoods and Growth,KENT COUNTY COUNCIL - LASER,"22,197.58",CAMBERWELL LEISURE CENTRE,GAS,5902606627,1000012926
10.11.2023,Children and Adults,JOHN RUSKIN PRIMARY SCHOOL,"22,169.00",NURSERY ED GRANT 3 AND 4 YR OLDS,EARLY YEARS - 3 AND 4 YEAR OLDS,5902607691,5001000040
30.11.2023,DSO,CRATUS BUILDING SERVICES LIMITED,"22,162.55",SR TEMPORARY ACCOMMODATION DD,OTHER CONTRACTORS,2103792007,3000001055
20.11.2023,Children and Adults,CASSRA LLP T/A CROHAM PLACE,"22,005.00",PHY LTS 18-64,NURSING PLACEMENTS FEES,2103786616,1000082899
10.11.2023,Children and Adults,THE GROVE CHILDRENS CENTRE,"21,996.00",THE GROVE NURSERY SCHOOL,EARLY YEARS - 3 AND 4 YEAR OLDS,5902607808,5001000090
13.11.2023,Housing,DUCTCLEAN (UK) LTD,"21,950.64",DUCTCLEAN,I-WORLD CONTRACTORS HOLDING ACCOUNT,2103781595,3000001635
17.11.2023,Housing,GUILDMORE LTD,"21,865.77",CAPITAL PS (HRA),CONSTRUCTION MAIN CONTRACT -CERTIFICATED,2103784779,3000002150
13.11.2023,Housing,DUCTCLEAN (UK) LTD,"21,829.49",DUCTCLEAN,I-WORLD CONTRACTORS HOLDING ACCOUNT,2103781594,3000001635
06.11.2023,Children and Adults,CAMPBELL HARRIS TUTORS LTD,"21,781.00",AP & HOSPITAL SCHLS,STATEMENTED FEES,2103780125,1000082646
02.11.2023,Housing,DMS PROPERTIES SERVICES LTD,"21,762.50",NIGHTLY TA (NSC),EXTERNAL AGENCIES AND BODIES,5902606326,1000081522
20.11.2023,Environment Neighbourhoods and Growth,METIS CONSULTANTS LIMITED,"21,666.67",FLOOD RISK MANAGEMENT,HIGHWAYS TERM CONTRACT,5902609354,1000086330
21.11.2023,Corporate,THE ST THOMAS THE APOSTLE COLLEGE,"21,665.58",EDUCATION VAT INPUTS,VAT CONTROL ACCOUNT,2103788041,5001000074
28.11.2023,Children and Adults,ROYAL BOROUGH OF KENSINGTON & CHELSEA,"21,527.00",ICES CONTRACT,SUBSCRIPTIONS,5902610597,1000033864
21.11.2023,Children and Adults,ALFRED SALTER PRIMARY SCHOOL,"21,515.00",TEACHERS PAY GRANT,SCHOOLS CAPITATION,2103787963,5001000005
09.11.2023,Children and Adults,FRESH START CARE SOLUTIONS LTD,"21,478.57",SEMI-IND LAC 16-17,EXTERNAL AGENCIES AND BODIES,2103781089,1000070537
20.11.2023,Children and Adults,HATS GROUP LTD,"21,438.08",SCH TRANS � TRAVEL,CAB FARES,5902609426,1000042743
14.11.2023,Housing,NATIONWIDE ACCOMMODATION,"21,239.50",NIGHTLY TA (NSC),EXTERNAL AGENCIES AND BODIES,5902608503,1000076112
20.11.2023,Children and Adults,FLEET TUTORS,"21,165.00",ALTERNATIVE PROVISION,EXTERNAL AGENCIES AND BODIES,5902609270,1000044820
02.11.2023,Children and Adults,LOGICOUS LTD,"21,159.30",NURSERY ED GRANT 3 AND 4 YR OLDS,GRANTS,2103778215,1000073852
21.11.2023,Children and Adults,KEYWORTH PRIMARY SCHOOL,"21,132.00",TEACHERS PAY GRANT,SCHOOLS CAPITATION,2103787952,5001000041
20.11.2023,Children and Adults,DISABILITIES TRUST,"21,121.32",PHY LTS 18-64,OTHER PAYMENTS FOR CLIENTS,2103786724,1000043358
08.11.2023,Environment Neighbourhoods and Growth,HOMELY HOUSING LETS LTD,"21,108.47",NO RECOURSE TO PUBLIC FUNDS,ACCOMMODATION CHARGES,5902607178,1000050013
20.11.2023,Children and Adults,SS CARE CENTRE LIMITED,"21,098.57",PHY LTS 65+,RESIDENTIAL CARE,2103787322,1000090241
17.11.2023,Children and Adults,PEOPLE PLUS GROUP LTD (INDEPENDENT LIVING SERVICES),"21,085.71",LD LTS 18-64 AAD,PAYMENTS TO CLIENTS (DIRECT PAYMENTS),2103785677,1000061886
10.11.2023,Children and Adults,SWK DISABLEMENT ASSN,"21,000.00",ALL AGE DISABILITIES HUBS,EXTERNAL AGENCIES AND BODIES,5902606410,1000011698
16.11.2023,Environment Neighbourhoods and Growth,SALIX MECHANICAL SERVICES LLP,"20,996.00",CAPITAL PS (LEISURE),"PLANT, MACHINERY & EQUIPMENT ACQUISITION",5902608959,1000088961
09.11.2023,Environment Neighbourhoods and Growth,ST GILES TRUST,"20,893.58",CHIEF EXECUTIVE'S OFFICE,EXTERNAL AGENCIES AND BODIES,5902606800,1013828
20.11.2023,Children and Adults,SAFFRONLAND HOMES (MINEHEAD),"20,892.86",LD LTS 18-64,RESIDENTIAL CARE,2103786607,1000072152
02.11.2023,Children and Adults,LONDON EARLY YEARS FOUNDATION,"20,817.26",NURSERY ED GRANT 3 AND 4 YR OLDS,GRANTS,2103778283,1000077919
06.11.2023,Children and Adults,MCRAE RESIDENTIAL CARE SERVICES LTD,"20,815.26",CHILDREN�S RESID,RESIDENTIAL CARE,2103779610,1000050558
21.11.2023,Children and Adults,OLIVER GOLDSMITH PRIMARY SCHOOL,"20,792.00",TEACHERS PAY GRANT,SCHOOLS CAPITATION,2103787964,5001000051
29.11.2023,Children and Adults,HEADSTART RESIDENTIAL CARE LIMITED,"20,785.80",CHILDREN�S RESID,RESIDENTIAL CARE,2103790098,1000088836
02.11.2023,Children and Adults,LONDON EARLY YEARS FOUNDATION,"20,751.44",NURSERY ED GRANT 3 AND 4 YR OLDS,GRANTS,2103778222,1000077919
17.11.2023,Environment Neighbourhoods and Growth,LONDON COUNCILS,"20,736.00",ALG ACCOUNT,PROFESSIONAL FEES,5902608061,11237079
24.11.2023,Finance,POLICY IN PRACTICE,"20,705.00",ADMINISTRATIVE SUPPORT,SOFTWARE,5902610126,1000079014
29.11.2023,Children and Adults,THE CALDECOTT FOUNDATION,"20,678.57",CHILDREN�S RESID,RESIDENTIAL CARE,2103790090,1000074757
20.11.2023,Children and Adults,HESLEY GROUP LIMITED,"20,642.16",LD LTS 18-64,SUPPORTED LIVING,2103787470,1000089729
11.11.2023,Environment Neighbourhoods and Growth,CITYGLEN LTD,"20,581.10",NO RECOURSE TO PUBLIC FUNDS,ACCOMMODATION CHARGES,5902607436,1000026239
21.11.2023,Children and Adults,HEBER PRIMARY SCHOOL,"20,565.00",TEACHERS PAY GRANT,SCHOOLS CAPITATION,2103787947,5001000035
06.11.2023,Children and Adults,FAITHFUL & GOULD,"20,521.00",CAPITAL PS (EDUCATION),CONSTRUCTION FEES  - EXTERNAL,5902606676,1000061390
10.11.2023,Children and Adults,NELL GWYNN NURSERY SCHOOL,"20,488.00",NELL GWYNN CHILDRENS CENTRE,EARLY YEARS - 3 AND 4 YEAR OLDS,5902607712,5001000049
02.11.2023,Children and Adults,BIG N ALL PRESCHOOL AND DAY NURSERY,"20,425.80",NURSERY ED GRANT 3 AND 4 YR OLDS,GRANTS,2103778217,1000089398
23.11.2023,Environment Neighbourhoods and Growth,ASBESTOS SOLUTIONS LIMITED,"20,425.00",CAPITAL PS (REGEN),CONSTRUCTION MAIN CONTRACT,2103788578,3000002114
10.11.2023,Children and Adults,BESSEMER GRANGE PRIMARY SCHOOL,"20,411.00",NURSERY ED GRANT 3 AND 4 YR OLDS,EARLY YEARS - 3 AND 4 YEAR OLDS,5902607612,5001000009
08.11.2023,Children and Adults,THE ST THOMAS THE APOSTLE COLLEGE,"20,400.00",YPLA SCHL SIXTH FORM,SCHOOLS CAPITATION,2103780909,5001000074
29.11.2023,Children and Adults,ROCKSTEADY CARE LTD,"20,366.67",CHILDREN�S RESID,RESIDENTIAL CARE,2103790094,1000089573
29.11.2023,Children and Adults,REDACTED PERSONAL DATA,"20,300.00",CHILDREN�S RESID,RESIDENTIAL CARE,2103791285,1000057909
21.11.2023,Children and Adults,GRANGE PRIMARY SCHOOL,"20,287.00",TEACHERS PAY GRANT,SCHOOLS CAPITATION,2103787946,5001000029
29.11.2023,Children and Adults,KITES CHILDREN'S SERVICES LIMITED,"20,237.14",CHILDREN�S RESID,RESIDENTIAL CARE,2103790088,1000085930
29.11.2023,Housing,SANDERSONS BUILDING SERVICES LTD,"20,236.64",MAJOR REPAIRS,BUILDING R&M,2103791404,3000002065
05.11.2023,Environment Neighbourhoods and Growth,INSIDE OFFICE CONSULTANCY LIMITED,"20,210.00",CAPITAL PS (REGEN),CONSTRUCTION MAIN CONTRACT,5902605788,1000089915
23.11.2023,Environment Neighbourhoods and Growth,LEASEPLAN UK LTD,"20,209.95",COMMERCIAL VEH CTRL A/C,HIRED VEHICLES,5902609957,11014756
09.11.2023,Children and Adults,PEMBROKE COLLEGE SETTLEMENT,"20,000.00",SUSTAINABLE FOOD,EXTERNAL AGENCIES AND BODIES,5902607355,1000073444
16.11.2023,Children and Adults,ALLPAY LTD (CHILDREN - PETTY CASH),"20,000.00",C & F FINANCE TEAM,OTHER PAYMENTS FOR CLIENTS,5902608814,1000079888
20.11.2023,Children and Adults,AGINCARE (SOUTHWARK) LIMITED,"19,950.00",MEM LTS 65+,RESIDENTIAL CARE,2103787328,1000089635
17.11.2023,Children and Adults,LIONCARE LIMITED,"19,938.76",CHILDREN�S RESID,RESIDENTIAL CARE,2103784930,1000065330
21.11.2023,Children and Adults,ST JOHNS & ST CLEMENTS CE SCHOOL,"19,900.00",TEACHERS PAY GRANT,SCHOOLS CAPITATION,2103787975,5001000073
03.11.2023,Children and Adults,CHANNELS & CHOICES FOSTERING LTD,"19,800.00",CHILDREN�S RESID,RESIDENTIAL CARE,2103779273,1000052855
10.11.2023,Children and Adults,GOODRICH PRIMARY SCHOOL,"19,625.00",NURSERY ED GRANT 3 AND 4 YR OLDS,EARLY YEARS - 3 AND 4 YEAR OLDS,5902607657,5001000028
09.11.2023,Children and Adults,EXCEL BEYOND BARRIERS CIC,"19,584.00",HOLIDAY ACTIVITIES & FOOD,EXTERNAL AGENCIES AND BODIES,5902607317,1000089472
09.11.2023,Housing,BETHEL ROCK LTD,"19,566.31",PSL PLACEMENTS,EXTERNAL AGENCIES AND BODIES,5902607494,1000080864
13.11.2023,Environment Neighbourhoods and Growth,INNER CIRCLE CONSULTING,"19,500.00",STRATEGIC DIRECTOR'S OFFICE E AND L,CONSULTANTS SERVICES,5902608106,1000080627
02.11.2023,Children and Adults,HIGHVIEW CARE LTD,"19,485.67",CHILDREN�S RESID,RESIDENTIAL CARE,2103779147,1000089728
17.11.2023,Environment Neighbourhoods and Growth,FABRIKAT (NOTTINGHAM) LTD,"19,448.00",PUBLIC LIGHTING,MATERIALS,5902609235,1036223
06.11.2023,Children and Adults,CHIPTECH INTERNATIONAL LIMITED,"19,440.00",TELECARE EQUIPMENT,EQUIPMENT PURCHASE & REPAIR,5902606003,1000088502
16.11.2023,Environment Neighbourhoods and Growth,ALLIANCE LEISURE SERVICES LTD,"19,410.00",LEISURE INSOURCING MOBILISATION COST,MARKETING & PUBLICITY SERVICES,5902609018,1000088982
06.11.2023,Children and Adults,HAVERSTOCK,"19,387.50",CAPITAL PS (EDUCATION),CONSTRUCTION FEES - ARCHITECT,5902606753,1000074288
18.11.2023,Children and Adults,LONDON CARE LTD,"19,323.36",TRANSFORMING COM E,HOMECARE - C&V,5902608124,1000003398
27.11.2023,Children and Adults,ROTHERHITHE PRIMARY SCHOOL,"19,322.00",TEACHERS PAY GRANT,SCHOOLS CAPITATION,2103789129,1000089862
30.11.2023,Environment Neighbourhoods and Growth,F M CONWAY LTD,"19,307.60",CAPITAL PS (LEISURE),CONSTRUCTION,2103791410,4001384
29.11.2023,Children and Adults,LIONCARE LIMITED,"19,295.57",CHILDREN�S RESID,RESIDENTIAL CARE,2103790089,1000065330
13.11.2023,Children and Adults,GALAXY EXPLORERS DAY NURSERY LIMITED,"19,211.40",NURSERY ED GRANT 3 AND 4 YR OLDS,GRANTS,2103783098,1000085260
10.11.2023,Housing,WRAYBURN COMMUNITIES ORGANISATION LTD,"19,203.25",WRAYBURN TMO,M&M ALLOWANCE CO-OPS,5902607950,1000078477
29.11.2023,DSO,CRATUS BUILDING SERVICES LIMITED,"19,177.02",SR TEMPORARY ACCOMMODATION DD,OTHER CONTRACTORS,2103791400,3000001055
13.11.2023,Housing,DUCTCLEAN (UK) LIMITED,"19,175.00",CAPITAL PS (HRA),CONSTRUCTION,5902608191,1000062478
02.11.2023,Children and Adults,MINI TREASURES NURSERY,"19,125.60",NURSERY ED GRANT 3 AND 4 YR OLDS,GRANTS,2103778265,1000062250
17.11.2023,Housing,CERTSURE LLP,"19,125.00",ENG CONTRACTS,CONSULTANTS SERVICES,5902609194,1706379
15.11.2023,Housing,DURKAN LTD,"19,028.20",CAPITAL PS (HRA),CONSTRUCTION FEES  - EXTERNAL,2103784535,3000000960
09.11.2023,Environment Neighbourhoods and Growth,LONDON COUNCILS,"18,945.00",ALG ACCOUNT,PROFESSIONAL FEES,5902607381,11237079
10.11.2023,Children and Adults,THE GROVE CHILDRENS CENTRE,"18,943.00",THE GROVE NURSERY SCHOOL,EARLY YEARS - 3 AND 4 YEAR OLDS,5902607810,5001000090
30.11.2023,Children and Adults,ORCHARD HILL COLLEGE,"18,864.36",SPECIALIST POST-16,STATEMENTED FEES,2103792522,1000070978
06.11.2023,Children and Adults,WESTGATE LIFESTYLE PROJECT LTD,"18,821.34",CHILDREN�S RESID,RESIDENTIAL CARE,2103779609,1000089215
20.11.2023,Children and Adults,PECULIAR CARE HOMES LTD,"18,808.35",LD LTS 18-64,SUPPORTED LIVING,2103787155,1000076991
20.11.2023,Children and Adults,THE BEECHES UK LTD,"18,776.88",LD LTS 18-64,SUPPORTED LIVING,2103786834,1000083173
10.11.2023,Children and Adults,JOHN RUSKIN PRIMARY SCHOOL,"18,750.00",LBS MAINSTREAM,HIGH NEEDS - TOP UP FUNDING,5902607696,5001000040
20.11.2023,Children and Adults,COUNTRY COURT CARE HOMES 2 LTD,"18,734.63",PHY LTS 65+,NURSING PLACEMENTS FEES,2103787296,1000080172
21.11.2023,Children and Adults,ENGLISH MARTYRS RC PRIMARY SCHOOL,"18,721.00",TEACHERS PAY GRANT,SCHOOLS CAPITATION,2103787969,5001000030
30.11.2023,Children and Adults,ORCHARD HILL COLLEGE,"18,671.31",SPECIALIST POST-16,STATEMENTED FEES,2103792539,1000070978
20.11.2023,Children and Adults,ALWAYS INCLUSIVE LTD,"18,620.00",LD LTS 18-64,SUPPORTED LIVING,2103786795,1000088268
05.11.2023,Finance,LAND USE CONSULTANTS LTD,"18,588.75",STRATEGIC APPLICATIONS,PROFESSIONAL FEES,5902605970,11132526
22.11.2023,Housing,LTA DIRECT LTD,"18,581.09",PSL PLACEMENTS,EXTERNAL AGENCIES AND BODIES,5902609704,1000085314
02.11.2023,Children and Adults,MARYAMS NURSERY LTD,"18,529.65",NURSERY ED GRANT 3 AND 4 YR OLDS,GRANTS,2103778263,1000088453
21.11.2023,Children and Adults,ST FRANCIS'S RC PRIMARY SCHOOL,"18,482.00",TEACHERS PAY GRANT,SCHOOLS CAPITATION,2103787971,5001000067
16.11.2023,Housing,MAIER LANG LIMITED,"18,459.59",PSL PLACEMENTS,EXTERNAL AGENCIES AND BODIES,5902608843,1000084930
03.11.2023,Housing,OCO LIMITED,"18,455.51",AYLESBURY,OTHER R&M,5902606320,1006066
13.11.2023,DSO,EXACTLY TECH LTD,"18,425.00",REORGANISATION COSTS,CONSULTANTS SERVICES,5902608211,1000083655
02.11.2023,Children and Adults,BASCULE LTD,"18,424.80",NURSERY ED GRANT 3 AND 4 YR OLDS,GRANTS,2103778268,1000037268
24.11.2023,Environment Neighbourhoods and Growth,BOUYGUES (UK) LTD,"18,368.05",CAPITAL PS (REGEN),CONSTRUCTION MAIN CONTRACT -CERTIFICATED,2103787768,3000002179
11.11.2023,Housing,RELIANCE RESIDENTIAL,"18,341.40",PSL PLACEMENTS,EXTERNAL AGENCIES AND BODIES,5902607496,1000084814
09.11.2023,Children and Adults,KEYS PCE LTD,"18,240.00",CHILDREN�S RESID,RESIDENTIAL CARE,2103781055,1000080090
21.11.2023,Corporate,TUKE SCHOOL,"18,155.31",EDUCATION VAT INPUTS,VAT CONTROL ACCOUNT,2103788003,5001000097
27.11.2023,Environment Neighbourhoods and Growth,J C CONSULTANT SERVICES LTD,"18,053.00",SOUTHWARK ANTI VIOLENCE UNIT,GRANTS,5902610347,1000042476
07.11.2023,Children and Adults,KENT COUNTY COUNCIL,"18,000.00",ALS INTER AGENCY,EXTERNAL AGENCIES AND BODIES,5902607062,1000053817
07.11.2023,Children and Adults,CAMERON & COOPER LIMITED,"17,980.00",CHILDREN�S RESID,RESIDENTIAL CARE,2103780368,1000087598
22.11.2023,Housing,LTA DIRECT LTD,"17,976.90",PSL PLACEMENTS,EXTERNAL AGENCIES AND BODIES,5902609707,1000085314
16.11.2023,Housing,MAIER LANG LIMITED,"17,934.13",PSL PLACEMENTS,EXTERNAL AGENCIES AND BODIES,5902608845,1000084930
30.11.2023,Children and Adults,ORCHARD HILL COLLEGE,"17,907.56",SPECIALIST POST-16,STATEMENTED FEES,2103792521,1000070978
17.11.2023,Housing,PELLINGS LLP,"17,780.26",CAPITAL PS (HRA),CONSTRUCTION FEES - EMPLOYERS AGENT,5902608536,1009262
21.11.2023,Children and Adults,RIVERSIDE PRIMARY SCHOOL,"17,773.00",TEACHERS PAY GRANT,SCHOOLS CAPITATION,2103787955,5001000056
02.11.2023,Children and Adults,RYE GARDEN DAY NURSERY,"17,644.58",NURSERY ED GRANT 3 AND 4 YR OLDS,GRANTS,2103778277,1000074965
10.11.2023,Environment Neighbourhoods and Growth,HUNTERS CONTRACTS LTD,"17,631.75",CAPITAL PS (REGEN),CONSTRUCTION MAIN CONTRACT,5902607899,1000065904
06.11.2023,Children and Adults,FAITHFUL & GOULD,"17,625.00",CAPITAL PS (EDUCATION),CONSTRUCTION FEES  - EXTERNAL,5902606680,1000061390
28.11.2023,Housing,FINEFAIR LTD,"17,487.96",PSL PLACEMENTS,EXTERNAL AGENCIES AND BODIES,5902610519,1000075570
20.11.2023,Children and Adults,ROSEDENE NURSING HOME,"17,468.80",LD LTS 18-64,RESIDENTIAL CARE,2103787369,1163215
30.11.2023,Children and Adults,FIVE RIVERS CHILD CARE LTD,"17,430.00",NMSS/ INDEP SPECIAL,STATEMENTED FEES,2103792025,1000018792
30.11.2023,Children and Adults,FIVE RIVERS CHILD CARE LTD,"17,430.00",NMSS/ INDEP SPECIAL,STATEMENTED FEES,2103792026,1000018792
16.11.2023,Children and Adults,HEBER PRIMARY SCHOOL,"17,390.00",SEN INCLUSION TEAM,CONSULTANTS SERVICES,2103784760,5001000035
30.11.2023,Children and Adults,ORCHARD HILL COLLEGE,"17,386.16",SPECIALIST POST-16,STATEMENTED FEES,2103792527,1000070978
30.11.2023,Children and Adults,ORCHARD HILL COLLEGE,"17,385.20",SPECIALIST POST-16,STATEMENTED FEES,2103792545,1000070978
09.11.2023,Children and Adults,KEYS PCE LTD,"17,380.00",CHILDREN�S RESID,RESIDENTIAL CARE,2103781053,1000080090
10.11.2023,Children and Adults,RYE OAK PRIMARY SCHOOL,"17,333.00",LBS RB / SEN UNIT,HIGH NEEDS - TOP UP FUNDING,5902607741,5001000059
10.11.2023,Children and Adults,ALBION PRIMARY SCHOOL,"17,329.00",NURSERY ED GRANT 3 AND 4 YR OLDS,EARLY YEARS - 3 AND 4 YEAR OLDS,5902607598,5001000000
02.11.2023,Children and Adults,TAVISTOCK & PORTMAN NHS FOUNDATION TRUST ,"17,190.00",FDAC,EXTERNAL AGENCIES AND BODIES,5902606374,1991321
02.11.2023,Children and Adults,TAVISTOCK & PORTMAN NHS FOUNDATION TRUST ,"17,190.00",FDAC,EXTERNAL AGENCIES AND BODIES,5902606375,1991321
13.11.2023,Children and Adults,TAVISTOCK & PORTMAN NHS FOUNDATION TRUST ,"17,190.00",FDAC,EXTERNAL AGENCIES AND BODIES,5902608171,1991321
14.11.2023,Children and Adults,SPECTRA CARE LTD,"17,137.12",DISABILITIES LAC,EXTERNAL AGENCIES AND BODIES,2103783323,1000086280
29.11.2023,Children and Adults,SPECTRA CARE LTD,"17,137.12",DISABILITIES LAC,EXTERNAL AGENCIES AND BODIES,2103790093,1000086280
30.11.2023,Children and Adults,ORCHARD HILL COLLEGE,"17,124.91",SPECIALIST POST-16,STATEMENTED FEES,2103792534,1000070978
16.11.2023,Housing,DSI BILLING SERVICES LTD,"17,089.79",OPERATIONAL TEAM,POSTAGES,5902608945,1000058640
15.11.2023,Children and Adults,GRANGE PRIMARY SCHOOL,"17,080.00",TRADE UNIONS,SCHOOLS CAPITATION,2103784500,5001000029
16.11.2023,Children and Adults,THE CHARTER SCHOOLS EDUCATIONAL TRUST,"17,009.00",AC & FREE - MSTREAM,STATEMENTED FEES,2103784717,1000066949
16.11.2023,Children and Adults,CHARTER SCHOOLS EDUCATIONAL TRUST T/A LYNDHURST PRIMARY SCHOOL,"17,009.00",AC & FREE - MSTREAM,STATEMENTED FEES,2103784723,1000086766
29.11.2023,Children and Adults,MY CHOICE CHILDREN'S HOMES LIMITED,"16,877.14",CHILDREN�S RESID,RESIDENTIAL CARE,2103790095,1000085839
16.11.2023,Housing,INTERIM PARTNERS LIMITED,"16,875.00",REPAIRS OPERATIONS,CONSULTANTS SERVICES,5902608944,1000089772
21.11.2023,Corporate,GRANGE PRIMARY SCHOOL,"16,837.23",EDUCATION VAT INPUTS,VAT CONTROL ACCOUNT,2103788008,5001000029
23.11.2023,Environment Neighbourhoods and Growth,KENT COUNTY COUNCIL - LASER,"16,827.27",SEVEN ISLANDS LEISURE CENTRE,ELECTRICITY,5902609914,1000012926
21.11.2023,Children and Adults,RYE OAK PRIMARY SCHOOL,"16,787.00",TEACHERS PAY GRANT,SCHOOLS CAPITATION,2103787984,5001000059
02.11.2023,Children and Adults,LITTLE RABBIT DAY NURSERY,"16,762.42",NURSERY ED GRANT 3 AND 4 YR OLDS,GRANTS,2103778256,1000084320
16.11.2023,Housing,HSB ENGINEERING INSURANCE SERVICES,"16,740.00",LIFTS,LIFTS,5902608986,1000089047
30.11.2023,Environment Neighbourhoods and Growth,FIVEWAYS MUNICIPAL VEHICLE HIRE LTD,"16,736.51",COMMERCIAL VEH CTRL A/C,VEHICLE REPAIRS & MAINTENANCE,5902610972,1000023985
23.11.2023,Environment Neighbourhoods and Growth,KENT COUNTY COUNCIL - LASER,"16,582.64",THE CASTLE CENTRE,ELECTRICITY,5902609932,1000012926
21.11.2023,Children and Adults,CRAWFORD PRIMARY SCHOOL,"16,578.00",NURSERY ED GRANT 3 AND 4 YR OLDS,EARLY YEARS - 3 AND 4 YEAR OLDS,2103787924,5001000024
17.11.2023,Children and Adults,PROSPERO RECRUITMENT LTD,"16,472.25",ALTERNATIVE PROVISION,EXTERNAL AGENCIES AND BODIES,5902609222,1000082492
21.11.2023,Housing,STYLES HOUSE TMO,"16,437.00",STYLES HOUSE TMO,M&M ALLOWANCE CO-OPS,5902609515,1000072012
30.11.2023,Housing,PREMIER BUSINESS AUDIO LTD,"16,405.00",QUALITY & TRAINING,SOFTWARE,5902610842,1000079807
09.11.2023,Housing,STANDAGE & CO LTD,"16,403.88",CAPITAL PS (HRA),CONSTRUCTION MAIN CONTRACT -CERTIFICATED,2103780995,4002817
10.11.2023,Corporate,ALLIANCE BERNSTEIN LTD,"16,366.05",CASH MANAGERS' COSTS,PROFESSIONAL FEES,5902607473,1000055012
10.11.2023,Housing,PENNA PLC,"16,348.00",DEVELOPMENT DELIVERY,PAYMENTS FOR PERSONNEL MANAGEMENT SERVS,5902607974,1000050664
29.11.2023,Children and Adults,HORIZON CARE & EDUCATION GROUP LTD,"16,337.10",CHILDREN�S RESID,RESIDENTIAL CARE,2103790035,1000075467
20.11.2023,Housing,PRB ESTATES LTD,"16,313.47",PRBE,I-WORLD CONTRACTORS HOLDING ACCOUNT,2103786306,3000001691
24.11.2023,Housing,PRB ESTATES LTD,"16,313.47",PRBE,I-WORLD CONTRACTORS HOLDING ACCOUNT,2103788101,3000001691
29.11.2023,Children and Adults,ACORN HOMES (UK) LTD,"16,285.80",CHILDREN�S RESID,RESIDENTIAL CARE,2103790091,1000080423
30.11.2023,Children and Adults,ORCHARD HILL COLLEGE,"16,274.24",SPECIALIST POST-16,STATEMENTED FEES,2103792540,1000070978
28.11.2023,Housing,DENHAN INTERNATIONAL LIMITED,"16,271.95",NIGHTLY TA (NSC),EXTERNAL AGENCIES AND BODIES,5902610503,1000075567
02.11.2023,Finance,CAMELOT PRIMARY SCHOOL,"16,200.00",HOUSEHOLD SUPPORT GRANT,GRANTS,5902606334,5001000014
02.11.2023,Children and Adults,THE FRUIT TREE DAY NURSERY,"16,171.35",NURSERY ED GRANT 3 AND 4 YR OLDS,GRANTS,2103778290,1000072492
02.11.2023,Children and Adults,LITTLE BEARS 4 LMITED T/A LITTLE BEARS IN ELEPHANT CENTRE,"16,131.04",NURSERY ED GRANT 3 AND 4 YR OLDS,GRANTS,2103778252,1000082505
22.11.2023,Environment Neighbourhoods and Growth,FAITHFUL & GOULD,"16,130.00",CAPITAL PS (REGEN),CONSTRUCTION FEES  - EXTERNAL,5902609845,1000061390
21.11.2023,Children and Adults,ALFRED SALTER PRIMARY SCHOOL,"16,072.49",NURSERY ED GRANT 3 AND 4 YR OLDS,EARLY YEARS - 3 AND 4 YEAR OLDS,2103787931,5001000005
28.11.2023,Finance,REDACTED PERSONAL DATA,"16,047.50",PLANNING APPEALS AND INQUIRIES,LEGAL FEES & COURT COSTS,2103789601,1000050846
07.11.2023,Housing,DOLPHIN MOBILITY LTD,"16,045.00",CAPITAL PS (HRA),UTILITIES INSTALLATION,5902607061,1000066371
30.11.2023,Children and Adults,THE COMPLETE WORKS INDEPENDENT SCHOOL,"16,032.50",INDEP MAINSTREAM,STATEMENTED FEES,2103792453,1000033256
30.11.2023,Children and Adults,THE COMPLETE WORKS INDEPENDENT SCHOOL,"16,032.50",INDEP MAINSTREAM,STATEMENTED FEES,2103792474,1000033256
21.11.2023,Finance,DENTONS UK AND MIDDLE EAST LLP,"16,012.00",CPHA SURPLUS,SOLICITORS FRAMEWORK LEGAL SERVICES,5902609604,1000083222
02.11.2023,Children and Adults,ST JOHNS PRE SCHOOL,"15,968.63",NURSERY ED GRANT 3 AND 4 YR OLDS,GRANTS,2103778286,1000013380
23.11.2023,DSO,ARMINA LTD,"15,966.46",ROTHERHITHE & BERMONDSEY DD,OTHER CONTRACTORS,2103788574,3000002121
22.11.2023,Environment Neighbourhoods and Growth,KENT COUNTY COUNCIL - LASER,"15,950.99",CAMBERWELL LEISURE CENTRE,ELECTRICITY,5902609726,1000012926
20.11.2023,Environment Neighbourhoods and Growth,GUILDMORE LTD,"15,895.23",CAPITAL PS (REGEN),CONSTRUCTION MAIN CONTRACT -CERTIFICATED,2103784788,3000002150
29.11.2023,Children and Adults,DAISYBROOK LTD,"15,814.28",DISABILITIES LAC,RESIDENTIAL CARE,2103790087,1000088357
27.11.2023,Children and Adults,DOG KENNEL HILL PRIMARY SCHOOL,"15,811.00",TEACHERS PAY GRANT,SCHOOLS CAPITATION,2103789128,5001000025
26.11.2023,Housing,BRESLIN CONSTRUCTION LTD,"15,775.00",COMMERCIAL PROPERTIES,BUILDING R&M,2103788570,3000001948
10.11.2023,Housing,INTERIM PARTNERS LIMITED,"15,750.00",AM TRANSFORMATION COSTS,CONSULTANTS SERVICES,5902607929,1000089772
02.11.2023,Children and Adults,THE DRIVE CARE HOMES LTD,"15,741.40",DISABILITIES LAC,RESIDENTIAL CARE,2103779148,1000003889
21.11.2023,Corporate,TUKE SCHOOL,"15,731.55",EDUCATION VAT INPUTS,VAT CONTROL ACCOUNT,2103788034,5001000097
17.11.2023,Children and Adults,REDACTED PERSONAL DATA,"15,525.44",LD LTS 18-64,PAYMENTS TO CLIENTS (DIRECT PAYMENTS),2103786111,1000046071
10.11.2023,Environment Neighbourhoods and Growth,CYCLEHOOP LTD,"15,524.00",CAPITAL PS (LEISURE),CONSTRUCTION,5902607108,1000057894
02.11.2023,Children and Adults,CAMBERWELL AFTER SCHOOL PROJECT,"15,494.93",NURSERY ED GRANT 3 AND 4 YR OLDS,GRANTS,2103778227,1000051625
14.11.2023,Housing,KINDLY PROPERTIES LTD,"15,429.25",NIGHTLY TA (NSC),EXTERNAL AGENCIES AND BODIES,5902608543,1000060734
22.11.2023,Environment Neighbourhoods and Growth,KENT COUNTY COUNCIL - LASER,"15,406.92",DULWICH LEISURE CENTRE,ELECTRICITY,5902609719,1000012926
23.11.2023,DSO,EXACTLY TECH LTD,"15,400.00",REORGANISATION COSTS,CONSULTANTS SERVICES,5902609939,1000083655
12.11.2023,Environment Neighbourhoods and Growth,ASBESTOS SOLUTIONS LIMITED,"15,360.00",HOMERSTALL ROAD SPORTS GROUND,BUILDING R&M,2103780997,3000002114
10.11.2023,Children and Adults,ST JAMES CE PRIMARY SCHOOL,"15,241.00",NURSERY ED GRANT 3 AND 4 YR OLDS,EARLY YEARS - 3 AND 4 YEAR OLDS,5902607767,5001000070
09.11.2023,Environment Neighbourhoods and Growth,LONDON COUNCILS,"15,228.00",ALG ACCOUNT,PROFESSIONAL FEES,5902607396,11237079
16.11.2023,Housing,HOMELY HOUSING LETS LTD,"15,174.90",NIGHTLY TA (NSC),EXTERNAL AGENCIES AND BODIES,5902608892,1000050013
10.11.2023,Children and Adults,BRUNSWICK PARK PRIMARY SCHOOL,"15,167.00",LBS RB / SEN UNIT,HIGH NEEDS - TOP UP FUNDING,5902607624,5001000013
10.11.2023,Children and Adults,SNOWSFIELDS PRIMARY SCHOOL,"15,167.00",LBS RB / SEN UNIT,HIGH NEEDS - TOP UP FUNDING,5902607747,5001000061
24.11.2023,Finance,DAISY CORPORATE SERVICES TRADING LIMITED,"15,160.26",SHARED SERVICES,DATA COMMUNICATIONS,5902610253,1000075666
19.11.2023,Environment Neighbourhoods and Growth,J C CONSULTANT SERVICES LTD,"15,158.00",CHIEF EXECUTIVE'S OFFICE,EXTERNAL AGENCIES AND BODIES,5902608592,1000042476
21.11.2023,Children and Adults,ILDERTON PRIMARY SCHOOL,"15,091.00",TEACHERS PAY GRANT,SCHOOLS CAPITATION,2103787949,5001000037
29.11.2023,Children and Adults,RELA SUPPORT SERVICES LTD,"15,085.71",SEMI-IND CARELEAVERS,EXTERNAL AGENCIES AND BODIES,2103790143,1000073128
02.11.2023,Children and Adults,BONAMY PHARMACY (MILDCARE LIMITED),"15,015.76",STOP SMOKING,EXTERNAL AGENCIES AND BODIES,5902606339,1000063072
20.11.2023,Housing,CALFORD SEADEN LLP,"15,005.00",CAPITAL PS (HRA),CONSTRUCTION FEES  - EXTERNAL,5902609583,1061592
27.11.2023,Children and Adults,CAPITA BUSINESS SERVICES LTD,"15,000.00",C&AS SOFTWARE APPS,SOFTWARE,5902610264,1000006291
17.11.2023,Children and Adults,REDACTED PERSONAL DATA,"14,990.08",LD LTS 18-64,PAYMENTS TO CLIENTS (DIRECT PAYMENTS),2103785959,1000070120
20.11.2023,Children and Adults,BRANDON TRUST,"14,965.60",LD LTS 18-64,SUPPORTED LIVING,2103786796,1000042417
29.11.2023,Children and Adults,ACORN CARE & EDUCATION LTD,"14,916.28",CHILDREN�S RESID,RESIDENTIAL CARE,2103790092,1000085841
02.11.2023,Children and Adults,THE DRIVE CARE HOMES LTD,"14,872.87",DISABILITIES LAC,EXTERNAL AGENCIES AND BODIES,2103779145,1000003889
09.11.2023,Children and Adults,FORESHAW BUILDING SERVICES LTD,"14,850.00",SERVICE DEVELOPMENT UNIT,BUILDING R&M,5902606184,1000066943
06.11.2023,Housing,SITTARA LTD,"14,824.00",TA PLACEMENTS,EXTERNAL AGENCIES AND BODIES,5902606711,1000080857
10.11.2023,Finance,SOUTH BANK BID LTD,"14,823.00",SOUTH BANK,EXTERNAL AGENCIES AND BODIES,5902607868,1000075023
16.11.2023,Housing,TEATREE PROPERTY LIMITED,"14,783.00",NIGHTLY TA (NSC),EXTERNAL AGENCIES AND BODIES,5902608857,1000089741
26.11.2023,Children and Adults,P D CONSTRUCTION LTD,"14,770.00",CAPITAL PS (SOC SERV),CONSTRUCTION,5902609594,1000000390
02.11.2023,Children and Adults,THE BEECHES NURSERY GROUP LTD,"14,722.13",NURSERY ED GRANT 3 AND 4 YR OLDS,GRANTS,2103778239,11215743
02.11.2023,Housing,KENT COUNTY COUNCIL - LASER,"14,681.42",RESIDENT SERVICES BUSINESS SUPPORT,ELECTRICITY,5902605426,1000012926
17.11.2023,Environment Neighbourhoods and Growth,BRONZEWOOD CONSTRUCTION LTD,"14,603.00",GRANGE DOORS,OTHER CONTRACTORS,2103784782,3000002238
20.11.2023,Children and Adults,NASH CARE HOMES LTD,"14,470.72",LD LTS 18-64,RESIDENTIAL CARE,2103787273,1000080224
14.11.2023,Children and Adults,PILGRIM'S WAY PRIMARY SCHOOL,"14,468.07",SUPPORTING FAMILIES,OTHER PAYMENTS FOR CLIENTS,5902608319,5001000054
20.11.2023,Environment Neighbourhoods and Growth,ST MUNGOS,"14,449.00",RADAR-IOM,CAB FARES,5902609316,1000017600
09.11.2023,Environment Neighbourhoods and Growth,REDACTED PERSONAL DATA,"14,438.90",NO RECOURSE TO PUBLIC FUNDS,ACCOMMODATION CHARGES,5902607460,1000061134
05.11.2023,Environment Neighbourhoods and Growth,THE STOCKROOM ARCHIVE MANAGEMENT LTD,"14,420.47",HERITAGE,OTHER CONTRACTORS,5902606578,1000079579
30.11.2023,Housing,ZFA ACCOMMODATION LTD,"14,410.00",NIGHTLY TA (NSC),EXTERNAL AGENCIES AND BODIES,5902610826,1000082620
21.11.2023,Children and Adults,ST JOSEPHS RC JUNIOR  SCHOOL,"14,356.00",TEACHERS PAY GRANT,SCHOOLS CAPITATION,2103787987,5001000017
13.11.2023,Housing,DUCTCLEAN (UK) LTD,"14,336.63",DUCTCLEAN,I-WORLD CONTRACTORS HOLDING ACCOUNT,2103781594,3000001635
11.11.2023,Housing,P J COFFEY LTD,"14,300.00",REPAIRS OPERATIONS,PROFESSIONAL FEES,5902606687,1000084701
21.11.2023,Corporate,HAYMERLE SCHOOL,"14,285.66",EDUCATION VAT INPUTS,VAT CONTROL ACCOUNT,2103788060,5001000045
06.11.2023,Housing,PULSE ASSOCIATES LTD (T/A PULSE CONSULT),"14,225.00",CAPITAL PS (HRA),CONSTRUCTION FEES  - EXTERNAL,5902606395,1000087233
11.11.2023,Environment Neighbourhoods and Growth,CLEAR SKIES SOFTWARE,"14,200.00",CEMETERIES,SOFTWARE,5902606527,1000066449
15.11.2023,Housing,ANTONY HODARI  SOLICITORS,"14,166.67",DISREPAIR,PAYMENTS FOR LEGAL SERVICES,2103784336,1000031040
23.11.2023,Housing,SHUTTLEWORTH (UK) LTD,"14,144.00",NIGHTLY TA (NSC),EXTERNAL AGENCIES AND BODIES,5902609983,1000056468
17.11.2023,Children and Adults,ACCESS MOBILITY TRANSPORT LTD,"14,113.20",SCH TRANS � TRAVEL,CAB FARES,5902609213,1000074637
29.11.2023,Children and Adults,REDACTED PERSONAL DATA,"14,089.69",APPOINTEESHIPS,OTHER PAYMENTS FOR CLIENTS,5902610621,1000090480
30.11.2023,Children and Adults,ORCHARD HILL COLLEGE,"14,087.89",SPECIALIST POST-16,STATEMENTED FEES,2103792517,1000070978
22.11.2023,Housing,PINNICALE BUILDING SERVICES LIMITED,"14,085.00",CAPITAL PS (HOUSING GF),CAPITAL GRANTS,5902609667,1000082308
29.11.2023,Housing,SANDERSONS BUILDING SERVICES LTD,"14,050.44",DISREPAIR,BUILDING R&M,2103791401,3000002065
30.11.2023,Children and Adults,ORCHARD HILL COLLEGE,"14,043.81",SPECIALIST POST-16,STATEMENTED FEES,2103792538,1000070978
10.11.2023,Children and Adults,KEYWORTH PRIMARY SCHOOL,"14,026.00",NURSERY ED GRANT 3 AND 4 YR OLDS,EARLY YEARS - 3 AND 4 YEAR OLDS,5902607697,5001000041
20.11.2023,Environment Neighbourhoods and Growth,CROMWELL POLYTHENE LTD,"14,021.00",STREET CLEANING-GENERAL,MATERIALS,5902609397,1000021159
07.11.2023,Environment Neighbourhoods and Growth,TAAKSVALE HOUSING LTD,"14,009.05",NO RECOURSE TO PUBLIC FUNDS,ACCOMMODATION CHARGES,5902607207,1000073665
03.11.2023,Children and Adults,CARE ELITE LTD,"14,000.00",APPOINTEESHIPS,OTHER PAYMENTS FOR CLIENTS,2103779216,1000079119
15.11.2023,Children and Adults,NELL GWYNN NURSERY SCHOOL,"14,000.00",SCHOOLS SUPPLEMENTARY GRANT,SCHOOLS CAPITATION,2103784505,5001000049
19.11.2023,Housing,HM REVENUE & CUSTOMS,"13,983.40",APPRENTICE LEVY,APPRENTICESHIP LEVY,2103775279,1016231
21.11.2023,Corporate,CRAWFORD PRIMARY SCHOOL,"13,983.28",EDUCATION VAT INPUTS,VAT CONTROL ACCOUNT,2103788018,5001000024
02.11.2023,Children and Adults,UNDER THE WILLOW NURSERY,"13,967.48",NURSERY ED GRANT 3 AND 4 YR OLDS,GRANTS,2103778278,1000071830
15.11.2023,Environment Neighbourhoods and Growth,J & M OASIS LTD,"13,946.90",NO RECOURSE TO PUBLIC FUNDS,ACCOMMODATION CHARGES,5902608576,1000072169
30.11.2023,Children and Adults,ORCHARD HILL COLLEGE,"13,930.93",SPECIALIST POST-16,STATEMENTED FEES,2103792524,1000070978
20.11.2023,Environment Neighbourhoods and Growth,TOGETHER FOR MENTAL WELLBEING,"13,905.00",SOUTHWARK ANTI VIOLENCE UNIT,GRANTS,5902608781,1000084108
20.11.2023,Environment Neighbourhoods and Growth,TOGETHER FOR MENTAL WELLBEING,"13,905.00",SOUTHWARK ANTI VIOLENCE UNIT,GRANTS,5902608782,1000084108
10.11.2023,Children and Adults,IVYDALE PRIMARY SCHOOL,"13,895.00",NURSERY ED GRANT 3 AND 4 YR OLDS,EARLY YEARS - 3 AND 4 YEAR OLDS,5902607687,5001000038
20.11.2023,Children and Adults,CYGNET CARE SERVICES LTD,"13,891.72",LD LTS 18-64,RESIDENTIAL CARE,2103787587,1000050432
20.11.2023,Children and Adults,MEDICREST LTD (ACORN LODGE),"13,878.24",PHY LTS 65+,"MAND STATUTORY CHARGES, RESIDENTIAL",2103786884,1000037363
30.11.2023,Children and Adults,ORCHARD HILL COLLEGE,"13,794.70",SPECIALIST POST-16,STATEMENTED FEES,2103792533,1000070978
21.11.2023,Children and Adults,ST JAMES THE GREAT RC SCHOOL,"13,794.00",TEACHERS PAY GRANT,SCHOOLS CAPITATION,2103787970,5001000071
10.11.2023,Environment Neighbourhoods and Growth,GLASDON UK LIMITED,"13,790.60",PECKHAM RYE AREA TEAM,OTHER R&M,5902607564,1024073
24.11.2023,Finance,SALMON YOUTH CENTRE,"13,790.00",E&C ARTS,GRANTS,5902610106,11015254
16.11.2023,Children and Adults,CHARTER SCHOOLS EDUCATIONAL TRUST T/A LYNDHURST PRIMARY SCHOOL,"13,758.72",AC & FREE - MSTREAM,STATEMENTED FEES,2103784722,1000086766
10.11.2023,Children and Adults,ALFRED SALTER PRIMARY SCHOOL,"13,750.00",LBS MAINSTREAM,HIGH NEEDS - TOP UP FUNDING,5902607605,5001000005
30.11.2023,Children and Adults,ORCHARD HILL COLLEGE,"13,748.57",SPECIALIST POST-16,STATEMENTED FEES,2103792544,1000070978
30.11.2023,Children and Adults,ORCHARD HILL COLLEGE,"13,726.13",SPECIALIST POST-16,STATEMENTED FEES,2103792547,1000070978
30.11.2023,Children and Adults,ORCHARD HILL COLLEGE,"13,698.17",SPECIALIST POST-16,STATEMENTED FEES,2103792518,1000070978
23.11.2023,Children and Adults,FRONTIER SUPPORT SERVICES LTD,"13,684.00",LD LTS 18-64,SUPPORTED LIVING,2103788724,1000072241
21.11.2023,Corporate,ENGLISH MARTYRS RC PRIMARY SCHOOL,"13,648.04",EDUCATION VAT INPUTS,VAT CONTROL ACCOUNT,2103787999,5001000030
30.11.2023,Children and Adults,ORCHARD HILL COLLEGE,"13,635.24",SPECIALIST POST-16,STATEMENTED FEES,2103792528,1000070978
21.11.2023,Children and Adults,CAMELOT PRIMARY SCHOOL,"13,621.00",TEACHERS PAY GRANT,SCHOOLS CAPITATION,2103787941,5001000014
28.11.2023,Housing,PINNICALE BUILDING SERVICES LIMITED,"13,605.00",CAPITAL PS (HOUSING GF),CAPITAL GRANTS,5902610518,1000082308
20.11.2023,Children and Adults,ZERO THREE CARE LIMITED,"13,601.48",LD LTS 18-64,SUPPORTED LIVING,2103787670,1000085367
20.11.2023,DSO,J KASH LTD,"13,600.49",SR COMMUNAL - DELIVERY TEAM,OTHER CONTRACTORS,2103787691,3000002219
24.11.2023,Housing,PINNICALE BUILDING SERVICES LIMITED,"13,595.00",CAPITAL PS (HOUSING GF),CAPITAL GRANTS,5902609260,1000082308
20.11.2023,Children and Adults,SPECTRA CARE LTD,"13,585.72",LD LTS 18-64,SUPPORTED LIVING,2103787199,1000086280
10.11.2023,Children and Adults,ROBERT BROWNING PRIMARY SCHOOL,"13,583.00",LBS MAINSTREAM,HIGH NEEDS - TOP UP FUNDING,5902607736,5001000057
20.11.2023,DSO,BUDMAX CONSTRUCTION LTD,"13,581.44",SR COMMUNAL - DELIVERY TEAM,OTHER CONTRACTORS,2103787692,3000001936
30.11.2023,Children and Adults,ORCHARD HILL COLLEGE,"13,544.57",SPECIALIST POST-16,STATEMENTED FEES,2103792531,1000070978
03.11.2023,Environment Neighbourhoods and Growth,BLOOM PROCUREMENT SERVICES LTD,"13,525.00",CAPITAL PS (REGEN),CONSTRUCTION FEES - ENGINEER,5902606559,1000082531
03.11.2023,Environment Neighbourhoods and Growth,BLOOM PROCUREMENT SERVICES LTD,"13,525.00",CAPITAL PS (REGEN),CONSTRUCTION FEES - ENGINEER,5902606562,1000082531
20.11.2023,Children and Adults,YPR LIMITED,"13,520.00",LD LTS 18-64,SUPPORTED LIVING,2103786983,1000086517
29.11.2023,Children and Adults,AMELIA'S HOUSE LIMITED,"13,500.00",DISABILITIES LAC,EXTERNAL AGENCIES AND BODIES,2103790082,1000083007
30.11.2023,Governance and Assurance,CASTLE WATER LTD,"13,482.74",160 TOOLEY ST.,WATER,5902611022,1000078867
30.11.2023,Children and Adults,ORCHARD HILL COLLEGE,"13,476.57",SPECIALIST POST-16,STATEMENTED FEES,2103792548,1000070978
22.11.2023,Finance,VENN GROUP LTD,"13,475.00",IT MANAGEMENT,AGENCY STAFF,5902609786,1000033315
02.11.2023,Children and Adults,TOTS RYE DAY NURSERY LTD,"13,473.53",NURSERY ED GRANT 3 AND 4 YR OLDS,GRANTS,2103778294,1000089357
02.11.2023,Children and Adults,SURE AND FIRM FOUNDATIONS,"13,422.38",NURSERY ED GRANT 3 AND 4 YR OLDS,GRANTS,2103778267,1000066223
10.11.2023,Housing,POTTER RAPER LTD,"13,365.00",CAPITAL PS (HRA),CONSTRUCTION FEES  - EXTERNAL,5902607876,1009369
08.11.2023,Children and Adults,THE NEW SCHOOL,"13,333.33",NMSS/ INDEP SPECIAL,STATEMENTED FEES,2103780971,1000088932
30.11.2023,Children and Adults,ORCHARD HILL COLLEGE,"13,317.91",SPECIALIST POST-16,STATEMENTED FEES,2103792529,1000070978
10.11.2023,Housing,LPS CONSULTING (LONDON) LIMITED,"13,300.00",DIRECTOR OF ASSET MANAGEMENT,PROFESSIONAL FEES,5902607363,1000084208
18.11.2023,Corporate,ABERDEEN ASSET MANAGERS LTD,"13,285.47",CASH MANAGERS' COSTS,PROFESSIONAL FEES,5902608202,1000020647
30.11.2023,Children and Adults,ORCHARD HILL COLLEGE,"13,272.57",SPECIALIST POST-16,STATEMENTED FEES,2103792523,1000070978
10.11.2023,Children and Adults,MICHAEL FARADAY PRIMARY SCHOOL,"13,260.00",NURSERY ED GRANT 3 AND 4 YR OLDS,EARLY YEARS - 3 AND 4 YEAR OLDS,5902607708,5001000048
10.11.2023,Housing,STAR PEOPLE LTD,"13,237.62",PSL PLACEMENTS,EXTERNAL AGENCIES AND BODIES,5902607146,1000088790
30.11.2023,Children and Adults,ORCHARD HILL COLLEGE,"13,227.01",SPECIALIST POST-16,STATEMENTED FEES,2103792542,1000070978
17.11.2023,Environment Neighbourhoods and Growth,INDO LIGHTING LTD,"13,203.00",PUBLIC LIGHTING,MATERIALS,5902609247,1000063084
10.11.2023,Housing,HILTON INTERNATIONAL HOTELS (UK) LTD,"13,170.00",NIGHTLY TA (NSC),EXTERNAL AGENCIES AND BODIES,5902606445,1000052384
10.11.2023,Children and Adults,ST JAMES CE PRIMARY SCHOOL,"13,167.00",LBS MAINSTREAM,HIGH NEEDS - TOP UP FUNDING,5902607770,5001000070
30.11.2023,Children and Adults,ORCHARD HILL COLLEGE,"13,159.23",SPECIALIST POST-16,STATEMENTED FEES,2103792526,1000070978
20.11.2023,Children and Adults,PECULIAR CARE HOMES LTD,"13,129.36",LD LTS 18-64,SUPPORTED LIVING,2103787192,1000076991
21.11.2023,Suspense,UNISON,"13,096.30",SUSPENSE ACCOUNT (COMPANY CODE 1000),PAYROLL CREDITORS - UNION DEDUCTIONS,2103787777,11060053
24.11.2023,Corporate,GROUP FINANCE SOLUTIONS CONSULTING,"13,080.00",CORPORATE SOFTWARE APPLICATION PROGRAMME,PROFESSIONAL FEES,5902610117,1000090315
30.11.2023,Children and Adults,ORCHARD HILL COLLEGE,"13,045.91",SPECIALIST POST-16,STATEMENTED FEES,2103792525,1000070978
02.11.2023,Children and Adults,HARRIS PRIMARY ACADEMY PECKHAM PARK,"13,008.75",NURSERY ED GRANT 3 AND 4 YR OLDS,GRANTS,2103778244,1000068029
10.11.2023,Children and Adults,SOUTHWARK PARK PRIMARY SCHOOL,"13,000.00",LBS MAINSTREAM,HIGH NEEDS - TOP UP FUNDING,5902607752,5001000062
10.11.2023,Children and Adults,ST ANTHONYS RC SCHOOL,"12,994.00",NURSERY ED GRANT 3 AND 4 YR OLDS,EARLY YEARS - 3 AND 4 YEAR OLDS,5902607753,5001000064
21.11.2023,Children and Adults,DULWICH VILLAGE CE INFANTS SCHOOL,"12,992.00",TEACHERS PAY GRANT,SCHOOLS CAPITATION,2103787968,5001000027
14.11.2023,Children and Adults,INTEGRATED FOSTERING SERVICES LTD,"12,978.50",FRIENDS & FAMILY FOSTERING,EXTERNAL AGENCIES AND BODIES,2103783393,1000082605
10.11.2023,Children and Adults,PHOENIX PRIMARY SCHOOL,"12,978.00",NURSERY ED GRANT 3 AND 4 YR OLDS,EARLY YEARS - 3 AND 4 YEAR OLDS,5902607670,5001000032
10.11.2023,Environment Neighbourhoods and Growth,CROMWELL POLYTHENE LTD,"12,948.37",STREET CLEANING-GENERAL,MATERIALS,5902607551,1000021159
21.11.2023,Children and Adults,BOUCHER C OF E PRIMARY SCHOOL,"12,941.00",TEACHERS PAY GRANT,SCHOOLS CAPITATION,2103787967,5001000011
21.11.2023,Corporate,CAMELOT PRIMARY SCHOOL,"12,911.81",EDUCATION VAT INPUTS,VAT CONTROL ACCOUNT,2103787997,5001000014
21.11.2023,Children and Adults,CRAMPTON PRIMARY SCHOOL,"12,897.00",TEACHERS PAY GRANT,SCHOOLS CAPITATION,2103787943,5001000023
21.11.2023,Children and Adults,PILGRIM'S WAY PRIMARY SCHOOL,"12,896.00",TEACHERS PAY GRANT,SCHOOLS CAPITATION,2103787962,5001000054
30.11.2023,Housing,MARTIN ARNOLD LTD,"12,877.26",CAPITAL PS (HRA),CONSTRUCTION FEES  - EXTERNAL,5902610911,1000076993
30.11.2023,Children and Adults,ORCHARD HILL COLLEGE,"12,870.49",SPECIALIST POST-16,STATEMENTED FEES,2103792532,1000070978
30.11.2023,Children and Adults,ORCHARD HILL COLLEGE,"12,841.90",SPECIALIST POST-16,STATEMENTED FEES,2103792519,1000070978
30.11.2023,Children and Adults,ORCHARD HILL COLLEGE,"12,841.90",SPECIALIST POST-16,STATEMENTED FEES,2103792549,1000070978
30.11.2023,Housing,POLLOCK LIFTS,"12,830.00",CAPITAL PS (HRA),UTILITIES INSTALLATION,5902611018,1000069964
20.11.2023,Children and Adults,CASSRA LLP T/A CROHAM PLACE,"12,811.24",LD LTS 18-64,NURSING PLACEMENTS FEES,2103787021,1000082899
17.11.2023,Environment Neighbourhoods and Growth,ACE LIFTS LTD,"12,805.50",CAPITAL PS (LEISURE),"PLANT, MACHINERY & EQUIPMENT ACQUISITION",5902608266,1000089847
10.11.2023,Children and Adults,ALFRED SALTER PRIMARY SCHOOL,"12,785.00",NURSERY ED GRANT 3 AND 4 YR OLDS,EARLY YEARS - 3 AND 4 YEAR OLDS,5902607602,5001000005
16.11.2023,Children and Adults,THE BELHAM PRIMARY SCHOOL,"12,770.00",AC & FREE - MSTREAM,STATEMENTED FEES,2103784680,1000080044
16.11.2023,Children and Adults,THE BELHAM PRIMARY SCHOOL,"12,770.00",AC & FREE - MSTREAM,STATEMENTED FEES,2103784682,1000080044
16.11.2023,Children and Adults,THE BELHAM PRIMARY SCHOOL,"12,770.00",AC & FREE - MSTREAM,STATEMENTED FEES,2103784683,1000080044
16.11.2023,Children and Adults,THE BELHAM PRIMARY SCHOOL,"12,770.00",AC & FREE - MSTREAM,STATEMENTED FEES,2103784686,1000080044
16.11.2023,Children and Adults,THE BELHAM PRIMARY SCHOOL,"12,770.00",AC & FREE - MSTREAM,STATEMENTED FEES,2103784687,1000080044
16.11.2023,Children and Adults,THE BELHAM PRIMARY SCHOOL,"12,770.00",AC & FREE - MSTREAM,STATEMENTED FEES,2103784688,1000080044
16.11.2023,Children and Adults,THE BELHAM PRIMARY SCHOOL,"12,770.00",AC & FREE - MSTREAM,STATEMENTED FEES,2103784689,1000080044
16.11.2023,Children and Adults,CHARLES DICKENS PRIMARY SCHOOL,"12,770.00",AC & FREE - MSTREAM,STATEMENTED FEES,2103784692,1000085158
16.11.2023,Children and Adults,CHARLES DICKENS PRIMARY SCHOOL,"12,770.00",AC & FREE - MSTREAM,STATEMENTED FEES,2103784693,1000085158
16.11.2023,Children and Adults,CHARLES DICKENS PRIMARY SCHOOL,"12,770.00",AC & FREE - MSTREAM,STATEMENTED FEES,2103784699,1000085158
16.11.2023,Children and Adults,CHARLES DICKENS PRIMARY SCHOOL,"12,770.00",AC & FREE - MSTREAM,STATEMENTED FEES,2103784703,1000085158
16.11.2023,Children and Adults,THE CHARTER SCHOOLS EDUCATIONAL TRUST,"12,770.00",AC & FREE - MSTREAM,STATEMENTED FEES,2103784705,1000066949
16.11.2023,Children and Adults,THE CHARTER SCHOOLS EDUCATIONAL TRUST,"12,770.00",AC & FREE - MSTREAM,STATEMENTED FEES,2103784706,1000066949
16.11.2023,Children and Adults,THE CHARTER SCHOOLS EDUCATIONAL TRUST,"12,770.00",AC & FREE - MSTREAM,STATEMENTED FEES,2103784708,1000066949
16.11.2023,Children and Adults,THE CHARTER SCHOOLS EDUCATIONAL TRUST,"12,770.00",AC & FREE - MSTREAM,STATEMENTED FEES,2103784709,1000066949
16.11.2023,Children and Adults,THE CHARTER SCHOOLS EDUCATIONAL TRUST,"12,770.00",AC & FREE - MSTREAM,STATEMENTED FEES,2103784710,1000066949
16.11.2023,Children and Adults,THE CHARTER SCHOOLS EDUCATIONAL TRUST,"12,770.00",AC & FREE - MSTREAM,STATEMENTED FEES,2103784712,1000066949
16.11.2023,Children and Adults,CHARTER SCHOOLS EDUCATIONAL TRUST T/A LYNDHURST PRIMARY SCHOOL,"12,770.00",AC & FREE - MSTREAM,STATEMENTED FEES,2103784724,1000086766
16.11.2023,Children and Adults,CHARTER SCHOOLS EDUCATIONAL TRUST T/A LYNDHURST PRIMARY SCHOOL,"12,770.00",AC & FREE - MSTREAM,STATEMENTED FEES,2103784731,1000086766
16.11.2023,Children and Adults,CHARTER SCHOOLS EDUCATIONAL TRUST T/A LYNDHURST PRIMARY SCHOOL,"12,770.00",AC & FREE - MSTREAM,STATEMENTED FEES,2103784733,1000086766
16.11.2023,Children and Adults,CHARTER SCHOOLS EDUCATIONAL TRUST T/A LYNDHURST PRIMARY SCHOOL,"12,770.00",AC & FREE - MSTREAM,STATEMENTED FEES,2103784737,1000086766
12.11.2023,Strategy and Communities,ROOCOU CONSULTING LTD,"12,750.00",CORPORATE & DEPARTMENTAL EXPENDITURE,CONSULTANTS SERVICES,5902606719,1000081284
10.11.2023,Children and Adults,BESSEMER GRANGE PRIMARY SCHOOL,"12,750.00",LBS MAINSTREAM,HIGH NEEDS - TOP UP FUNDING,5902607615,5001000009
06.11.2023,Environment Neighbourhoods and Growth,CONSTELLIA PUBLIC LIMITED,"12,748.66",THE CASTLE CENTRE,PREMISES CLEANING,5902606767,1000088137
06.11.2023,Environment Neighbourhoods and Growth,CONSTELLIA PUBLIC LIMITED,"12,748.66",THE CASTLE CENTRE,PREMISES CLEANING,5902606768,1000088137
06.11.2023,Environment Neighbourhoods and Growth,CONSTELLIA PUBLIC LIMITED,"12,748.66",THE CASTLE CENTRE,PREMISES CLEANING,5902606769,1000088137
27.11.2023,Environment Neighbourhoods and Growth,CONSTELLIA PUBLIC LIMITED,"12,748.66",THE CASTLE CENTRE,PREMISES CLEANING,5902609862,1000088137
20.11.2023,DSO,SANDERSONS BUILDING SERVICES LTD,"12,745.28",SR - VOIDS TEAM,OTHER CONTRACTORS,2103787686,3000002065
21.11.2023,Children and Adults,ST JOHNS RC PRIMARY SCHOOL,"12,745.00",TEACHERS PAY GRANT,SCHOOLS CAPITATION,2103787983,5001000075
16.11.2023,Children and Adults,THE BELHAM PRIMARY SCHOOL,"12,715.00",AC & FREE - MSTREAM,STATEMENTED FEES,2103784681,1000080044
02.11.2023,Finance,CAPITA BUSINESS SERVICES LTD,"12,711.24",CAPITA,OTHER CONTRACTORS,5902606230,1000006291
10.11.2023,Children and Adults,JOHN RUSKIN PRIMARY SCHOOL,"12,694.00",LBS RB / SEN UNIT,HIGH NEEDS - BASE FUNDING,5902607693,5001000040
30.11.2023,Children and Adults,ORCHARD HILL COLLEGE,"12,676.85",SPECIALIST POST-16,STATEMENTED FEES,2103792535,1000070978
30.11.2023,Children and Adults,THE PARK COLLEGE,"12,652.54",SPECIALIST POST-16,STATEMENTED FEES,2103792554,1000088955
30.11.2023,Children and Adults,THE PARK COLLEGE,"12,652.54",SPECIALIST POST-16,STATEMENTED FEES,2103792567,1000088955
30.11.2023,Children and Adults,THE PARK COLLEGE,"12,652.54",SPECIALIST POST-16,STATEMENTED FEES,2103792568,1000088955
30.11.2023,Children and Adults,THE PARK COLLEGE,"12,652.54",SPECIALIST POST-16,STATEMENTED FEES,2103792569,1000088955
30.11.2023,Children and Adults,THE PARK COLLEGE,"12,652.54",SPECIALIST POST-16,STATEMENTED FEES,2103792570,1000088955
02.11.2023,Children and Adults,REDACTED PERSONAL DATA,"12,643.18",APPOINTEESHIPS,OTHER PAYMENTS FOR CLIENTS,5902606406,1000050946
30.11.2023,Children and Adults,ORCHARD HILL COLLEGE,"12,638.13",SPECIALIST POST-16,STATEMENTED FEES,2103792536,1000070978
17.11.2023,Children and Adults,PEOPLE PLUS GROUP LTD (INDEPENDENT LIVING SERVICES),"12,619.20",LD LTS 18-64,PAYMENTS TO CLIENTS (DIRECT PAYMENTS),2103785982,1000061886
11.11.2023,Housing,ANISTEN HOMES,"12,613.16",PSL PLACEMENTS,EXTERNAL AGENCIES AND BODIES,5902607502,1000084438
13.11.2023,Environment Neighbourhoods and Growth,MACE LTD,"12,600.00",CAPITAL PS (REGEN),CONSTRUCTION FEES,5902608119,1000067959
29.11.2023,Children and Adults,CHURCHILLS SERVICES LTD,"12,600.00",SCH CLOSURE & REORGS,MISCELLANEOUS RECHARGES,5902610730,1000090483
10.11.2023,Children and Adults,SOUTHWARK PARK PRIMARY SCHOOL,"12,582.00",NURSERY ED GRANT 3 AND 4 YR OLDS,EARLY YEARS - 3 AND 4 YEAR OLDS,5902607749,5001000062
20.11.2023,Children and Adults,OCEAN COMMUNITY SERVICES LTD,"12,541.60",LD LTS 18-64,RESIDENTIAL CARE,2103787408,1000050124
21.11.2023,Corporate,SOUTHWARK INCLUSIVE LEARNING SERVICE,"12,525.37",EDUCATION VAT INPUTS,VAT CONTROL ACCOUNT,2103788062,5001000105
21.11.2023,Children and Adults,BELLENDEN PRIMARY SCHOOL,"12,497.00",TEACHERS PAY GRANT,SCHOOLS CAPITATION,2103787939,5001000007
20.11.2023,Children and Adults,FERRY CARE LTD,"12,472.96",LD LTS 18-64,RESIDENTIAL CARE,2103787578,1000041775
30.11.2023,Finance,WESTON WILLIAMSON + PARTNERS LLP,"12,450.00",22 SHAND STREET,PROFESSIONAL FEES,5902610777,1000046660
08.11.2023,Children and Adults,THE ST THOMAS THE APOSTLE COLLEGE,"12,449.33",YPLA SCHL SIXTH FORM,SCHOOLS CAPITATION,2103780908,5001000074
27.11.2023,Children and Adults,BROADLANDS HALL LIMITED,"12,425.00",DISABILITIES LAC,EXTERNAL AGENCIES AND BODIES,2103789113,1000084303
20.11.2023,Children and Adults,AGINCARE (SOUTHWARK) LIMITED,"12,414.28",PHY STS 18-64,HOMECARE - IC,2103787224,1000089635
21.11.2023,Children and Adults,ST PETERS CE SCHOOL,"12,389.00",TEACHERS PAY GRANT,SCHOOLS CAPITATION,2103787981,5001000083
30.11.2023,Environment Neighbourhoods and Growth,KENT COUNTY COUNCIL - LASER,"12,388.65",SDM BUDGET,ELECTRICITY,5902610078,1000012926
17.11.2023,Housing,CERTSURE LLP,"12,375.00",ENG CONTRACTS,CONSULTANTS SERVICES,5902609221,1706379
21.11.2023,Corporate,PHOENIX PRIMARY SCHOOL,"12,371.89",EDUCATION VAT INPUTS,VAT CONTROL ACCOUNT,2103788051,5001000032
26.11.2023,Environment Neighbourhoods and Growth,KENT COUNTY COUNCIL - LASER,"12,341.53",PECKHAM PULSE LEISURE CENTRE,GAS,5902609462,1000012926
08.11.2023,Children and Adults,ST DAVIDS COLLEGE,"12,341.00",FURTHER EDUCATION,STATEMENTED FEES,2103780974,1000052749
21.11.2023,Children and Adults,ROBERT BROWNING PRIMARY SCHOOL,"12,339.00",TEACHERS PAY GRANT,SCHOOLS CAPITATION,2103787956,5001000057
20.11.2023,Children and Adults,COUNTRY COURT CARE HOMES 2 LTD,"12,335.14",PHY LTS 65+,NURSING PLACEMENTS FEES,2103787445,1000080172
10.11.2023,Children and Adults,CORAM ACADEMY LTD,"12,287.04",ADOPT LONDON SOUTH,CAB FARES,5902607883,1000076627
02.11.2023,Children and Adults,ROCKINGHAM COMMUNITY DAY NURSERY,"12,281.70",NURSERY ED GRANT 3 AND 4 YR OLDS,GRANTS,2103778275,1095826
23.11.2023,Governance and Assurance,INNER CIRCLE CONSULTING,"12,272.16",HR PAYROLL COSTS,PROFESSIONAL FEES,5902608836,1000080627
20.11.2023,Children and Adults,KISIMUL GROUP LTD,"12,271.44",LD LTS 18-64,SUPPORTED LIVING,2103786628,1000079657
30.11.2023,Children and Adults,ORCHARD HILL COLLEGE,"12,268.62",SPECIALIST POST-16,STATEMENTED FEES,2103792520,1000070978
02.11.2023,Finance,INVUSE LIMITED,"12,256.00",CAPITAL PS (STRAT SERV),ICT ACQUISITION,5902606315,1000087372
28.11.2023,Housing,CITYGLEN LTD,"12,245.90",NIGHTLY TA (NSC),EXTERNAL AGENCIES AND BODIES,5902610454,1000026239
17.11.2023,Environment Neighbourhoods and Growth,INDO LIGHTING LTD,"12,225.00",PUBLIC LIGHTING,MATERIALS,5902609248,1000063084
20.11.2023,Children and Adults,AGINCARE (SOUTHWARK) LIMITED,"12,214.28",PHY LTS 65+,RESIDENTIAL CARE,2103787022,1000089635
21.11.2023,Children and Adults,ST JOSEPHS CATHOLIC PRIMARY SCHOOL,"12,192.00",TEACHERS PAY GRANT,SCHOOLS CAPITATION,2103787976,5001000078
20.11.2023,Children and Adults,REESON CARE HOMES LTD,"12,141.04",LD LTS 18-64,SUPPORTED LIVING,2103787681,1000084007
30.11.2023,Finance,VIRGIN MEDIA,"12,126.70",IT MANAGEMENT,COMMS & COMPUTING CONTRACT CHARGES,5902610790,1000026457
15.11.2023,Housing,HANSEN PALOMARES SOLICITORS,"12,083.33",DISREPAIR,PAYMENTS FOR LEGAL SERVICES,2103784333,11053592
21.11.2023,Children and Adults,TOWER BRIDGE PRIMARY SCHOOL,"12,053.00",TEACHERS PAY GRANT,SCHOOLS CAPITATION,2103787959,5001000095
17.11.2023,Children and Adults,PENDERELS TRUST LTD,"12,016.32",PHB - SEL ICB,RECOVERABLE COSTS INCL. HEALTH,2103785817,1000075856
17.11.2023,Children and Adults,REDACTED PERSONAL DATA,"12,010.80",CHILDREN PHB - SEL ICB,PAYMENTS TO CLIENTS (DIRECT PAYMENTS),2103785162,1000076363
06.11.2023,Housing,CALFORD SEADEN LLP,"12,000.00",CAPITAL PS (HRA),CONSTRUCTION FEES - EMPLOYERS AGENT,5902606716,1061592
14.11.2023,Children and Adults,ROADWORKS MEDIA,"12,000.00",YJS MGMT & SUPPORT,EXTERNAL AGENCIES AND BODIES,5902608331,1000081375
21.11.2023,Environment Neighbourhoods and Growth,BLOOM PROCUREMENT SERVICES LTD,"12,000.00",CAPITAL PS (REGEN),CONSTRUCTION FEES - ENGINEER,5902609490,1000082531
10.11.2023,Children and Adults,RYE OAK PRIMARY SCHOOL,"11,978.00",NURSERY ED GRANT 3 AND 4 YR OLDS,EARLY YEARS - 3 AND 4 YEAR OLDS,5902607737,5001000059
10.11.2023,Children and Adults,CAMELOT PRIMARY SCHOOL,"11,964.00",NURSERY ED GRANT 3 AND 4 YR OLDS,EARLY YEARS - 3 AND 4 YEAR OLDS,5902607626,5001000014
17.11.2023,Housing,ARCHITECTURAL DECORATORS LTD,"11,959.64",CAPITAL PS (HRA),CONSTRUCTION MAIN CONTRACT -CERTIFICATED,2103784785,3000001065
08.11.2023,Children and Adults,PHOENIX PRIMARY SCHOOL,"11,953.00",SPORTS FUNDING,SCHOOLS CAPITATION,2103780936,5001000032
30.11.2023,Corporate,SUSTAINABLE ENERGY LIMITED,"11,904.00",VAT INPUTS - ADJUSTMENTS,VAT CONTROL ACCOUNT,2103792586,1000090043
30.11.2023,Housing,HARROW GREEN LTD,"11,885.13",RESIDENT SERVICES BUSINESS SUPPORT,REMOVAL EXPENSES,5902610461,1000076673
21.11.2023,Children and Adults,CATHEDRAL SCHOOL OF ST SAVIOUR & MARY,"11,884.00",TEACHERS PAY GRANT,SCHOOLS CAPITATION,2103787982,5001000088
21.11.2023,Children and Adults,FRIARS PRIMARY (FOUNDATION) SCHOOL,"11,867.00",TEACHERS PAY GRANT,SCHOOLS CAPITATION,2103787989,5001000033
13.11.2023,Children and Adults,BREMNER AND BREMNER CO LTD,"11,791.00",PUBLIC HEALTH FHSM,EXTERNAL AGENCIES AND BODIES,5902608207,1000088430
10.11.2023,Environment Neighbourhoods and Growth,SALIX MECHANICAL SERVICES LLP,"11,778.00",CAPITAL PS (LEISURE),"PLANT, MACHINERY & EQUIPMENT ACQUISITION",5902607080,1000088961
09.11.2023,Housing,CALFORD SEADEN LLP,"11,777.17",CAPITAL PS (HRA),CONSTRUCTION FEES - EMPLOYERS AGENT,5902606187,1061592
20.11.2023,Children and Adults,ALWAYS INCLUSIVE LTD,"11,760.00",LD LTS 18-64,SUPPORTED LIVING,2103786682,1000088268
10.11.2023,Housing,IGLOO REGENERATION LIMITED,"11,755.13",CAPITAL PS (HRA),CONSTRUCTION FEES,5902606890,1000083117
08.11.2023,Children and Adults,BESSEMER GRANGE PRIMARY SCHOOL,"11,754.00",SPORTS FUNDING,SCHOOLS CAPITATION,2103780940,5001000009
21.11.2023,Children and Adults,ST JOSEPHS CATHOLIC SCHOOL,"11,748.00",TEACHERS PAY GRANT,SCHOOLS CAPITATION,2103787977,5001000076
20.11.2023,Children and Adults,WELLSPRING CARE HOMES LIMITED,"11,702.08",LD LTS 18-64,SUPPORTED LIVING,2103787202,1000088216
24.11.2023,Finance,SAPPHIRE CONSULTANCY LIMITED,"11,700.00",PROJECTS,OTHER CONTRACTORS,5902610087,1000089101
25.11.2023,Environment Neighbourhoods and Growth,TYCO INTEGRATED FIRE & SECURITY,"11,692.66",TOWN CENTRE CCTV,EQUIPMENT PURCHASE & REPAIR,5902609981,1000077948
20.11.2023,Children and Adults,AGINCARE (SOUTHWARK) LIMITED,"11,674.37",PHY LTS 65+,NURSING PLACEMENTS FEES,2103786669,1000089635
30.11.2023,Environment Neighbourhoods and Growth,F M CONWAY LTD,"11,670.40",CAPITAL PS (LEISURE),CONSTRUCTION,2103792002,4001384
27.11.2023,Children and Adults,BRITISH TELECOM PLC,"11,668.00",CAPITAL PS (EDUCATION),CONSTRUCTION FEES  - EXTERNAL,5902610263,1756938
20.11.2023,Children and Adults,CARLTON NURSING HOMES LTD,"11,647.36",LD LTS 18-64,RESIDENTIAL CARE,2103787106,1000070431
21.11.2023,Housing,AJM ADAPTIONS LTD,"11,647.00",CAPITAL PS (HOUSING GF),CAPITAL GRANTS,5902609606,1000080297
08.11.2023,Children and Adults,CAMELOT PRIMARY SCHOOL,"11,643.00",SPORTS FUNDING,SCHOOLS CAPITATION,2103780914,5001000014
11.11.2023,Environment Neighbourhoods and Growth,CYCLEHOOP LTD,"11,643.00",CAPITAL PS (LEISURE),CONSTRUCTION,5902607107,1000057894
22.11.2023,Environment Neighbourhoods and Growth,CYCLEHOOP LTD,"11,643.00",CAPITAL PS (LEISURE),CONSTRUCTION,5902609683,1000057894
22.11.2023,Environment Neighbourhoods and Growth,CYCLEHOOP LTD,"11,643.00",CAPITAL PS (LEISURE),CONSTRUCTION,5902609685,1000057894
22.11.2023,Environment Neighbourhoods and Growth,CYCLEHOOP LTD,"11,643.00",CAPITAL PS (LEISURE),CONSTRUCTION,5902609690,1000057894
30.11.2023,Children and Adults,ORCHARD HILL COLLEGE,"11,631.90",SPECIALIST POST-16,STATEMENTED FEES,2103792541,1000070978
20.11.2023,Children and Adults,VOYAGE CARE (MOUNTEARL),"11,622.12",LD LTS 18-64,RESIDENTIAL CARE,2103787233,1000078173
21.11.2023,Children and Adults,CHARLOTTE  SHARMAN PRIMARY SCHOOL,"11,609.00",TEACHERS PAY GRANT,SCHOOLS CAPITATION,2103787990,5001000016
08.11.2023,Children and Adults,GOODRICH PRIMARY SCHOOL,"11,608.00",SPORTS FUNDING,SCHOOLS CAPITATION,2103780919,5001000028
20.11.2023,Children and Adults,THE CHILTERNS - OPTIMA CARE,"11,602.92",LD LTS 18-64,RESIDENTIAL CARE,2103787409,1000042209
03.11.2023,Environment Neighbourhoods and Growth,CBS MAINTENANCE SERVICES LTD,"11,600.00",CAPITAL PS (REGEN),CONSTRUCTION FEES  - EXTERNAL,2103779349,3000001518
21.11.2023,Children and Adults,SNOWSFIELDS PRIMARY SCHOOL,"11,591.00",TEACHERS PAY GRANT,SCHOOLS CAPITATION,2103787957,5001000061
20.11.2023,Children and Adults,GARLAND LODGE LTD,"11,589.76",LD LTS 18-64,SUPPORTED LIVING,2103786552,1000084016
08.11.2023,Children and Adults,IVYDALE PRIMARY SCHOOL,"11,579.00",SPORTS FUNDING,SCHOOLS CAPITATION,2103780924,5001000038
21.11.2023,Children and Adults,ST GEORGES CE SCHOOL,"11,564.00",TEACHERS PAY GRANT,SCHOOLS CAPITATION,2103787972,5001000069
10.11.2023,Children and Adults,FAITHFUL & GOULD,"11,552.76",CAPITAL PS (SOC SERV),CONSTRUCTION FEES,5902606484,1000061390
24.11.2023,Children and Adults,FAITHFUL & GOULD,"11,552.76",CAPITAL PS (SOC SERV),CONSTRUCTION FEES,5902608925,1000061390
16.11.2023,Housing,LONDON HOUNSLOW LTD,"11,550.00",NIGHTLY TA (NSC),EXTERNAL AGENCIES AND BODIES,5902608902,1000089873
21.11.2023,Children and Adults,KEYWORTH PRIMARY SCHOOL,"11,548.68",NURSERY ED GRANT 2YR OLDS,EARLY YEARS - 2 YEAR OLD,2103787915,5001000041
08.11.2023,Children and Adults,DULWICH WOOD PRIMARY SCHOOL,"11,543.00",MATERNITY COVER,SCHOOLS CAPITATION,2103780904,5001000042
21.11.2023,Corporate,SNOWSFIELDS PRIMARY SCHOOL,"11,533.43",EDUCATION VAT INPUTS,VAT CONTROL ACCOUNT,2103788070,5001000061
23.11.2023,Housing,"THE SALVATION ARMY, WILLIAM BOOTH NURSERY & AFTER SCHOOL CLUB","11,508.33",RESIDENTS PARTICIPATION FUND,GRANTS,5902610014,1000031051
10.11.2023,Children and Adults,ST JOSEPHS CATHOLIC SCHOOL,"11,500.00",LBS MAINSTREAM,HIGH NEEDS - TOP UP FUNDING,5902607789,5001000076
02.11.2023,Children and Adults,FIRST CHOICE DAY NURSERY,"11,494.80",NURSERY ED GRANT 3 AND 4 YR OLDS,GRANTS,2103778204,1000075368
17.11.2023,Children and Adults,SUPREME EDUCATION LTD,"11,489.00",ALTERNATIVE PROVISION,EXTERNAL AGENCIES AND BODIES,5902609223,1000089065
20.11.2023,Children and Adults,INSIGHT,"11,458.64",LD LTS 18-64,RESIDENTIAL CARE,2103787134,1825618
21.11.2023,Housing,ACUITY RESEARCH & PRACTICE LTD,"11,457.00",HOUSING STRATEGY (HRA),OTHER CONTRACTORS,5902609575,1000090299
26.11.2023,Housing,PEABODY TRUST,"11,447.81",CAPITAL PS (HOUSING GF),CAPITAL GRANTS,5902609545,1000051027
20.11.2023,Children and Adults,OPTIMA CARE (SHINE) LONDON LTD,"11,444.80",LD LTS 18-64,SUPPORTED LIVING,2103786546,1000079614
30.11.2023,Environment Neighbourhoods and Growth,BARCHAM TREES PLC,"11,441.00",CAPITAL PS (LEISURE),CONSTRUCTION FEES,5902610034,11254891
09.11.2023,Housing,GOLDSTONE ESTATES LTD,"11,437.20",NIGHTLY TA (NSC),EXTERNAL AGENCIES AND BODIES,5902607341,1000076548
16.11.2023,Children and Adults,CHARLES DICKENS PRIMARY SCHOOL,"11,425.79",AC & FREE - MSTREAM,STATEMENTED FEES,2103784701,1000085158
23.11.2023,DSO,ARMINA LTD,"11,424.63",TASK TEAM & HAT,OTHER CONTRACTORS,2103788574,3000002121
08.11.2023,Children and Adults,JOHN RUSKIN PRIMARY SCHOOL,"11,416.00",SPORTS FUNDING,SCHOOLS CAPITATION,2103780925,5001000040
30.11.2023,Housing,VIGILANT SECURITY SERVICES UK,"11,392.00",DAVID BARKER HOSTEL,SECURITY SERVICES,5902610858,1000090073
10.11.2023,Housing,ARJ CONSTRUCTION LTD,"11,386.65",CAPITAL PS (HRA),CONSTRUCTION MAIN CONTRACT,2103779219,3000002232
01.11.2023,Housing,ARJ CONSTRUCTION LTD,"11,386.65",CAPITAL PS (HRA),CONSTRUCTION MAIN CONTRACT,5902606413,3000002232
02.11.2023,Children and Adults,PLAYDAYS UK LTD,"11,371.20",NURSERY ED GRANT 3 AND 4 YR OLDS,GRANTS,2103778279,11210767
28.11.2023,Children and Adults,JUDITH KERR PRIMARY SCHOOL,"11,369.18",AC & FREE - MSTREAM,STATEMENTED FEES,2103789511,1000073200
08.11.2023,Children and Adults,ST ANTHONYS RC SCHOOL,"11,334.00",SPORTS FUNDING,SCHOOLS CAPITATION,2103780960,5001000064
21.11.2023,Children and Adults,GOODRICH PRIMARY SCHOOL,"11,324.98",NURSERY ED GRANT 3 AND 4 YR OLDS,EARLY YEARS - 3 AND 4 YEAR OLDS,2103787925,5001000028
08.11.2023,Children and Adults,CRAWFORD PRIMARY SCHOOL,"11,323.00",SPORTS FUNDING,SCHOOLS CAPITATION,2103780917,5001000024
20.11.2023,Children and Adults,BETHAM SUPPORT LIVING LTD,"11,315.20",LD LTS 18-64,SUPPORTED LIVING,2103787645,1000087649
08.11.2023,Children and Adults,MICHAEL FARADAY PRIMARY SCHOOL,"11,299.00",SPORTS FUNDING,SCHOOLS CAPITATION,2103780928,5001000048
02.11.2023,Housing,EQUANS REGENERATION (APOLLO) LTD,"11,294.80",CAPITAL PS (HRA),CONSTRUCTION MAIN CONTRACT -CERTIFICATED,2103778355,4000449
08.11.2023,Children and Adults,ALBION PRIMARY SCHOOL,"11,282.00",SPORTS FUNDING,SCHOOLS CAPITATION,2103780912,5001000000
08.11.2023,Children and Adults,DULWICH WOOD PRIMARY SCHOOL,"11,282.00",SPORTS FUNDING,SCHOOLS CAPITATION,2103780927,5001000042
21.11.2023,Corporate,CHERRY GARDEN SCHOOL,"11,257.47",EDUCATION VAT INPUTS,VAT CONTROL ACCOUNT,2103788037,5001000020
10.11.2023,Children and Adults,BRUNSWICK PARK PRIMARY SCHOOL,"11,254.00",NURSERY ED GRANT 3 AND 4 YR OLDS,EARLY YEARS - 3 AND 4 YEAR OLDS,5902607620,5001000013
08.11.2023,Children and Adults,HEBER PRIMARY SCHOOL,"11,253.00",SPORTS FUNDING,SCHOOLS CAPITATION,2103780921,5001000035
20.11.2023,Children and Adults,WELLSPRING CARE HOMES LIMITED,"11,252.00",LD LTS 18-64,SUPPORTED LIVING,2103787580,1000088216
10.11.2023,Children and Adults,CAMELOT PRIMARY SCHOOL,"11,250.00",LBS MAINSTREAM,HIGH NEEDS - TOP UP FUNDING,5902607629,5001000014
11.11.2023,Housing,INTERIM PARTNERS LIMITED,"11,250.00",AM TRANSFORMATION COSTS,CONSULTANTS SERVICES,5902607943,1000089772
16.11.2023,Housing,INTERIM PARTNERS LIMITED,"11,250.00",REPAIRS OPERATIONS,CONSULTANTS SERVICES,5902608949,1000089772
08.11.2023,Children and Adults,SOUTHWARK PARK PRIMARY SCHOOL,"11,212.00",SPORTS FUNDING,SCHOOLS CAPITATION,2103780933,5001000062
20.11.2023,Children and Adults,OPTIMA CARE (SHINE) LONDON LTD,"11,198.84",LD LTS 18-64,SUPPORTED LIVING,2103787418,1000079614
20.11.2023,Children and Adults,KARE HEALTHCARE LTD,"11,198.72",LD LTS 18-64,SUPPORTED LIVING,2103787204,1000089212
20.11.2023,Children and Adults,EXPEDITIONS LIVING LTD,"11,195.32",PHY LTS 18-64,SUPPORTED LIVING,2103787457,1000090090
21.11.2023,Corporate,BRUNSWICK PARK PRIMARY SCHOOL,"11,186.04",EDUCATION VAT INPUTS,VAT CONTROL ACCOUNT,2103788010,5001000013
08.11.2023,Housing,LAMBERT SMITH HAMPTON GROUP LTD,"11,183.00",TECHNICAL SUPPORT,PROFESSIONAL FEES,5902607250,1000060045
08.11.2023,Children and Adults,ST JAMES CE PRIMARY SCHOOL,"11,177.00",SPORTS FUNDING,SCHOOLS CAPITATION,2103780949,5001000070
20.11.2023,Children and Adults,BEECHCROFT SUPPORT LIMITED,"11,168.28",LD LTS 18-64,SUPPORTED LIVING,2103787424,1000085412
17.11.2023,Children and Adults,REDACTED PERSONAL DATA,"11,162.76",MEM LTS 18-64,PAYMENTS TO CLIENTS (DIRECT PAYMENTS),2103785483,1000087779
06.11.2023,Environment Neighbourhoods and Growth,WCS ENVIRONMENTAL LIMITED,"11,156.50",LEISURE CENTRAL COST,BUILDING R&M,5902606625,1000089759
21.11.2023,Corporate,ST SAVIOURS & ST OLAVES SCHOOL,"11,133.17",EDUCATION VAT INPUTS,VAT CONTROL ACCOUNT,2103788075,5001000084
20.11.2023,Children and Adults,SALUTEM SHARED SERVICES II LIMITED,"11,113.20",LD LTS 18-64,SUPPORTED LIVING,2103787496,1000088055
17.11.2023,Children and Adults,REDACTED PERSONAL DATA,"11,100.00",LD LTS 18-64,PAYMENTS TO CLIENTS (DIRECT PAYMENTS),2103785526,1000074131
08.11.2023,Children and Adults,ALFRED SALTER PRIMARY SCHOOL,"11,089.00",SPORTS FUNDING,SCHOOLS CAPITATION,2103780938,5001000005
08.11.2023,Children and Adults,ST JOHNS & ST CLEMENTS CE SCHOOL,"11,089.00",SPORTS FUNDING,SCHOOLS CAPITATION,2103780950,5001000073
10.11.2023,Children and Adults,ST GEORGES CE SCHOOL,"11,083.00",LBS MAINSTREAM,HIGH NEEDS - TOP UP FUNDING,5902607766,5001000069
10.11.2023,Children and Adults,HEBER PRIMARY SCHOOL,"11,081.00",NURSERY ED GRANT 3 AND 4 YR OLDS,EARLY YEARS - 3 AND 4 YEAR OLDS,5902607678,5001000035
20.11.2023,Children and Adults,RICHARDSON DUSTON LIMITED,"11,070.52",PHY LTS 18-64,RESIDENTIAL CARE,2103786762,1000089236
21.11.2023,Corporate,ROBERT BROWNING PRIMARY SCHOOL,"11,061.37",EDUCATION VAT INPUTS,VAT CONTROL ACCOUNT,2103788071,5001000057
21.11.2023,Housing,BRIDGEWATER ROOFING CONTRACTORS LTD,"11,046.52",MAJOR REPAIRS,BUILDING R&M,2103787876,3000001482
21.11.2023,Children and Adults,HOLLYDALE PRIMARY SCHOOL,"11,027.00",TEACHERS PAY GRANT,SCHOOLS CAPITATION,2103787948,5001000036
08.11.2023,Children and Adults,OLIVER GOLDSMITH PRIMARY SCHOOL,"11,008.00",SPORTS FUNDING,SCHOOLS CAPITATION,2103780939,5001000051
08.11.2023,Children and Adults,BRUNSWICK PARK PRIMARY SCHOOL,"11,008.00",SPORTS FUNDING,SCHOOLS CAPITATION,2103780941,5001000013
10.11.2023,Environment Neighbourhoods and Growth,OVE ARUP & PARTNERS LTD,"11,000.00",CAPITAL PS (REGEN),CONSTRUCTION MAIN CONTRACT,5902606730,1000066606
10.11.2023,Children and Adults,JOHN RUSKIN PRIMARY SCHOOL,"11,000.00",LBS RB / SEN UNIT,HIGH NEEDS - TOP UP FUNDING,5902607695,5001000040
30.11.2023,Housing,TROWERS & HAMLINS LLP,"11,000.00",CAPITAL PS (HRA),CONSTRUCTION FEES - LEGAL,5902610897,1000016239
16.11.2023,Children and Adults,PROSPERO RECRUITMENT LTD,"10,996.75",VIRTUAL SCHOOL PP,EXTERNAL AGENCIES AND BODIES,5902608844,1000082492
21.11.2023,Corporate,HEBER PRIMARY SCHOOL,"10,996.59",EDUCATION VAT INPUTS,VAT CONTROL ACCOUNT,2103788004,5001000035
17.11.2023,Environment Neighbourhoods and Growth,GLENDALE COUNTRYSIDE LTD,"10,983.17",TREES TERM CONTRACT,TREE MAINTENANCE,5902608450,1000070980
08.11.2023,Children and Adults,KEYWORTH PRIMARY SCHOOL,"10,943.00",SPORTS FUNDING,SCHOOLS CAPITATION,2103780926,5001000041
08.11.2023,Children and Adults,ST FRANCIS'S RC PRIMARY SCHOOL,"10,903.00",SPORTS FUNDING,SCHOOLS CAPITATION,2103780946,5001000067
06.11.2023,Children and Adults,CAMPBELL HARRIS TUTORS LTD,"10,890.50",AP & HOSPITAL SCHLS,STATEMENTED FEES,2103780126,1000082646
08.11.2023,Children and Adults,GRANGE PRIMARY SCHOOL,"10,879.00",SPORTS FUNDING,SCHOOLS CAPITATION,2103780920,5001000029
08.11.2023,Children and Adults,ENGLISH MARTYRS RC PRIMARY SCHOOL,"10,873.00",SPORTS FUNDING,SCHOOLS CAPITATION,2103780944,5001000030
17.11.2023,Environment Neighbourhoods and Growth,FABRIKAT (NOTTINGHAM) LTD,"10,868.00",PUBLIC LIGHTING,MATERIALS,5902609234,1036223
21.11.2023,Children and Adults,COMBER GROVE PRIMARY SCHOOL,"10,856.00",TEACHERS PAY GRANT,SCHOOLS CAPITATION,2103787942,5001000022
11.11.2023,Housing,CROWN HOUSING LTD,"10,850.00",TA PLACEMENTS,EXTERNAL AGENCIES AND BODIES,5902607110,1000075070
08.11.2023,Children and Adults,ROTHERHITHE PRIMARY SCHOOL,"10,821.00",SPORTS FUNDING,SCHOOLS CAPITATION,2103780931,5001000058
21.11.2023,Corporate,COMBER GROVE PRIMARY SCHOOL,"10,813.28",EDUCATION VAT INPUTS,VAT CONTROL ACCOUNT,2103788072,5001000022
15.11.2023,Children and Adults,TIGERS CHILDCARE LTD,"10,805.00",NURSERY ED GRANT 3 AND 4 YR OLDS,GRANTS,2103784454,1000084290
18.11.2023,Finance,DSI BILLING SERVICES LTD,"10,784.90",ADMINISTRATIVE SUPPORT,POSTAGES,5902608326,1000058640
21.11.2023,Corporate,ST FRANCIS'S RC PRIMARY SCHOOL,"10,769.90",EDUCATION VAT INPUTS,VAT CONTROL ACCOUNT,2103788047,5001000067
20.11.2023,Children and Adults,BEECHCROFT SUPPORT LIMITED,"10,767.12",LD LTS 18-64,SUPPORTED LIVING,2103787423,1000085412
08.11.2023,Children and Adults,THE NEW SCHOOL,"10,758.33",NMSS/ INDEP SPECIAL,STATEMENTED FEES,2103780975,1000088932
27.11.2023,Housing,VULNERABILITY REGISTRATION SERVICE,"10,750.00",OUT OF HOURS TEAM,TRAINING,5902610288,1000089712
20.11.2023,Children and Adults,HC-ONE LTD (TOWER BRIDGE CARE HOME),"10,738.41",PHY LTS 65+,NURSING PLACEMENTS FEES,2103786718,1000067670
02.11.2023,Children and Adults,LITTLE JUNGLE (U.K.) LIMITED,"10,737.68",NURSERY ED GRANT 3 AND 4 YR OLDS,GRANTS,2103778254,1000067064
30.11.2023,Housing,VIGILANT SECURITY SERVICES UK,"10,736.00",MANOR PLACE HOSTEL,SECURITY SERVICES,5902610876,1000090073
20.11.2023,Children and Adults,FIRST CARE LODGE,"10,734.88",LD LTS 18-64,SUPPORTED LIVING,2103787468,1000084196
22.11.2023,Housing,J & M OASIS LTD,"10,732.20",NIGHTLY TA (NSC),EXTERNAL AGENCIES AND BODIES,5902609810,1000072169
08.11.2023,Children and Adults,DOG KENNEL HILL PRIMARY SCHOOL,"10,710.00",SPORTS FUNDING,SCHOOLS CAPITATION,2103780918,5001000025
30.11.2023,Housing,REDACTED PERSONAL DATA,"10,699.00",NIGHTLY TA (NSC),EXTERNAL AGENCIES AND BODIES,5902610814,1000061134
08.11.2023,Children and Adults,RIVERSIDE PRIMARY SCHOOL,"10,698.00",SPORTS FUNDING,SCHOOLS CAPITATION,2103780929,5001000056
20.11.2023,Children and Adults,KARE HEALTHCARE LTD,"10,674.56",LD LTS 18-64,SUPPORTED LIVING,2103787646,1000089212
21.11.2023,Corporate,SOUTHWARK PARK PRIMARY SCHOOL,"10,672.77",EDUCATION VAT INPUTS,VAT CONTROL ACCOUNT,2103788045,5001000062
16.11.2023,Children and Adults,MILLWALL COMMUNITY TRUST,"10,656.00",HOLIDAY ACTIVITIES & FOOD,EXTERNAL AGENCIES AND BODIES,5902607326,11011221
06.11.2023,Environment Neighbourhoods and Growth,KENT COUNTY COUNCIL - LASER,"10,633.66",CAMBERWELL LEISURE CENTRE,GAS,5902606582,1000012926
08.11.2023,Children and Adults,ST JOSEPHS RC JUNIOR  SCHOOL,"10,628.00",SPORTS FUNDING,SCHOOLS CAPITATION,2103780961,5001000017
20.11.2023,Children and Adults,LONDON CYRENIANS HOUSING LTD,"10,608.00",LD LTS 18-64,SUPPORTED LIVING,2103786973,1000078600
29.11.2023,Housing,SAFEGUARDS SECURITY SERVICES LTD,"10,602.00",CAPITAL PS (HRA),CONSTRUCTION SITE COSTS,5902610659,1000087544
06.11.2023,Environment Neighbourhoods and Growth,CONSTELLIA PUBLIC LIMITED,"10,598.76",PECKHAM PULSE LEISURE CENTRE,PREMISES CLEANING,5902606760,1000088137
06.11.2023,Environment Neighbourhoods and Growth,CONSTELLIA PUBLIC LIMITED,"10,598.76",PECKHAM PULSE LEISURE CENTRE,PREMISES CLEANING,5902606761,1000088137
06.11.2023,Environment Neighbourhoods and Growth,CONSTELLIA PUBLIC LIMITED,"10,598.76",PECKHAM PULSE LEISURE CENTRE,PREMISES CLEANING,5902606762,1000088137
27.11.2023,Environment Neighbourhoods and Growth,CONSTELLIA PUBLIC LIMITED,"10,598.76",PECKHAM PULSE LEISURE CENTRE,PREMISES CLEANING,5902609858,1000088137
30.11.2023,Children and Adults,ORCHARD HILL COLLEGE,"10,541.53",SPECIALIST POST-16,STATEMENTED FEES,2103792546,1000070978
20.11.2023,Children and Adults,OPTIMA CARE (SHINE) LONDON LTD,"10,535.88",LD LTS 18-64,SUPPORTED LIVING,2103786714,1000079614
20.11.2023,Children and Adults,AGINCARE (SOUTHWARK) LIMITED,"10,528.57",PHY STS 65+,HOMECARE - IC,2103787460,1000089635
08.11.2023,Children and Adults,ILDERTON PRIMARY SCHOOL,"10,523.00",SPORTS FUNDING,SCHOOLS CAPITATION,2103780923,5001000037
02.11.2023,Environment Neighbourhoods and Growth,FACULTATIEVE TECHNOLOGIES LTD,"10,514.57",CREMATORIUM,PLANNED MAINTENANCE,5902606422,1000077525
08.11.2023,Children and Adults,RYE OAK PRIMARY SCHOOL,"10,483.00",SPORTS FUNDING,SCHOOLS CAPITATION,2103780959,5001000059
27.11.2023,Environment Neighbourhoods and Growth,DRAINLINE CONSTRUCTION LTD,"10,474.00",CAPITAL PS (REGEN),CONSTRUCTION SITE COSTS,2103789123,3000002074
30.11.2023,Environment Neighbourhoods and Growth,TRANSPORT FOR LONDON,"10,470.00",COMMERCIAL VEH CTRL A/C,CONGESTION CHARGE,5902610978,1000023986
20.11.2023,Children and Adults,ROYAL HOSPITAL FOR NEURODISABILITY,"10,463.12",PHY LTS 65+,NURSING PLACEMENTS FEES,2103786833,1010365
11.11.2023,Housing,CHRIS DAVIS CONSULTANCY LTD,"10,450.00",CAPITAL PS (HRA),CONSTRUCTION,5902606514,1000084202
15.11.2023,Housing,CONTAKT LTD,"10,450.00",ENG CONTRACTS,PROFESSIONAL FEES,5902608661,1000089730
30.11.2023,Environment Neighbourhoods and Growth,TRANSPORT FOR LONDON,"10,440.00",COMMERCIAL VEH CTRL A/C,CONGESTION CHARGE,5902610980,1000023986
20.11.2023,Children and Adults,BOUGHTON GREEN ROAD LIMITED,"10,427.64",PHY LTS 18-64,NURSING PLACEMENTS FEES,2103787432,1000089115
21.11.2023,Corporate,ST JAMES CE PRIMARY SCHOOL,"10,424.85",EDUCATION VAT INPUTS,VAT CONTROL ACCOUNT,2103788088,5001000070
21.11.2023,Children and Adults,ST GEORGES RC SCHOOL,"10,413.00",TEACHERS PAY GRANT,SCHOOLS CAPITATION,2103787973,5001000068
20.11.2023,Children and Adults,LOVING CARE LTD,"10,405.00",LD LTS 18-64,RESIDENTIAL CARE,2103787242,1000082873
27.11.2023,Housing,AJM ADAPTIONS LTD,"10,375.00",CAPITAL PS (HOUSING GF),CAPITAL GRANTS,5902610274,1000080297
20.11.2023,Children and Adults,INSIGHT,"10,368.64",LD LTS 18-64,RESIDENTIAL CARE,2103787104,1825618
08.11.2023,Children and Adults,ST JAMES THE GREAT RC SCHOOL,"10,366.00",SPORTS FUNDING,SCHOOLS CAPITATION,2103780945,5001000071
08.11.2023,Children and Adults,CRAMPTON PRIMARY SCHOOL,"10,354.00",SPORTS FUNDING,SCHOOLS CAPITATION,2103780916,5001000023
08.11.2023,Children and Adults,CATHEDRAL SCHOOL OF ST SAVIOUR & MARY,"10,348.00",SPORTS FUNDING,SCHOOLS CAPITATION,2103780957,5001000088
08.11.2023,Children and Adults,BOUCHER C OF E PRIMARY SCHOOL,"10,343.00",SPORTS FUNDING,SCHOOLS CAPITATION,2103780942,5001000011
08.11.2023,Children and Adults,ST JOSEPHS CATHOLIC PRIMARY SCHOOL,"10,343.00",SPORTS FUNDING,SCHOOLS CAPITATION,2103780951,5001000078
13.11.2023,Housing,SECURENT LTD,"10,323.00",NIGHTLY TA (NSC),EXTERNAL AGENCIES AND BODIES,5902608079,1000079400
08.11.2023,Children and Adults,PILGRIM'S WAY PRIMARY SCHOOL,"10,319.00",SPORTS FUNDING,SCHOOLS CAPITATION,2103780937,5001000054
08.11.2023,Children and Adults,ST JOHNS RC PRIMARY SCHOOL,"10,319.00",SPORTS FUNDING,SCHOOLS CAPITATION,2103780958,5001000075
21.11.2023,Corporate,ST ANTHONYS RC SCHOOL,"10,314.42",EDUCATION VAT INPUTS,VAT CONTROL ACCOUNT,2103788039,5001000064
02.11.2023,Children and Adults,JOYFUL STAR NURSERY,"10,306.80",NURSERY ED GRANT 3 AND 4 YR OLDS,GRANTS,2103778247,1000074638
20.11.2023,Children and Adults,WELLSPRING CARE HOMES LIMITED,"10,296.00",LD LTS 18-64,SUPPORTED LIVING,2103786576,1000088216
08.11.2023,Children and Adults,DULWICH VILLAGE CE INFANTS SCHOOL,"10,284.00",SPORTS FUNDING,SCHOOLS CAPITATION,2103780943,5001000027
15.11.2023,Suspense,LONDON TOOLS LIMITED,"10,275.00",SUSPENSE ACCOUNT (COMPANY CODE 1000),CREDITORS -GR/IR CLEARING ACCOUNT,5902608698,1000003017
08.11.2023,Children and Adults,ST JOSEPHS CATHOLIC SCHOOL,"10,267.00",SPORTS FUNDING,SCHOOLS CAPITATION,2103780952,5001000076
08.11.2023,Children and Adults,BELLENDEN PRIMARY SCHOOL,"10,261.00",SPORTS FUNDING,SCHOOLS CAPITATION,2103780913,5001000007
29.11.2023,Housing,SAFEGUARDS SECURITY SERVICES LTD,"10,260.00",CAPITAL PS (HRA),CONSTRUCTION SITE COSTS,5902610656,1000087544
08.11.2023,Children and Adults,ROBERT BROWNING PRIMARY SCHOOL,"10,243.00",SPORTS FUNDING,SCHOOLS CAPITATION,2103780930,5001000057
27.11.2023,Finance,CAPITA BUSINESS SERVICES LTD,"10,229.56",CAPITA,OTHER CONTRACTORS,5902610332,1000006291
13.11.2023,Environment Neighbourhoods and Growth,AGGREGATE INDUSTRIES UK LTD,"10,216.61",CAPITAL PS (LEISURE),CONST'N MAIN CONTRACT - NON CERTIFICATED,2103781598,3000002280
20.11.2023,Children and Adults,AGINCARE (SOUTHWARK) LIMITED,"10,214.29",PHY STS 65+,HOMECARE - IC,2103787172,1000089635
08.11.2023,Children and Adults,ST GEORGES RC SCHOOL,"10,208.00",SPORTS FUNDING,SCHOOLS CAPITATION,2103780948,5001000068
16.11.2023,Children and Adults,CHARLES DICKENS PRIMARY SCHOOL,"10,205.00",AC & FREE - MSTREAM,STATEMENTED FEES,2103784697,1000085158
16.11.2023,Children and Adults,TIGERS CHILDCARE LTD,"10,205.00",NON MAINTAINED EY,STATEMENTED FEES,2103784756,1000084290
08.11.2023,Children and Adults,CHARLOTTE  SHARMAN PRIMARY SCHOOL,"10,203.00",SPORTS FUNDING,SCHOOLS CAPITATION,2103780964,5001000016
27.11.2023,Housing,L H BRIDGE LTD,"10,203.00",CAPITAL PS (HOUSING GF),CAPITAL GRANTS,5902610322,1000056928
08.11.2023,Children and Adults,ST PETERS CE SCHOOL,"10,197.00",SPORTS FUNDING,SCHOOLS CAPITATION,2103780956,5001000083
22.11.2023,Environment Neighbourhoods and Growth,LEASEPLAN UK LTD,"10,195.37",COMMERCIAL VEH CTRL A/C,HIRED VEHICLES,5902609740,11014756
06.11.2023,Environment Neighbourhoods and Growth,KENT COUNTY COUNCIL - LASER,"10,193.58",CAMBERWELL LEISURE CENTRE,GAS,5902606628,1000012926
08.11.2023,Children and Adults,COMBER GROVE PRIMARY SCHOOL,"10,191.00",SPORTS FUNDING,SCHOOLS CAPITATION,2103780915,5001000022
08.11.2023,Children and Adults,TOWER BRIDGE PRIMARY SCHOOL,"10,191.00",SPORTS FUNDING,SCHOOLS CAPITATION,2103780934,5001000095
08.11.2023,Children and Adults,SNOWSFIELDS PRIMARY SCHOOL,"10,179.00",SPORTS FUNDING,SCHOOLS CAPITATION,2103780932,5001000061
08.11.2023,Children and Adults,HOLLYDALE PRIMARY SCHOOL,"10,156.00",SPORTS FUNDING,SCHOOLS CAPITATION,2103780922,5001000036
20.11.2023,Children and Adults,ACHIEVE TOGETHER SERVICES LIMITED,"10,142.40",LD LTS 18-64,RESIDENTIAL CARE,2103786929,1000089975
08.11.2023,Children and Adults,FRIARS PRIMARY (FOUNDATION) SCHOOL,"10,138.00",SPORTS FUNDING,SCHOOLS CAPITATION,2103780963,5001000033
10.11.2023,Children and Adults,ST JAMES THE GREAT RC SCHOOL,"10,137.00",NURSERY ED GRANT 3 AND 4 YR OLDS,EARLY YEARS - 3 AND 4 YEAR OLDS,5902607771,5001000071
16.11.2023,Children and Adults,FAVOUR HEALTH LTD,"10,135.62",SEMI-IND CARELEAVERS,EXTERNAL AGENCIES AND BODIES,2103784603,1000088976
08.11.2023,Children and Adults,ST GEORGES CE SCHOOL,"10,127.00",SPORTS FUNDING,SCHOOLS CAPITATION,2103780947,5001000069
21.11.2023,Corporate,CHARLOTTE  SHARMAN PRIMARY SCHOOL,"10,123.65",EDUCATION VAT INPUTS,VAT CONTROL ACCOUNT,2103788000,5001000016
10.11.2023,Children and Adults,IVYDALE PRIMARY SCHOOL,"10,083.00",LBS MAINSTREAM,HIGH NEEDS - TOP UP FUNDING,5902607690,5001000038
15.11.2023,Housing,HANSEN PALOMARES SOLICITORS,"10,077.23",DISREPAIR,PAYMENTS FOR LEGAL SERVICES,2103784332,11053592
30.11.2023,Housing,VIGILANT SECURITY SERVICES UK,"10,072.00",DAVID BARKER HOSTEL,SECURITY SERVICES,5902610850,1000090073
21.11.2023,DSO,SPECTRA-GLAZE SERVICES,"10,065.27",SR COMMUNAL - DELIVERY TEAM,OTHER CONTRACTORS,5902609512,1000077605
02.11.2023,Children and Adults,MAGIC ROUNDABOUT NURSERIES LTD,"10,063.88",NURSERY ED GRANT 3 AND 4 YR OLDS,GRANTS,2103778259,1000045128
10.11.2023,Housing,ALEXANDER MILLS CONSULTING LTD,"10,049.00",BUILDING SAFETY PROGRAMME,CONSULTANTS SERVICES,5902606394,1000088721
22.11.2023,Environment Neighbourhoods and Growth,WHEELS FOR WELLBEING,"10,040.29",CAPITAL PS (LEISURE),CAPITAL GRANTS,5902609782,1000069996
20.11.2023,Children and Adults,CARETECH COMMUNITY SERVICES LTD,"10,034.64",LD LTS 18-64,RESIDENTIAL CARE,2103786730,1000066698
21.11.2023,Housing,SHARPE PRITCHARD LLP,"10,012.95",CAPITAL PS (HRA),CONSTRUCTION FEES - LEGAL,5902609582,1790085
15.11.2023,Children and Adults,THE GROVE CHILDRENS CENTRE,"10,000.00",SCHOOLS SUPPLEMENTARY GRANT,SCHOOLS CAPITATION,2103784506,5001000090
03.11.2023,Children and Adults,HAVERSTOCK,"10,000.00",CAPITAL PS (EDUCATION),CONSTRUCTION FEES - ARCHITECT,5902605551,1000074288
16.11.2023,Children and Adults,ALLPAY LTD (CHILDRENS ALLOWANCE),"10,000.00",C & F FINANCE TEAM,OTHER PAYMENTS FOR CLIENTS,5902608815,1000080484
28.11.2023,Children and Adults,ALLPAY LTD (ADULTS - INSTANT ISSUE,"10,000.00",DIR OF ASC,MISCELLANEOUS RECHARGES,5902610490,1000079884
30.11.2023,Housing,DURKAN LTD,"9,974.10",CAPITAL PS (HRA),CONSTRUCTION MAIN CONTRACT -CERTIFICATED,2103791405,3000000960
17.11.2023,Children and Adults,JONES LANG LASALLE LTD,"9,950.00",CAPITAL PS (SOC SERV),CONSTRUCTION FEES - ARCHITECT,5902609166,1000072428
20.11.2023,Children and Adults,OPTIMA CARE (SHINE) LONDON LTD,"9,946.12",LD LTS 18-64,SUPPORTED LIVING,2103787594,1000079614
20.11.2023,Children and Adults,OPTIMA CARE (SHINE) LONDON LTD,"9,946.12",LD LTS 18-64,SUPPORTED LIVING,2103787595,1000079614
22.11.2023,Environment Neighbourhoods and Growth,LEASEPLAN UK LTD,"9,940.14",COMMERCIAL VEH CTRL A/C,HIRED VEHICLES,5902609721,11014756
27.11.2023,Children and Adults,BROADLANDS HALL LIMITED,"9,940.00",DISABILITIES LAC,EXTERNAL AGENCIES AND BODIES,2103789115,1000084303
27.11.2023,Children and Adults,BROADLANDS HALL LIMITED,"9,940.00",DISABILITIES LAC,EXTERNAL AGENCIES AND BODIES,2103789117,1000084303
30.11.2023,Housing,VIGILANT SECURITY SERVICES UK,"9,936.00",MANOR PLACE HOSTEL,SECURITY SERVICES,5902610873,1000090073
28.11.2023,Housing,REDACTED PERSONAL DATA,"9,930.50",NIGHTLY TA (NSC),EXTERNAL AGENCIES AND BODIES,5902610497,1000061134
20.11.2023,Children and Adults,OZUMBA TRAINING AND CONSULTANCY SERVICES,"9,914.72",LD LTS 18-64,SUPPORTED LIVING,2103786594,1000090089
08.11.2023,Children and Adults,PETER HILLS CE SCHOOL,"9,911.00",SPORTS FUNDING,SCHOOLS CAPITATION,2103780955,5001000053
20.11.2023,Children and Adults,BEECHCROFT SUPPORT LIMITED,"9,909.96",LD LTS 18-64,SUPPORTED LIVING,2103787461,1000085412
08.11.2023,Children and Adults,VICTORY SCHOOL,"9,905.00",SPORTS FUNDING,SCHOOLS CAPITATION,2103780935,5001000098
29.11.2023,Children and Adults,INTEGRATED SERVICES PROGRAMME,"9,902.14",FRIENDS & FAMILY FOSTERING,EXTERNAL AGENCIES AND BODIES,2103790063,1642068
08.11.2023,Children and Adults,ST MARY MAGDALENE CE SCHOOL,"9,882.00",SPORTS FUNDING,SCHOOLS CAPITATION,2103780954,5001000080
20.11.2023,Children and Adults,LONDON CYRENIANS HOUSING LTD,"9,876.16",LD LTS 18-64,SUPPORTED LIVING,2103786712,1000078600
27.11.2023,Children and Adults,BROADLANDS HALL LIMITED,"9,875.00",DISABILITIES LAC,RESIDENTIAL CARE,2103789114,1000084303
20.11.2023,Children and Adults,INSIGHT,"9,857.96",LD LTS 18-64,RESIDENTIAL CARE,2103786912,1825618
10.11.2023,Finance,BIDVEST NOONAN (UK) LTD,"9,844.85",TOWER WORKSHOPS,SECURITY SERVICES,5902607191,1000087102
17.11.2023,Environment Neighbourhoods and Growth,TOFCO CPP LTD,"9,840.00",PUBLIC LIGHTING,MATERIALS,5902609254,1000084062
29.11.2023,Children and Adults,E A JIGSAW CARE LIMITED,"9,821.30",SEMI-IND CARELEAVERS,EXTERNAL AGENCIES AND BODIES,2103790130,1000084233
14.11.2023,Housing,NPOWER LTD,"9,816.68",RESIDENT SERVICES BUSINESS SUPPORT,ELECTRICITY,2103782979,1000078994
08.11.2023,Children and Adults,ST JOSEPHS CATHOLIC INFANTS SCHOOL,"9,806.00",SPORTS FUNDING,SCHOOLS CAPITATION,2103780962,5001000018
15.11.2023,Children and Adults,BOUCHER C OF E PRIMARY SCHOOL,"9,805.84",TRUST FUND DRAW DOWN,SCHOOLS CAPITATION,2103784499,5001000011
08.11.2023,Children and Adults,CHERRY GARDEN SCHOOL,"9,771.00",SPORTS FUNDING,SCHOOLS CAPITATION,2103780969,5001000020
10.11.2023,Children and Adults,BELLENDEN PRIMARY SCHOOL,"9,764.00",NURSERY ED GRANT 3 AND 4 YR OLDS,EARLY YEARS - 3 AND 4 YEAR OLDS,5902607606,5001000007
21.11.2023,Corporate,MICHAEL FARADAY PRIMARY SCHOOL,"9,763.36",EDUCATION VAT INPUTS,VAT CONTROL ACCOUNT,2103788083,5001000048
20.11.2023,Children and Adults,COUNTRY COURT CARE HOMES 2 LTD,"9,734.66",DISCHARGE TO ACCESS,NURSING PLACEMENTS FEES,2103786618,1000080172
20.11.2023,Children and Adults,COUNTRY COURT CARE HOMES 2 LTD,"9,734.66",PHY LTS 65+,NURSING PLACEMENTS FEES,2103787542,1000080172
20.11.2023,Children and Adults,FIRST CARE LODGE,"9,730.24",LD LTS 18-64,SUPPORTED LIVING,2103786716,1000084196
08.11.2023,Children and Adults,ST JUDES CHURCH OF ENGLAND PRIMARY,"9,730.00",SPORTS FUNDING,SCHOOLS CAPITATION,2103780953,5001000019
29.11.2023,Children and Adults,SUNLITE RECRUITMENT COMPANY LIMITED,"9,720.00",SEMI-IND CARELEAVERS,EXTERNAL AGENCIES AND BODIES,2103790152,1000089704
08.11.2023,Children and Adults,HAYMERLE SCHOOL,"9,695.00",SPORTS FUNDING,SCHOOLS CAPITATION,2103780967,5001000045
21.11.2023,Corporate,BETHLEM & MAUDSLEY HOSPITAL SCHOOL,"9,691.96",EDUCATION VAT INPUTS,VAT CONTROL ACCOUNT,2103788054,5001000010
20.11.2023,Children and Adults,ASD UNIQUE SERVICES LTD,"9,665.80",LD LTS 18-64,RESIDENTIAL CARE,2103786694,1000038819
30.11.2023,Children and Adults,ORCHARD HILL COLLEGE,"9,655.13",SPECIALIST POST-16,STATEMENTED FEES,2103792543,1000070978
27.11.2023,Environment Neighbourhoods and Growth,HANLON COMPUTER SYSTEM LTD,"9,650.00",CHIEF EXECUTIVE'S OFFICE,EXTERNAL AGENCIES AND BODIES,5902609878,1000023031
08.11.2023,Housing,THE LIFECARE CENTRE LTD,"9,620.00",CAPITAL PS (HRA),UTILITIES INSTALLATION,5902607234,1000057137
20.11.2023,Children and Adults,BRANDON TRUST,"9,618.96",LD LTS 18-64,SUPPORTED LIVING,2103786917,1000042417
30.11.2023,Housing,VIGILANT SECURITY SERVICES UK,"9,600.00",JOE RICHARDS HOSTEL,SECURITY SERVICES,5902610822,1000090073
21.11.2023,Corporate,GOODRICH PRIMARY SCHOOL,"9,577.14",EDUCATION VAT INPUTS,VAT CONTROL ACCOUNT,2103788084,5001000028
08.11.2023,Children and Adults,BEORMUND PRIMARY SCHOOL,"9,555.00",SPORTS FUNDING,SCHOOLS CAPITATION,2103780968,5001000008
20.11.2023,Children and Adults,CARETECH COMMUNITY SERVICES LTD,"9,553.40",LD LTS 18-64,RESIDENTIAL CARE,2103787262,1000066698
25.11.2023,Housing,C&C BUILDERS LTD,"9,528.52",CAPITAL PS (HOUSING GF),CAPITAL GRANTS,2103788829,3000001986
08.11.2023,Children and Adults,EVELINA HOSPITAL SCHOOL,"9,514.00",SPORTS FUNDING,SCHOOLS CAPITATION,2103780965,5001000031
12.11.2023,Housing,STABILIS ASSOCIATES LTD,"9,504.00",REPAIRS OPERATIONS,PROFESSIONAL FEES,5902606691,1000082512
11.11.2023,Housing,CAPITAL SERVICES LONDON LTD,"9,500.00",COMMERCIAL (QS),PROFESSIONAL FEES,5902607850,1000082548
28.11.2023,Children and Adults,ROYAL BOROUGH OF KENSINGTON & CHELSEA,"9,500.00",ICES CONTRACT,SUBSCRIPTIONS,5902610596,1000033864
19.11.2023,Environment Neighbourhoods and Growth,METIS CONSULTANTS LIMITED,"9,495.83",SECTION 278 & 38,OTHER CONTRACTORS,5902608793,1000086330
30.11.2023,Children and Adults,CARETRADE CHARITABLE TRUST,"9,490.00",SPECIALIST POST-16,STATEMENTED FEES,2103792579,1000067322
30.11.2023,Children and Adults,CARETRADE CHARITABLE TRUST,"9,490.00",SPECIALIST POST-16,STATEMENTED FEES,2103792580,1000067322
21.11.2023,Environment Neighbourhoods and Growth,WATERMAN INFRASTRUCTURE & ENVIRONMENT LTD,"9,481.80",CAPITAL PS (LEISURE),CONSTR'N SUB CONTRACT - NON CERTIFICATED,5902609664,1000060529
20.11.2023,Children and Adults,RAINTREE CARE LTD,"9,480.00",LD LTS 18-64 AAD,SUPPORTED LIVING,2103787502,1000087495
16.11.2023,Environment Neighbourhoods and Growth,PROJECT CENTRE LTD,"9,450.00",TRANSPORT PROJECTS,OTHER CONTRACTORS,5902608908,1000072621
28.11.2023,Children and Adults,ROYAL BOROUGH OF KENSINGTON & CHELSEA,"9,450.00",ICES CONTRACT,SUBSCRIPTIONS,5902610595,1000033864
20.11.2023,Children and Adults,CHOICE SUPPORT,"9,434.40",LD LTS 18-64,SUPPORTED LIVING,2103787214,1104183
20.11.2023,Children and Adults,F A ALBIN AND SONS,"9,430.75",APPOINTEESHIPS,OTHER PAYMENTS FOR CLIENTS,2103787684,11313949
20.11.2023,Children and Adults,ALWAYS INCLUSIVE LTD,"9,422.40",LD LTS 18-64,SUPPORTED LIVING,2103786826,1000088268
10.11.2023,Children and Adults,THE ST THOMAS THE APOSTLE COLLEGE,"9,417.00",LBS MAINSTREAM,HIGH NEEDS - TOP UP FUNDING,5902607781,5001000074
10.11.2023,Children and Adults,THE GROVE CHILDRENS CENTRE,"9,417.00",LBS MAINSTREAM,HIGH NEEDS - TOP UP FUNDING,5902607812,5001000090
02.11.2023,Children and Adults,HIGHVIEW CARE LTD,"9,394.20",CHILDREN�S RESID,RESIDENTIAL CARE,2103779143,1000089728
14.11.2023,Strategy and Communities,SOCIALSIGNIN LTD,"9,377.50",MEDIA & E-COMMUNICATIONS,OFFICE EXPENSES,5902608340,1000088191
30.11.2023,Children and Adults,CARETRADE CHARITABLE TRUST,"9,340.00",SPECIALIST POST-16,STATEMENTED FEES,2103792572,1000067322
30.11.2023,Children and Adults,CARETRADE CHARITABLE TRUST,"9,340.00",SPECIALIST POST-16,STATEMENTED FEES,2103792573,1000067322
30.11.2023,Children and Adults,CARETRADE CHARITABLE TRUST,"9,340.00",SPECIALIST POST-16,STATEMENTED FEES,2103792574,1000067322
30.11.2023,Children and Adults,CARETRADE CHARITABLE TRUST,"9,340.00",SPECIALIST POST-16,STATEMENTED FEES,2103792575,1000067322
30.11.2023,Children and Adults,CARETRADE CHARITABLE TRUST,"9,340.00",SPECIALIST POST-16,STATEMENTED FEES,2103792576,1000067322
03.11.2023,Housing,A & E ELKINS LTD,"9,339.93",CAPITAL PS (HRA),CONSTRUCTION MAIN CONTRACT -CERTIFICATED,2103779343,4012501
17.11.2023,Children and Adults,PEOPLEPLUS GROUP LTD,"9,334.78",PHY LTS 65+,DISCRETIONARY FLEXIBLE FEES & INCOME,2103785569,1000076642
10.11.2023,Children and Adults,RYE OAK PRIMARY SCHOOL,"9,333.00",LBS MAINSTREAM,HIGH NEEDS - TOP UP FUNDING,5902607742,5001000059
10.11.2023,Children and Adults,ST ANTHONYS RC SCHOOL,"9,333.00",LBS MAINSTREAM,HIGH NEEDS - TOP UP FUNDING,5902607756,5001000064
13.11.2023,Governance and Assurance,THE LAW SOCIETY,"9,324.00",LEGAL SVCES MANAGEMENT,PROFESSIONAL FEES,5902608042,1000021328
06.11.2023,Governance and Assurance,PENNA PLC,"9,283.33",LEARNING & DEVELOPMENT,PAYMENTS FOR PERSONNEL MANAGEMENT SERVS,5902606585,1000050664
20.11.2023,Children and Adults,GREEN CARE AND SUPPORT LIMITED,"9,276.80",LD LTS 18-64,SUPPORTED LIVING,2103787466,1000087661
25.11.2023,Housing,L H BRIDGE LTD,"9,257.00",CAPITAL PS (HOUSING GF),CAPITAL GRANTS,5902609623,1000056928
20.11.2023,Children and Adults,FIRST CARE LODGE,"9,256.00",LD LTS 18-64,SUPPORTED LIVING,2103786938,1000084196
02.11.2023,Environment Neighbourhoods and Growth,INTO SERVICES LONDON LTD,"9,250.00",CAPITAL PS (LEISURE),CONSTRUCTION FEES - INTERNAL,5902605665,1000059328
06.11.2023,Housing,PULSE ASSOCIATES LTD (T/A PULSE CONSULT),"9,250.00",CAPITAL PS (HRA),CONSTRUCTION FEES  - EXTERNAL,5902606397,1000087233
20.11.2023,Finance,SEMPER FIRE ENGINEERING LTD,"9,250.00",CHARGEABLE BUILDING CONTROL,PROFESSIONAL FEES,5902609387,1000090427
21.11.2023,Children and Adults,LONDON SCHOOL OF ECONOMICS & POLITICAL SCIENCE,"9,250.00",SCHOLARSHIP SCHEME,EXTERNAL AGENCIES AND BODIES,5902609481,1000014933
30.11.2023,Children and Adults,KEELE UNIVERSITY,"9,250.00",SCHOLARSHIP SCHEME,EXTERNAL AGENCIES AND BODIES,5902610920,1000037389
30.11.2023,Housing,VIGILANT SECURITY SERVICES UK,"9,248.00",JOE RICHARDS HOSTEL,SECURITY SERVICES,5902610828,1000090073
28.11.2023,Finance,VENN GROUP LTD,"9,240.00",IT MANAGEMENT,AGENCY STAFF,5902610594,1000033315
16.11.2023,Children and Adults,CENTRAL & NORTH WEST LONDON,"9,236.03",SEXUAL HEALTH - STI,MEDICAL / HEALTH & SAFETY SERVICES,5902608884,1000066666
14.11.2023,Children and Adults,OASIS PLACES LTD,"9,214.29",RESID PARENT ASSESS,RESIDENTIAL CARE,2103783329,1000077696
17.11.2023,Children and Adults,FAVOUR HEALTH LTD,"9,214.20",SEMI-IND CARELEAVERS,EXTERNAL AGENCIES AND BODIES,2103784856,1000088976
14.11.2023,DSO,ARMINA LTD,"9,210.26",DAMP & MOULD TEAM,OTHER CONTRACTORS,2103783160,3000002121
15.11.2023,Children and Adults,ST JAMES CE PRIMARY SCHOOL,"9,204.00",MATERNITY COVER,SCHOOLS CAPITATION,2103784501,5001000070
20.11.2023,Children and Adults,CHOICE CARE GROUP,"9,200.08",LD LTS 18-64,RESIDENTIAL CARE,2103786780,1572506
20.11.2023,Children and Adults,LONDON CYRENIANS HOUSING LTD,"9,196.40",LD LTS 18-64,SUPPORTED LIVING,2103786972,1000078600
02.11.2023,Children and Adults,PURPLE JAY HERNE HILL LTD,"9,189.15",NURSERY ED GRANT 3 AND 4 YR OLDS,GRANTS,2103778271,1000090364
10.11.2023,Children and Adults,OLIVER GOLDSMITH PRIMARY SCHOOL,"9,171.00",NURSERY ED GRANT 3 AND 4 YR OLDS,EARLY YEARS - 3 AND 4 YEAR OLDS,5902607715,5001000051
15.11.2023,Housing,QUINARY LTD,"9,168.00",NIGHTLY TA (NSC),EXTERNAL AGENCIES AND BODIES,5902608656,1000029106
10.11.2023,Children and Adults,ST JOSEPHS CATHOLIC PRIMARY SCHOOL,"9,164.00",NURSERY ED GRANT 3 AND 4 YR OLDS,EARLY YEARS - 3 AND 4 YEAR OLDS,5902607790,5001000078
17.11.2023,Housing,LODGISTICS ESTATES,"9,143.40",PSL PLACEMENTS,EXTERNAL AGENCIES AND BODIES,5902609165,1000080324
17.11.2023,Children and Adults,REDACTED PERSONAL DATA,"9,142.28",LD LTS 18-64 AAD,PAYMENTS TO CLIENTS (DIRECT PAYMENTS),2103785917,1000080806
09.11.2023,Environment Neighbourhoods and Growth,CROMWELL POLYTHENE LTD,"9,127.55",STREET CLEANING-GENERAL,MATERIALS,5902607420,1000021159
20.11.2023,Children and Adults,LEONARD CHESHIRE (CHIPSTEAD LAKE),"9,126.12",PHY LTS 18-64,RESIDENTIAL CARE,2103787576,1000049764
20.11.2023,Children and Adults,AGINCARE (SOUTHWARK) LIMITED,"9,114.29",PHY STS 65+,HOMECARE - IC,2103787036,1000089635
21.11.2023,Corporate,DULWICH VILLAGE CE INFANTS SCHOOL,"9,110.84",EDUCATION VAT INPUTS,VAT CONTROL ACCOUNT,2103788006,5001000027
08.11.2023,Housing,SOUTH EAST BUILDING CONTRACTORS LTD,"9,095.34",CAPITAL PS (HOUSING GF),CAPITAL GRANTS,5902607192,1000049893
21.11.2023,Children and Adults,THE AVENUES TRUST,"9,091.48",LD LTS 18-64,RESIDENTIAL CARE,2103786742,1981708
21.11.2023,Corporate,BETHLEM & MAUDSLEY HOSPITAL SCHOOL,"9,089.29",EDUCATION VAT INPUTS,VAT CONTROL ACCOUNT,2103788089,5001000010
20.11.2023,Children and Adults,CHOICE SUPPORT,"9,079.36",LD LTS 65+,SUPPORTED LIVING,2103787593,1104183
17.11.2023,Children and Adults,REDACTED PERSONAL DATA,"9,079.20",PHB - SEL ICB,RECOVERABLE COSTS INCL. HEALTH,2103785790,1000044274
21.11.2023,Corporate,RYE OAK PRIMARY SCHOOL,"9,075.23",EDUCATION VAT INPUTS,VAT CONTROL ACCOUNT,2103788016,5001000059
23.11.2023,Housing,CROWN HOUSING LTD,"9,071.00",NIGHTLY TA (NSC),EXTERNAL AGENCIES AND BODIES,5902610022,1000075070
20.11.2023,Children and Adults,GROVE CARE PARTNERSHIP LIMITED,"9,069.88",LD LTS 18-64,RESIDENTIAL CARE,2103787394,1000052893
08.11.2023,Suspense,LONDON PENSIONS FUND AUTHORITY,"9,041.22",SUSPENSE ACCOUNT (COMPANY CODE 1000),PAYROLL CREDITORS - OTHER PENSION FUNDS,2103780891,1000062252
22.11.2023,Housing,MX ESTATES LTD,"9,040.00",PSL PLACEMENTS,EXTERNAL AGENCIES AND BODIES,5902609731,1000083639
30.11.2023,Housing,VIGILANT SECURITY SERVICES UK,"9,040.00",JOE RICHARDS HOSTEL,SECURITY SERVICES,5902610827,1000090073
20.11.2023,Children and Adults,BRANDON TRUST,"9,000.22",LD LTS 18-64,SUPPORTED LIVING,2103786784,1000042417
15.11.2023,Children and Adults,DULWICH WOOD CHILDRENS CENTRE,"9,000.00",SCHOOLS SUPPLEMENTARY GRANT,SCHOOLS CAPITATION,2103784504,5001000099
10.11.2023,Finance,ARGUS SOFTWARE(UK) LTD,"9,000.00",DEV MGT ADMIN & INCOME,PROFESSIONAL FEES,5902606609,1000067735
10.11.2023,Children and Adults,KEYWORTH PRIMARY SCHOOL,"9,000.00",LBS MAINSTREAM,HIGH NEEDS - TOP UP FUNDING,5902607700,5001000041
20.11.2023,Housing,DRISCOLL KINGSTON SOLICITORS,"9,000.00",PSL PLACEMENTS,PROFESSIONAL FEES,5902609328,1000082357
22.11.2023,Environment Neighbourhoods and Growth,MAYA PRODUCTIONS,"9,000.00",ARTS GRANTS,GRANTS,5902609873,1000090307
20.11.2023,Children and Adults,FIR TREE LODGE (SEE ABILITY),"8,995.40",LD LTS 18-64,RESIDENTIAL CARE,2103787098,1000052257
15.11.2023,Children and Adults,ST JOSEPHS CATHOLIC SCHOOL,"8,992.00",SCHOOLS IN FINANCIAL DIFFICULTY,SCHOOLS CAPITATION,2103784528,5001000076
14.11.2023,Environment Neighbourhoods and Growth,TILHILL FORESTRY LTD,"8,985.88",CAPITAL PS (LEISURE),CONSTRUCTION FEES  - EXTERNAL,2103783151,3000001208
20.11.2023,Children and Adults,SAFFRONLAND HOMES (MINEHEAD),"8,979.36",LD LTS 65+,RESIDENTIAL CARE,2103786689,1000072152
20.11.2023,Children and Adults,SAFFRONLAND HOMES (HESTIA),"8,978.92",LD LTS 18-64,RESIDENTIAL CARE,2103787384,1000021616
20.11.2023,Children and Adults,SAFFRONLAND HOMES (HESTIA),"8,978.92",LD LTS 18-64,RESIDENTIAL CARE,2103787605,1000021616
13.11.2023,Housing,WALWORTH GARDEN LTD,"8,963.42",GARDEN MAINTENANCE PROJECT,GROUNDS MAINTENANCE,5902608478,1000042204
06.11.2023,Children and Adults,SOR HOUSING LTD,"8,939.91",APPOINTEESHIPS,OTHER PAYMENTS FOR CLIENTS,2103780113,1000090400
16.11.2023,Environment Neighbourhoods and Growth,PHS GROUP PLC,"8,935.98",CEMETERIES,OTHER CONTRACTORS,5902608826,1851993
24.11.2023,Environment Neighbourhoods and Growth,PRIDE DEVELOPMENTS,"8,928.68",CAPITAL PS (REGEN),CONSTRUCTION MAIN CONTRACT,2103788833,3000002126
20.11.2023,Children and Adults,CARETECH COMMUNITY SERVICES LTD,"8,927.16",LD LTS 18-64,RESIDENTIAL CARE,2103787634,1000066698
30.11.2023,Environment Neighbourhoods and Growth,TRANSPORT FOR LONDON,"8,925.00",COMMERCIAL VEH CTRL A/C,CONGESTION CHARGE,5902610979,1000023986
20.11.2023,Children and Adults,SAFFRONLAND HOMES (HESTIA),"8,906.00",LD LTS 18-64,RESIDENTIAL CARE,2103787586,1000021616
30.11.2023,Housing,VIGILANT SECURITY SERVICES UK,"8,896.00",DAVID BARKER HOSTEL,SECURITY SERVICES,5902610852,1000090073
20.11.2023,Children and Adults,DIAGRAMA HEALTH CARE,"8,859.44",LD LTS 18-64,RESIDENTIAL CARE,2103786809,1000075492
30.11.2023,Environment Neighbourhoods and Growth,SUPREME FITNESS C.I.C,"8,841.00",CAPITAL PS (LEISURE),CAPITAL GRANTS,5902610611,1000090397
02.11.2023,Housing,CALFORD SEADEN LLP,"8,837.07",CAPITAL PS (HRA),CONSTRUCTION FEES  - EXTERNAL,5902606308,1061592
13.11.2023,Governance and Assurance,EXCEL EXECUTIVE LTD,"8,829.39",REPAIR AND MAINTENANCE SERVICES,CAB FARES,5902608054,1000080424
20.11.2023,Children and Adults,RIGHT SUPPORT MANAGEMENT LTD,"8,825.84",LD LTS 18-64,SUPPORTED LIVING,2103787597,1000070289
30.11.2023,Children and Adults,CARETRADE CHARITABLE TRUST,"8,820.00",SPECIALIST POST-16,STATEMENTED FEES,2103792571,1000067322
20.11.2023,Children and Adults,ASHINGHAM HOUSE LIMITED,"8,819.16",LD LTS 18-64,RESIDENTIAL CARE,2103787085,1000016504
02.11.2023,Environment Neighbourhoods and Growth,LEX AUTOLEASE,"8,818.08",COMMERCIAL VEH CTRL A/C,HIRED VEHICLES,5902606451,1000069462
30.11.2023,Environment Neighbourhoods and Growth,LEX AUTOLEASE,"8,818.08",COMMERCIAL VEH CTRL A/C,HIRED VEHICLES,5902610956,1000069462
02.11.2023,Environment Neighbourhoods and Growth,KENT COUNTY COUNCIL - LASER,"8,810.20",CREMATORIUM,GAS,5902606370,1000012926
20.11.2023,Children and Adults,BEECHCROFT SUPPORT LIMITED,"8,806.72",MH LTS 18-64,SUPPORTED LIVING,2103786553,1000085412
07.11.2023,Finance,NEC SOFTWARE SOLUTIONS UK LTD,"8,800.00",ADMINISTRATIVE SUPPORT,SOFTWARE,5902606807,1000087043
21.11.2023,Children and Adults,ST GEORGES RC SCHOOL,"8,795.57",NURSERY ED GRANT 3 AND 4 YR OLDS,EARLY YEARS - 3 AND 4 YEAR OLDS,2103787936,5001000068
20.11.2023,Children and Adults,BRITISH HOME & HOSPITAL FOR INCURABLES,"8,789.16",PHY LTS 65+,NURSING PLACEMENTS FEES,2103787295,1001606
21.11.2023,Environment Neighbourhoods and Growth,KENT COUNTY COUNCIL - LASER,"8,779.38",PECKHAM PULSE LEISURE CENTRE,GAS,5902609620,1000012926
02.11.2023,Children and Adults,GERMAN KINDERGARTEN LTD,"8,775.00",NURSERY ED GRANT 3 AND 4 YR OLDS,GRANTS,2103778241,1000058090
02.11.2023,Children and Adults,ROCKINGHAM PRE-SCHOOL,"8,767.20",NURSERY ED GRANT 3 AND 4 YR OLDS,GRANTS,2103778276,11002695
20.11.2023,Children and Adults,BROADHAM CARE LIMITED,"8,752.16",LD LTS 18-64,RESIDENTIAL CARE,2103787270,1000057411
13.11.2023,Housing,MONTAGU EVANS LLP,"8,750.00",COMMERCIAL PROPERTIES,PROFESSIONAL FEES,5902608058,1000073283
02.11.2023,Children and Adults,ALPHABET NURSERY LTD,"8,741.85",NURSERY ED GRANT 3 AND 4 YR OLDS,GRANTS,2103778212,1000090289
30.11.2023,Children and Adults,THE COMPLETE WORKS INDEPENDENT SCHOOL,"8,735.00",INDEP MAINSTREAM,STATEMENTED FEES,2103792467,1000033256
30.11.2023,Children and Adults,THE COMPLETE WORKS INDEPENDENT SCHOOL,"8,735.00",INDEP MAINSTREAM,STATEMENTED FEES,2103792468,1000033256
30.11.2023,Children and Adults,THE COMPLETE WORKS INDEPENDENT SCHOOL,"8,735.00",INDEP MAINSTREAM,STATEMENTED FEES,2103792469,1000033256
30.11.2023,Children and Adults,THE COMPLETE WORKS INDEPENDENT SCHOOL,"8,735.00",INDEP MAINSTREAM,STATEMENTED FEES,2103792470,1000033256
30.11.2023,Children and Adults,THE COMPLETE WORKS INDEPENDENT SCHOOL,"8,735.00",INDEP MAINSTREAM,STATEMENTED FEES,2103792488,1000033256
30.11.2023,Children and Adults,THE COMPLETE WORKS INDEPENDENT SCHOOL,"8,735.00",INDEP MAINSTREAM,STATEMENTED FEES,2103792489,1000033256
30.11.2023,Children and Adults,THE COMPLETE WORKS INDEPENDENT SCHOOL,"8,735.00",INDEP MAINSTREAM,STATEMENTED FEES,2103792490,1000033256
30.11.2023,Children and Adults,THE COMPLETE WORKS INDEPENDENT SCHOOL,"8,735.00",INDEP MAINSTREAM,STATEMENTED FEES,2103792491,1000033256
30.11.2023,Children and Adults,THE COMPLETE WORKS INDEPENDENT SCHOOL,"8,735.00",INDEP MAINSTREAM,STATEMENTED FEES,2103792492,1000033256
30.11.2023,Children and Adults,THE COMPLETE WORKS INDEPENDENT SCHOOL,"8,735.00",INDEP MAINSTREAM,STATEMENTED FEES,2103792493,1000033256
30.11.2023,Children and Adults,THE COMPLETE WORKS INDEPENDENT SCHOOL,"8,735.00",INDEP MAINSTREAM,STATEMENTED FEES,2103792494,1000033256
30.11.2023,Children and Adults,THE COMPLETE WORKS INDEPENDENT SCHOOL,"8,735.00",INDEP MAINSTREAM,STATEMENTED FEES,2103792495,1000033256
30.11.2023,Children and Adults,THE COMPLETE WORKS INDEPENDENT SCHOOL,"8,735.00",INDEP MAINSTREAM,STATEMENTED FEES,2103792499,1000033256
17.11.2023,Children and Adults,THE COMPLETE WORKS INDEPENDENT SCHOOL,"8,735.00",ALTERNATIVE PROVISION,EXTERNAL AGENCIES AND BODIES,5902609224,1000033256
16.11.2023,Children and Adults,EVERYONE HEALTH LTD,"8,728.33",HEALTH INTERVENTIONS,EXTERNAL AGENCIES AND BODIES,5902608966,1000084159
20.11.2023,Children and Adults,CHOICE SUPPORT,"8,700.56",LD LTS 18-64,SUPPORTED LIVING,2103787216,1104183
10.11.2023,Children and Adults,RYE OAK PRIMARY SCHOOL,"8,694.00",LBS RB / SEN UNIT,HIGH NEEDS - BASE FUNDING,5902607739,5001000059
20.11.2023,Children and Adults,PARKVIEW NURSING HOME,"8,685.71",PHY LTS 65+,NURSING PLACEMENTS FEES,2103786770,1776618
20.11.2023,Children and Adults,PARKVIEW NURSING HOME,"8,685.71",PHY LTS 65+,NURSING PLACEMENTS FEES,2103787008,1776618
30.11.2023,Children and Adults,CARETRADE CHARITABLE TRUST,"8,680.00",SPECIALIST POST-16,STATEMENTED FEES,2103792577,1000067322
30.11.2023,Children and Adults,CARETRADE CHARITABLE TRUST,"8,680.00",SPECIALIST POST-16,STATEMENTED FEES,2103792578,1000067322
30.11.2023,Housing,VIGILANT SECURITY SERVICES UK,"8,668.80",JOE RICHARDS HOSTEL,SECURITY SERVICES,5902610829,1000090073
10.11.2023,Children and Adults,ALBION PRIMARY SCHOOL,"8,667.00",LBS MAINSTREAM,HIGH NEEDS - TOP UP FUNDING,5902607601,5001000000
10.11.2023,Children and Adults,ST FRANCIS'S RC PRIMARY SCHOOL,"8,667.00",LBS MAINSTREAM,HIGH NEEDS - TOP UP FUNDING,5902607760,5001000067
20.11.2023,Children and Adults,BRITISH HOME & HOSPITAL FOR INCURABLES,"8,664.00",PHY LTS 18-64,NURSING PLACEMENTS FEES,2103786870,1001606
28.11.2023,Housing,ANGELUS LAW  SOLICITORS LTD,"8,655.00",TA HOSTELS,PAYMENTS FOR LEGAL SERVICES,2103789898,1000085731
20.11.2023,DSO,SER CONTRACTOR LTD,"8,647.25",SR - VOIDS TEAM,OTHER CONTRACTORS,2103787688,3000002234
20.11.2023,Children and Adults,HC-ONE LTD (TOWER BRIDGE CARE HOME),"8,635.74",PHY LTS 65+,NURSING PLACEMENTS FEES,2103787527,1000067670
30.11.2023,Housing,VIGILANT SECURITY SERVICES UK,"8,635.20",JOE RICHARDS HOSTEL,SECURITY SERVICES,5902610823,1000090073
20.11.2023,Children and Adults,SAFFRONLAND HOMES (HESTIA),"8,612.20",LD LTS 18-64,RESIDENTIAL CARE,2103786683,1000021616
02.11.2023,Environment Neighbourhoods and Growth,ANUBIS PICTURES LTD,"8,590.00",GRANTS COMMISSIONING,PROFESSIONAL FEES,5902606385,1000089559
08.11.2023,Children and Adults,OLIVER GOLDSMITH PRIMARY SCHOOL,"8,589.00",MATERNITY COVER,SCHOOLS CAPITATION,2103780902,5001000051
10.11.2023,Children and Adults,MICHAEL FARADAY PRIMARY SCHOOL,"8,583.00",LBS MAINSTREAM,HIGH NEEDS - TOP UP FUNDING,5902607711,5001000048
08.11.2023,Children and Adults,DULWICH WOOD PRIMARY SCHOOL,"8,581.00",MATERNITY COVER,SCHOOLS CAPITATION,2103780903,5001000042
02.11.2023,Children and Adults,LONDON & QUADRANT HOUSING TRUST,"8,555.04",COMMISSIONING DIRECTORATE,RENTS,2103778391,1000014718
20.11.2023,Children and Adults,GROVE CARE PARTNERSHIP LIMITED,"8,553.08",LD LTS 18-64,RESIDENTIAL CARE,2103787629,1000052893
21.11.2023,Children and Adults,BELLENDEN PRIMARY SCHOOL,"8,542.46",NURSERY ED GRANT 3 AND 4 YR OLDS,EARLY YEARS - 3 AND 4 YEAR OLDS,2103787922,5001000007
16.11.2023,Children and Adults,CHARTER SCHOOLS EDUCATIONAL TRUST T/A LYNDHURST PRIMARY SCHOOL,"8,541.87",AC & FREE - MSTREAM,STATEMENTED FEES,2103784748,1000086766
21.11.2023,Children and Adults,ROBERT BROWNING PRIMARY SCHOOL,"8,540.99",NURSERY ED GRANT 3 AND 4 YR OLDS,EARLY YEARS - 3 AND 4 YEAR OLDS,2103787929,5001000057
08.11.2023,Children and Adults,ANGEL OAK ACADEMY,"8,535.74",AC & FREE - MSTREAM,STATEMENTED FEES,2103780976,1000075379
08.11.2023,Children and Adults,ANGEL OAK ACADEMY,"8,535.74",AC & FREE - MSTREAM,STATEMENTED FEES,2103780977,1000075379
08.11.2023,Children and Adults,ANGEL OAK ACADEMY,"8,535.74",AC & FREE - MSTREAM,STATEMENTED FEES,2103780978,1000075379
08.11.2023,Children and Adults,ANGEL OAK ACADEMY,"8,535.74",AC & FREE - MSTREAM,STATEMENTED FEES,2103780979,1000075379
08.11.2023,Children and Adults,ANGEL OAK ACADEMY,"8,535.74",AC & FREE - MSTREAM,STATEMENTED FEES,2103780983,1000075379
08.11.2023,Children and Adults,ANGEL OAK ACADEMY,"8,535.74",AC & FREE - MSTREAM,STATEMENTED FEES,2103780985,1000075379
08.11.2023,Children and Adults,ANGEL OAK ACADEMY,"8,535.74",AC & FREE - MSTREAM,STATEMENTED FEES,2103780988,1000075379
08.11.2023,Children and Adults,ANGEL OAK ACADEMY,"8,535.74",AC & FREE - MSTREAM,STATEMENTED FEES,2103780989,1000075379
16.11.2023,Children and Adults,THE CHARTER SCHOOLS EDUCATIONAL TRUST,"8,535.74",AC & FREE - MSTREAM,STATEMENTED FEES,2103784718,1000066949
16.11.2023,Children and Adults,CHARTER SCHOOLS EDUCATIONAL TRUST T/A LYNDHURST PRIMARY SCHOOL,"8,535.74",AC & FREE - MSTREAM,STATEMENTED FEES,2103784740,1000086766
28.11.2023,Children and Adults,JUDITH KERR PRIMARY SCHOOL,"8,535.74",AC & FREE - MSTREAM,STATEMENTED FEES,2103789510,1000073200
16.11.2023,Children and Adults,THE BELHAM PRIMARY SCHOOL,"8,531.00",AC & FREE - MSTREAM,STATEMENTED FEES,2103784684,1000080044
16.11.2023,Children and Adults,THE BELHAM PRIMARY SCHOOL,"8,531.00",AC & FREE - MSTREAM,STATEMENTED FEES,2103784685,1000080044
16.11.2023,Children and Adults,CHARLES DICKENS PRIMARY SCHOOL,"8,531.00",AC & FREE - MSTREAM,STATEMENTED FEES,2103784690,1000085158
16.11.2023,Children and Adults,CHARLES DICKENS PRIMARY SCHOOL,"8,531.00",AC & FREE - MSTREAM,STATEMENTED FEES,2103784691,1000085158
16.11.2023,Children and Adults,CHARLES DICKENS PRIMARY SCHOOL,"8,531.00",AC & FREE - MSTREAM,STATEMENTED FEES,2103784694,1000085158
16.11.2023,Children and Adults,CHARLES DICKENS PRIMARY SCHOOL,"8,531.00",AC & FREE - MSTREAM,STATEMENTED FEES,2103784695,1000085158
16.11.2023,Children and Adults,CHARLES DICKENS PRIMARY SCHOOL,"8,531.00",AC & FREE - MSTREAM,STATEMENTED FEES,2103784696,1000085158
16.11.2023,Children and Adults,THE CHARTER SCHOOLS EDUCATIONAL TRUST,"8,531.00",AC & FREE - MSTREAM,STATEMENTED FEES,2103784707,1000066949
16.11.2023,Children and Adults,THE CHARTER SCHOOLS EDUCATIONAL TRUST,"8,531.00",AC & FREE - MSTREAM,STATEMENTED FEES,2103784711,1000066949
16.11.2023,Children and Adults,THE CHARTER SCHOOLS EDUCATIONAL TRUST,"8,531.00",AC & FREE - MSTREAM,STATEMENTED FEES,2103784713,1000066949
16.11.2023,Children and Adults,THE CHARTER SCHOOLS EDUCATIONAL TRUST,"8,531.00",AC & FREE - MSTREAM,STATEMENTED FEES,2103784715,1000066949
16.11.2023,Children and Adults,CHARTER SCHOOLS EDUCATIONAL TRUST T/A LYNDHURST PRIMARY SCHOOL,"8,531.00",AC & FREE - MSTREAM,STATEMENTED FEES,2103784726,1000086766
16.11.2023,Children and Adults,CHARTER SCHOOLS EDUCATIONAL TRUST T/A LYNDHURST PRIMARY SCHOOL,"8,531.00",AC & FREE - MSTREAM,STATEMENTED FEES,2103784727,1000086766
16.11.2023,Children and Adults,CHARTER SCHOOLS EDUCATIONAL TRUST T/A LYNDHURST PRIMARY SCHOOL,"8,531.00",AC & FREE - MSTREAM,STATEMENTED FEES,2103784732,1000086766
16.11.2023,Children and Adults,CHARTER SCHOOLS EDUCATIONAL TRUST T/A LYNDHURST PRIMARY SCHOOL,"8,531.00",AC & FREE - MSTREAM,STATEMENTED FEES,2103784734,1000086766
30.11.2023,Environment Neighbourhoods and Growth,STREET TREE LTD,"8,525.52",CAPITAL PS (LEISURE),CONSTRUCTION FEES,5902610091,1000055901
07.11.2023,Environment Neighbourhoods and Growth,CONSTELLIA PUBLIC LIMITED,"8,510.18",DULWICH LEISURE CENTRE,PREMISES CLEANING,5902606824,1000088137
07.11.2023,Environment Neighbourhoods and Growth,CONSTELLIA PUBLIC LIMITED,"8,510.18",DULWICH LEISURE CENTRE,PREMISES CLEANING,5902606825,1000088137
07.11.2023,Environment Neighbourhoods and Growth,CONSTELLIA PUBLIC LIMITED,"8,510.18",DULWICH LEISURE CENTRE,PREMISES CLEANING,5902606826,1000088137
27.11.2023,Environment Neighbourhoods and Growth,CONSTELLIA PUBLIC LIMITED,"8,510.15",DULWICH LEISURE CENTRE,PREMISES CLEANING,5902609853,1000088137
20.11.2023,Children and Adults,BOUGHTON GREEN ROAD LIMITED,"8,505.00",PHY LTS 18-64,NURSING PLACEMENTS FEES,2103786725,1000089115
03.11.2023,Environment Neighbourhoods and Growth,KENT COUNTY COUNCIL - LASER,"8,499.31",CREMATORIUM,GAS,5902606469,1000012926
20.11.2023,Children and Adults,AGINCARE (SOUTHWARK) LIMITED,"8,485.71",DISCHARGE TO ACCESS,NURSING PLACEMENTS FEES,2103786853,1000089635
20.11.2023,Children and Adults,L & Q LIVING,"8,485.00",LD LTS 18-64,SUPPORTED LIVING,2103787195,1000057917
10.11.2023,Children and Adults,LITTLE ANGELS DAY NURSERY & CHILDCARE SERVICES LTD,"8,483.48",NURSERY ED GRANT 3 AND 4 YR OLDS,GRANTS,2103781228,1000058464
30.11.2023,Housing,VIGILANT SECURITY SERVICES UK,"8,467.20",JOE RICHARDS HOSTEL,SECURITY SERVICES,5902610824,1000090073
20.11.2023,Children and Adults,GARLAND LODGE LTD,"8,444.80",LD LTS 18-64,SUPPORTED LIVING,2103787422,1000084016
20.11.2023,Children and Adults,OPTIMA CARE (SHINE) LONDON LTD,"8,433.00",LD LTS 18-64,SUPPORTED LIVING,2103787417,1000079614
30.11.2023,Children and Adults,THE COMPLETE WORKS INDEPENDENT SCHOOL,"8,379.30",INDEP MAINSTREAM,STATEMENTED FEES,2103792450,1000033256
30.11.2023,Children and Adults,THE COMPLETE WORKS INDEPENDENT SCHOOL,"8,379.30",INDEP MAINSTREAM,STATEMENTED FEES,2103792451,1000033256
30.11.2023,Children and Adults,THE COMPLETE WORKS INDEPENDENT SCHOOL,"8,379.30",INDEP MAINSTREAM,STATEMENTED FEES,2103792452,1000033256
30.11.2023,Children and Adults,THE COMPLETE WORKS INDEPENDENT SCHOOL,"8,379.30",INDEP MAINSTREAM,STATEMENTED FEES,2103792454,1000033256
30.11.2023,Children and Adults,THE COMPLETE WORKS INDEPENDENT SCHOOL,"8,379.30",INDEP MAINSTREAM,STATEMENTED FEES,2103792455,1000033256
30.11.2023,Children and Adults,THE COMPLETE WORKS INDEPENDENT SCHOOL,"8,379.30",INDEP MAINSTREAM,STATEMENTED FEES,2103792456,1000033256
30.11.2023,Children and Adults,THE COMPLETE WORKS INDEPENDENT SCHOOL,"8,379.30",INDEP MAINSTREAM,STATEMENTED FEES,2103792457,1000033256
30.11.2023,Children and Adults,THE COMPLETE WORKS INDEPENDENT SCHOOL,"8,379.30",INDEP MAINSTREAM,STATEMENTED FEES,2103792458,1000033256
30.11.2023,Children and Adults,THE COMPLETE WORKS INDEPENDENT SCHOOL,"8,379.30",INDEP MAINSTREAM,STATEMENTED FEES,2103792459,1000033256
30.11.2023,Children and Adults,THE COMPLETE WORKS INDEPENDENT SCHOOL,"8,379.30",INDEP MAINSTREAM,STATEMENTED FEES,2103792460,1000033256
30.11.2023,Children and Adults,THE COMPLETE WORKS INDEPENDENT SCHOOL,"8,379.30",INDEP MAINSTREAM,STATEMENTED FEES,2103792461,1000033256
30.11.2023,Children and Adults,THE COMPLETE WORKS INDEPENDENT SCHOOL,"8,379.30",INDEP MAINSTREAM,STATEMENTED FEES,2103792463,1000033256
30.11.2023,Children and Adults,THE COMPLETE WORKS INDEPENDENT SCHOOL,"8,379.30",INDEP MAINSTREAM,STATEMENTED FEES,2103792464,1000033256
30.11.2023,Children and Adults,THE COMPLETE WORKS INDEPENDENT SCHOOL,"8,379.30",INDEP MAINSTREAM,STATEMENTED FEES,2103792465,1000033256
30.11.2023,Children and Adults,THE COMPLETE WORKS INDEPENDENT SCHOOL,"8,379.30",INDEP MAINSTREAM,STATEMENTED FEES,2103792466,1000033256
30.11.2023,Children and Adults,THE COMPLETE WORKS INDEPENDENT SCHOOL,"8,379.30",INDEP MAINSTREAM,STATEMENTED FEES,2103792471,1000033256
30.11.2023,Children and Adults,THE COMPLETE WORKS INDEPENDENT SCHOOL,"8,379.30",INDEP MAINSTREAM,STATEMENTED FEES,2103792472,1000033256
30.11.2023,Children and Adults,THE COMPLETE WORKS INDEPENDENT SCHOOL,"8,379.30",INDEP MAINSTREAM,STATEMENTED FEES,2103792473,1000033256
30.11.2023,Children and Adults,THE COMPLETE WORKS INDEPENDENT SCHOOL,"8,379.30",INDEP MAINSTREAM,STATEMENTED FEES,2103792475,1000033256
30.11.2023,Children and Adults,THE COMPLETE WORKS INDEPENDENT SCHOOL,"8,379.30",INDEP MAINSTREAM,STATEMENTED FEES,2103792476,1000033256
30.11.2023,Children and Adults,THE COMPLETE WORKS INDEPENDENT SCHOOL,"8,379.30",INDEP MAINSTREAM,STATEMENTED FEES,2103792477,1000033256
30.11.2023,Children and Adults,THE COMPLETE WORKS INDEPENDENT SCHOOL,"8,379.30",INDEP MAINSTREAM,STATEMENTED FEES,2103792478,1000033256
30.11.2023,Children and Adults,THE COMPLETE WORKS INDEPENDENT SCHOOL,"8,379.30",INDEP MAINSTREAM,STATEMENTED FEES,2103792479,1000033256
30.11.2023,Children and Adults,THE COMPLETE WORKS INDEPENDENT SCHOOL,"8,379.30",INDEP MAINSTREAM,STATEMENTED FEES,2103792480,1000033256
30.11.2023,Children and Adults,THE COMPLETE WORKS INDEPENDENT SCHOOL,"8,379.30",INDEP MAINSTREAM,STATEMENTED FEES,2103792481,1000033256
30.11.2023,Children and Adults,THE COMPLETE WORKS INDEPENDENT SCHOOL,"8,379.30",INDEP MAINSTREAM,STATEMENTED FEES,2103792482,1000033256
30.11.2023,Children and Adults,THE COMPLETE WORKS INDEPENDENT SCHOOL,"8,379.30",INDEP MAINSTREAM,STATEMENTED FEES,2103792484,1000033256
30.11.2023,Children and Adults,THE COMPLETE WORKS INDEPENDENT SCHOOL,"8,379.30",INDEP MAINSTREAM,STATEMENTED FEES,2103792485,1000033256
30.11.2023,Children and Adults,THE COMPLETE WORKS INDEPENDENT SCHOOL,"8,379.30",INDEP MAINSTREAM,STATEMENTED FEES,2103792486,1000033256
30.11.2023,Children and Adults,THE COMPLETE WORKS INDEPENDENT SCHOOL,"8,379.30",INDEP MAINSTREAM,STATEMENTED FEES,2103792487,1000033256
20.11.2023,Children and Adults,SAFFRONLAND HOMES (MINEHEAD),"8,377.68",LD LTS 18-64,RESIDENTIAL CARE,2103787268,1000072152
27.11.2023,Environment Neighbourhoods and Growth,RS REAL ESTATE LTD,"8,370.00",NO RECOURSE TO PUBLIC FUNDS,ACCOMMODATION CHARGES,5902610350,1000072485
10.11.2023,Children and Adults,GRANGE PRIMARY SCHOOL,"8,364.00",NURSERY ED GRANT 3 AND 4 YR OLDS,EARLY YEARS - 3 AND 4 YEAR OLDS,5902607660,5001000029
25.11.2023,Housing,C&C BUILDERS LTD,"8,358.71",CAPITAL PS (HOUSING GF),CAPITAL GRANTS,2103788826,3000001986
20.11.2023,Children and Adults,SAFFRONLAND HOMES (MINEHEAD),"8,352.12",LD LTS 18-64,RESIDENTIAL CARE,2103787407,1000072152
22.11.2023,Finance,DORO CARE (UK) LTD,"8,340.00",LAMBETH RESPONSE,EQUIPMENT PURCHASE & REPAIR,5902609815,1000078915
14.11.2023,Housing,NPOWER LTD,"8,337.35",RESIDENT SERVICES BUSINESS SUPPORT,ELECTRICITY,2103782980,1000078994
23.11.2023,DSO,ARMINA LTD,"8,337.23",WALWORTH DD,OTHER CONTRACTORS,2103788574,3000002121
21.11.2023,Corporate,DULWICH VILLAGE CE INFANTS SCHOOL,"8,332.43",EDUCATION VAT INPUTS,VAT CONTROL ACCOUNT,2103788057,5001000027
20.11.2023,Children and Adults,AGINCARE (SOUTHWARK) LIMITED,"8,328.57",DISCHARGE TO ACCESS,RESIDENTIAL CARE,2103787018,1000089635
03.11.2023,Children and Adults,LORDGRACE DELIGHT HEALTHCARE LIMITED,"8,324.26",SEMI-IND LAC 16-17,EXTERNAL AGENCIES AND BODIES,2103779256,1000089935
20.11.2023,Children and Adults,KARE HEALTHCARE LTD,"8,320.00",PHY LTS 65+,SUPPORTED LIVING,2103786829,1000089212
29.11.2023,Children and Adults,PARENT AND CHILD FOSTERING ASSESSMENTS,"8,300.00",FRIENDS & FAMILY FOSTERING,EXTERNAL AGENCIES AND BODIES,2103790038,1000078962
16.11.2023,Children and Adults,CHARLES DICKENS PRIMARY SCHOOL,"8,296.68",AC & FREE - MSTREAM,STATEMENTED FEES,2103784702,1000085158
16.11.2023,Children and Adults,CHARTER SCHOOLS EDUCATIONAL TRUST T/A LYNDHURST PRIMARY SCHOOL,"8,296.67",AC & FREE - MSTREAM,STATEMENTED FEES,2103784742,1000086766
16.11.2023,Children and Adults,CHARTER SCHOOLS EDUCATIONAL TRUST T/A LYNDHURST PRIMARY SCHOOL,"8,296.67",AC & FREE - MSTREAM,STATEMENTED FEES,2103784749,1000086766
16.11.2023,Children and Adults,CHARTER SCHOOLS EDUCATIONAL TRUST T/A LYNDHURST PRIMARY SCHOOL,"8,296.67",AC & FREE - MSTREAM,STATEMENTED FEES,2103784750,1000086766
16.11.2023,Children and Adults,CHARTER SCHOOLS EDUCATIONAL TRUST T/A LYNDHURST PRIMARY SCHOOL,"8,296.67",AC & FREE - MSTREAM,STATEMENTED FEES,2103784752,1000086766
20.11.2023,Suspense,BEW ELECTRICAL DISTRIBUTORS LTD,"8,291.50",SUSPENSE ACCOUNT (COMPANY CODE 1000),CREDITORS -GR/IR CLEARING ACCOUNT,5902609282,1000045371
30.11.2023,Governance and Assurance,CASTLE WATER LTD,"8,283.50",160 TOOLEY ST.,WATER,5902611022,1000078867
15.11.2023,Suspense,LONDON TOOLS LIMITED,"8,280.00",SUSPENSE ACCOUNT (COMPANY CODE 1000),CREDITORS -GR/IR CLEARING ACCOUNT,5902608683,1000003017
20.11.2023,Children and Adults,ASHMEAD HEALTHCARE LTD,"8,278.24",LD LTS 18-64,RESIDENTIAL CARE,2103787589,1000077917
06.11.2023,Environment Neighbourhoods and Growth,WHITELEYS OFFICE SUPPLIES LTD,"8,260.00",CAPITAL PS (REGEN),CONSTRUCTION MAIN CONTRACT,5902606646,1000083121
21.11.2023,Children and Adults,PETER HILLS CE SCHOOL,"8,254.00",TEACHERS PAY GRANT,SCHOOLS CAPITATION,2103787980,5001000053
21.11.2023,Corporate,ALBION PRIMARY SCHOOL,"8,243.94",EDUCATION VAT INPUTS,VAT CONTROL ACCOUNT,2103788096,5001000000
29.11.2023,Children and Adults,NEXUS FOSTERING,"8,242.20",FRIENDS & FAMILY FOSTERING,EXTERNAL AGENCIES AND BODIES,2103790079,1000069682
20.11.2023,Children and Adults,GLENPAT HOMES,"8,239.12",LD LTS 18-64,RESIDENTIAL CARE,2103787572,1000059312
14.11.2023,DSO,SER CONTRACTOR LTD,"8,201.86",SR COMMUNAL - DELIVERY TEAM,OTHER CONTRACTORS,2103783171,3000002234
20.11.2023,Children and Adults,ALWAYS INCLUSIVE LTD,"8,199.36",LD LTS 18-64,SUPPORTED LIVING,2103786557,1000088268
21.11.2023,Children and Adults,ST MARY MAGDALENE CE SCHOOL,"8,199.00",TEACHERS PAY GRANT,SCHOOLS CAPITATION,2103787979,5001000080
05.11.2023,Housing,CALFORD SEADEN LLP,"8,197.74",CAPITAL PS (HRA),CONSTRUCTION FEES  - EXTERNAL,5902606280,1061592
20.11.2023,Children and Adults,GREEN CARE AND SUPPORT LIMITED,"8,195.20",LD LTS 18-64,SUPPORTED LIVING,2103787465,1000087661
20.11.2023,Children and Adults,CHOICE SUPPORT,"8,168.84",LD LTS 18-64,SUPPORTED LIVING,2103787660,1104183
27.11.2023,Children and Adults,COHESION CONSULTING LTD,"8,167.00",PUBLIC HEALTH FHSM,EXTERNAL AGENCIES AND BODIES,5902610331,1000089725
21.11.2023,Children and Adults,VICTORY SCHOOL,"8,163.00",TEACHERS PAY GRANT,SCHOOLS CAPITATION,2103787960,5001000098
20.11.2023,Children and Adults,BEECHCROFT SUPPORT LIMITED,"8,161.36",LD LTS 18-64,SUPPORTED LIVING,2103786555,1000085412
15.11.2023,Housing,DURKAN LTD,"8,154.94",CAPITAL PS (HRA),CONSTRUCTION FEES  - EXTERNAL,2103784535,3000000960
21.11.2023,Children and Adults,ST JOSEPHS CATHOLIC INFANTS SCHOOL,"8,149.00",TEACHERS PAY GRANT,SCHOOLS CAPITATION,2103787988,5001000018
28.11.2023,Children and Adults,REDACTED PERSONAL DATA,"8,128.00",AP & HOSPITAL SCHLS,STATEMENTED FEES,2103789513,1000090432
20.11.2023,Children and Adults,CHOICE CARE GROUP,"8,118.80",LD LTS 18-64,RESIDENTIAL CARE,2103787265,1572506
10.11.2023,Children and Adults,ENGLISH MARTYRS RC PRIMARY SCHOOL,"8,114.00",NURSERY ED GRANT 3 AND 4 YR OLDS,EARLY YEARS - 3 AND 4 YEAR OLDS,5902607664,5001000030
13.11.2023,Housing,THEORI HOUSING MANAGEMENT SERVICES,"8,076.74",NIGHTLY TA (NSC),EXTERNAL AGENCIES AND BODIES,5902608072,1000079264
02.11.2023,Children and Adults,CTY NURSERY LTD,"8,064.07",NURSERY ED GRANT 3 AND 4 YR OLDS,GRANTS,2103778230,1000063131
20.11.2023,Children and Adults,ALWAYS INCLUSIVE LTD,"8,064.00",LD LTS 18-64,SUPPORTED LIVING,2103787082,1000088268
06.11.2023,Environment Neighbourhoods and Growth,CONSTELLIA PUBLIC LIMITED,"8,060.48",CAMBERWELL LEISURE CENTRE,PREMISES CLEANING,5902606740,1000088137
06.11.2023,Environment Neighbourhoods and Growth,CONSTELLIA PUBLIC LIMITED,"8,060.48",CAMBERWELL LEISURE CENTRE,PREMISES CLEANING,5902606741,1000088137
06.11.2023,Environment Neighbourhoods and Growth,CONSTELLIA PUBLIC LIMITED,"8,060.48",CAMBERWELL LEISURE CENTRE,PREMISES CLEANING,5902606742,1000088137
10.11.2023,Children and Adults,ST JOHNS RC PRIMARY SCHOOL,"8,047.00",NURSERY ED GRANT 3 AND 4 YR OLDS,EARLY YEARS - 3 AND 4 YEAR OLDS,5902607782,5001000075
27.11.2023,Housing,OLIVER LANDON LTD,"8,029.00",NIGHTLY TA (NSC),EXTERNAL AGENCIES AND BODIES,5902610323,1000082788
16.11.2023,Housing,SHARPE PRITCHARD LLP,"8,023.50",CAPITAL PS (HRA),CONSTRUCTION FEES - LEGAL,5902609009,1790085
20.11.2023,Children and Adults,LEONARD CHESHIRE (THICKET ROAD),"8,004.84",LD LTS 18-64,RESIDENTIAL CARE,2103786947,1000049761
20.11.2023,Children and Adults,THE LONDON CARE GROUP,"8,000.00",LD LTS 18-64,SUPPORTED LIVING,2103787010,1000090111
20.11.2023,Children and Adults,HILLS & HEIGHTS SURREY LIMITED,"8,000.00",PHY LTS 65+,NURSING PLACEMENTS FEES,2103787129,1000085188
04.11.2023,Finance,GRANT THORNTON UK LLP,"8,000.00",EXTERNAL AUDIT GRANT FEES,PROFESSIONAL FEES,5902606132,1000058344
15.11.2023,Housing,BCS (ELECTRICAL & BUILDING SERVICES LTD),"8,000.00",PAYMENTS CONTROL ACCOUNT - SPOKEMEAD,I-WORLD CONTRACTORS HOLDING ACCOUNT,5902608621,1000062321
29.11.2023,Governance and Assurance,OT GROUP LIMITED,"7,972.52",160 TOOLEY ST.,STATIONERY,5902610706,1000087285
20.11.2023,Children and Adults,HIGH VIEW CARE SERVICES LTD,"7,957.88",MEM LTS 18-64,NURSING PLACEMENTS FEES,2103787650,1000053562
21.11.2023,Children and Adults,BESSEMER GRANGE PRIMARY SCHOOL,"7,956.00",NURSERY ED GRANT 2YR OLDS,EARLY YEARS - 2 YEAR OLD,2103787917,5001000009
27.11.2023,Children and Adults,STANDAGE & CO LTD,"7,949.29",CAPITAL PS (SOC SERV),CONSTRUCTION MAIN CONTRACT -CERTIFICATED,2103789121,4002817
17.11.2023,Housing,EDF ENERGY PLC,"7,948.35",MANOR PLACE HOSTEL,ELECTRICITY,5902608810,1008746
22.11.2023,Environment Neighbourhoods and Growth,STUDIO DANMOLE LIMITED,"7,946.00",CAPITAL PS (REGEN),CONSTRUCTION FEES  - EXTERNAL,5902609905,1000090235
20.11.2023,Children and Adults,REESON CARE HOMES LTD,"7,931.04",LD LTS 18-64,SUPPORTED LIVING,2103787683,1000084007
07.11.2023,Children and Adults,NURTURE FOSTERING LTD,"7,927.14",FRIENDS & FAMILY FOSTERING,EXTERNAL AGENCIES AND BODIES,2103780299,1000088623
03.11.2023,Environment Neighbourhoods and Growth,BLUE ELEPHANT THEATRE LTD,"7,922.00",ARTS GRANTS,GRANTS,5902606107,1000015417
17.11.2023,Children and Adults,PEOPLE PLUS GROUP LTD (INDEPENDENT LIVING SERVICES),"7,903.51",LD LTS 18-64,DISCRETIONARY FLEXIBLE FEES & INCOME,2103785993,1000061886
27.11.2023,Children and Adults,BROADLANDS HALL LIMITED,"7,900.00",DISABILITIES LAC,RESIDENTIAL CARE,2103789116,1000084303
27.11.2023,Children and Adults,BROADLANDS HALL LIMITED,"7,900.00",DISABILITIES LAC,RESIDENTIAL CARE,2103789118,1000084303
20.11.2023,Children and Adults,VOYAGE LTD (EVESLEIGH KENT),"7,859.88",PHY LTS 18-64,RESIDENTIAL CARE,2103787357,1000041320
16.11.2023,Children and Adults,CHARTER SCHOOLS EDUCATIONAL TRUST T/A LYNDHURST PRIMARY SCHOOL,"7,857.50",AC & FREE - MSTREAM,STATEMENTED FEES,2103784735,1000086766
20.11.2023,Children and Adults,CHOICE SUPPORT,"7,818.80",LD LTS 18-64,SUPPORTED LIVING,2103786882,1104183
20.11.2023,Children and Adults,DISABILITIES TRUST,"7,815.40",PHY LTS 18-64,NURSING PLACEMENTS FEES,2103786898,1000043358
29.11.2023,Housing,CALFORD SEADEN LLP,"7,790.95",ILDERTON ROAD,BUILDING R&M,5902610765,1061592
20.11.2023,Children and Adults,SUNRISE REHABILITATION CENTRE,"7,789.60",LD LTS 18-64,SUPPORTED LIVING,2103786767,1000086998
20.11.2023,Environment Neighbourhoods and Growth,CONSTELLIA PUBLIC LIMITED,"7,780.48",CAMBERWELL LEISURE CENTRE,PREMISES CLEANING,5902608825,1000088137
16.11.2023,Children and Adults,EVERYONE HEALTH LTD,"7,777.00",HEALTHY WEIGHT,EXTERNAL AGENCIES AND BODIES,5902608969,1000084159
02.11.2023,Children and Adults,HATCHING DRAGONS SOUTHWARK LTD,"7,773.83",NURSERY ED GRANT 3 AND 4 YR OLDS,GRANTS,2103778245,1000087180
03.11.2023,Housing,A & E ELKINS LTD,"7,743.19",CAPITAL PS (HRA),CONSTRUCTION MAIN CONTRACT -CERTIFICATED,2103779342,4012501
21.11.2023,Corporate,BESSEMER GRANGE PRIMARY SCHOOL,"7,734.82",EDUCATION VAT INPUTS,VAT CONTROL ACCOUNT,2103788012,5001000009
10.11.2023,Housing,MARTIN ARNOLD LTD,"7,729.30",CAPITAL PS (HRA),CONSTRUCTION FEES  - EXTERNAL,5902607838,1000076993
14.11.2023,Environment Neighbourhoods and Growth,WATERMAN INFRASTRUCTURE & ENVIRONMENT LTD,"7,726.05",FLOOD RISK MANAGEMENT,HIGHWAYS TERM CONTRACT,5902608534,1000060529
20.11.2023,Children and Adults,PLUS SERVICES,"7,721.60",LD LTS 18-64,RESIDENTIAL CARE,2103787659,1000021241
20.11.2023,Children and Adults,VOYAGE CARE (MOUNTEARL),"7,713.64",LD LTS 18-64,RESIDENTIAL CARE,2103787506,1000078173
07.11.2023,Environment Neighbourhoods and Growth,QUADRON SERVICES LIMITED,"7,710.00",DULWICH AREA TEAM,OTHER R&M,5902606847,1000066528
15.11.2023,Housing,ANGELUS LAW  SOLICITORS LTD,"7,708.33",DISREPAIR,PAYMENTS FOR LEGAL SERVICES,2103784347,1000085731
13.11.2023,Finance,KEYSTREAM GROUP LIMITED,"7,700.00",IT MANAGEMENT,CONSULTANTS SERVICES,5902608015,1000089467
20.11.2023,Children and Adults,BRANDON TRUST,"7,694.72",LD LTS 18-64,SUPPORTED LIVING,2103787049,1000042417
20.11.2023,Children and Adults,CHOICE SUPPORT,"7,685.84",LD LTS 18-64,SUPPORTED LIVING,2103787068,1104183
10.11.2023,Children and Adults,SNOWSFIELDS PRIMARY SCHOOL,"7,667.00",LBS RB / SEN UNIT,HIGH NEEDS - BASE FUNDING,5902607745,5001000061
20.11.2023,Children and Adults,ACHIEVE TOGETHER SERVICES LIMITED,"7,666.12",LD LTS 18-64,SUPPORTED LIVING,2103787483,1000089975
08.11.2023,Environment Neighbourhoods and Growth,PROJECT CENTRE LTD,"7,665.00",TRANSPORT PROJECTS,OTHER CONTRACTORS,5902607155,1000072621
20.11.2023,Children and Adults,ACHIEVE TOGETHER SERVICES LIMITED,"7,662.68",LD LTS 18-64,RESIDENTIAL CARE,2103787222,1000089975
30.11.2023,Children and Adults,HOUSING 21,"7,661.78",EXTRA CARE CONTRACT,FURNITURE PURCHASE & REPAIR,5902610550,1000037120
13.11.2023,DSO,RTS WASTE MANAGEMENT LTD,"7,652.38",VOIDS OVERHEADS,WASTE DISPOSAL CONTRACT,5902608209,1000061248
21.11.2023,Children and Adults,DULWICH WOOD CHILDRENS CENTRE,"7,643.60",DULWICH WOOD NURSERY SCHOOL,EARLY YEARS - 3 AND 4 YEAR OLDS,2103787919,5001000099
26.11.2023,Governance and Assurance,KENT COUNTY COUNCIL - LASER,"7,630.18",160 TOOLEY ST.,GAS,5902609880,1000012926
20.11.2023,Children and Adults,RESIDENTIAL CARE SERVICES LTD,"7,628.20",LD LTS 18-64,SUPPORTED LIVING,2103786976,1000082629
30.11.2023,Children and Adults,CEDAR HOUSE DAY NURSERY,"7,620.60",NURSERY ED GRANT 3 AND 4 YR OLDS,GRANTS,2103792023,11298694
08.11.2023,Environment Neighbourhoods and Growth,ZFA ACCOMMODATION LTD,"7,595.00",UKRAINIAN REFUGEES,ACCOMMODATION CHARGES,5902607190,1000082620
21.11.2023,Children and Adults,SOUTHWARK PARK PRIMARY SCHOOL,"7,593.30",NURSERY ED GRANT 3 AND 4 YR OLDS,EARLY YEARS - 3 AND 4 YEAR OLDS,2103787930,5001000062
10.11.2023,Children and Adults,HEBER PRIMARY SCHOOL,"7,583.00",LBS MAINSTREAM,HIGH NEEDS - TOP UP FUNDING,5902607680,5001000035
20.11.2023,Children and Adults,BRANDON TRUST,"7,564.52",LD LTS 18-64,SUPPORTED LIVING,2103786783,1000042417
20.11.2023,Children and Adults,BRANDON TRUST,"7,564.52",LD LTS 18-64,SUPPORTED LIVING,2103786916,1000042417
20.11.2023,Children and Adults,BRANDON TRUST,"7,564.52",LD LTS 18-64,SUPPORTED LIVING,2103787220,1000042417
20.11.2023,Children and Adults,COUNTRY COURT CARE HOMES 2 LTD,"7,563.24",PHY LTS 65+,NURSING PLACEMENTS FEES,2103786610,1000080172
20.11.2023,Children and Adults,COUNTRY COURT CARE HOMES 2 LTD,"7,563.24",PHY LTS 65+,NURSING PLACEMENTS FEES,2103786887,1000080172
20.11.2023,Children and Adults,CHOICE SUPPORT,"7,551.88",LD LTS 18-64,SUPPORTED LIVING,2103787476,1104183
20.11.2023,Children and Adults,GARLAND LODGE LTD,"7,546.24",LD LTS 18-64,SUPPORTED LIVING,2103786978,1000084016
21.11.2023,Children and Adults,KEYRING-LIVING SUPPORT NETWORKS LTD,"7,544.75",LD LTS 18-64,EXTERNAL AGENCIES AND BODIES,5902609569,1486496
21.11.2023,Children and Adults,KEYRING-LIVING SUPPORT NETWORKS LTD,"7,544.75",LD LTS 18-64,EXTERNAL AGENCIES AND BODIES,5902609571,1486496
21.11.2023,Children and Adults,KEYRING-LIVING SUPPORT NETWORKS LTD,"7,544.75",LD LTS 18-64,EXTERNAL AGENCIES AND BODIES,5902609574,1486496
21.11.2023,Children and Adults,KEYRING-LIVING SUPPORT NETWORKS LTD,"7,544.75",LD LTS 18-64,EXTERNAL AGENCIES AND BODIES,5902609576,1486496
20.11.2023,Children and Adults,CHOICE SUPPORT,"7,535.60",LD LTS 65+,SUPPORTED LIVING,2103787348,1104183
07.11.2023,Environment Neighbourhoods and Growth,NATIONWIDE ACCOMMODATION,"7,533.00",NO RECOURSE TO PUBLIC FUNDS,ACCOMMODATION CHARGES,5902607102,1000076112
14.11.2023,Environment Neighbourhoods and Growth,NATIONWIDE ACCOMMODATION,"7,533.00",UKRAINIAN REFUGEES,ACCOMMODATION CHARGES,5902608504,1000076112
21.11.2023,Children and Adults,IVYDALE PRIMARY SCHOOL,"7,530.02",NURSERY ED GRANT 3 AND 4 YR OLDS,EARLY YEARS - 3 AND 4 YEAR OLDS,2103787928,5001000038
20.11.2023,Children and Adults,GREEN CARE AND SUPPORT LIMITED,"7,529.60",LD LTS 18-64,SUPPORTED LIVING,2103786768,1000087661
20.11.2023,Children and Adults,REDACTED PERSONAL DATA,"7,512.96",LD LTS 18-64,SUPPORTED LIVING,2103787286,1000088380
20.11.2023,Children and Adults,WELLSPRING CARE HOMES LIMITED,"7,508.00",LD LTS 18-64,SUPPORTED LIVING,2103787298,1000088216
03.11.2023,Environment Neighbourhoods and Growth,YELLOW LINE PARKING LTD,"7,500.00",PROJECT SUPPORT,SOFTWARE,5902606556,1000083708
10.11.2023,Children and Adults,ST JOHNS & ST CLEMENTS CE SCHOOL,"7,500.00",LBS RB / SEN UNIT,HIGH NEEDS - TOP UP FUNDING,5902607777,5001000073
10.11.2023,Children and Adults,TOWER BRIDGE PRIMARY SCHOOL,"7,500.00",LBS MAINSTREAM,HIGH NEEDS - TOP UP FUNDING,5902607816,5001000095
14.11.2023,Environment Neighbourhoods and Growth,BETHWIN ROAD ADVENTURE PLAYGROUND,"7,500.00",GRANTS COMMISSIONING,GRANTS,5902608542,1087842
15.11.2023,Environment Neighbourhoods and Growth,BETHWIN ROAD ADVENTURE PLAYGROUND,"7,500.00",GRANTS COMMISSIONING,GRANTS,5902608619,1087842
15.11.2023,Environment Neighbourhoods and Growth,BETHWIN ROAD ADVENTURE PLAYGROUND,"7,500.00",GRANTS COMMISSIONING,GRANTS,5902608622,1087842
17.11.2023,Environment Neighbourhoods and Growth,INSPIRE WALWORTH LTD,"7,500.00",GRANTS COMMISSIONING,GRANTS,5902608903,1000041565
25.11.2023,Environment Neighbourhoods and Growth,WESTMINSTER HOUSE YOUTH CLUB,"7,500.00",GRANTS COMMISSIONING,GRANTS,5902609340,11088645
24.11.2023,Environment Neighbourhoods and Growth,SKYWAY,"7,500.00",GRANTS COMMISSIONING,GRANTS,5902609342,1000069595
21.11.2023,Children and Adults,SHAW TRUST LTD,"7,500.00",ASW - PROFESSIONAL DEVELOPMENT,TRAINING,5902609533,1000072513
24.11.2023,Finance,GRANT THORNTON UK LLP,"7,500.00",EXTERNAL AUDIT CORE FEES,PROFESSIONAL FEES,5902610183,1000058344
02.11.2023,Children and Adults,GERMAN KINDERGARTEN LTD,"7,497.75",NURSERY ED GRANT 3 AND 4 YR OLDS,GRANTS,2103778242,1000058090
15.11.2023,Children and Adults,MINI TREASURES NURSERY,"7,493.00",NURSERY ED GRANT 3 AND 4 YR OLDS,GRANTS,2103784423,1000062250
21.11.2023,Corporate,ST JAMES THE GREAT RC SCHOOL,"7,491.86",EDUCATION VAT INPUTS,VAT CONTROL ACCOUNT,2103788043,5001000071
30.11.2023,Children and Adults,THE PARK COLLEGE,"7,488.71",SPECIALIST POST-16,STATEMENTED FEES,2103792560,1000088955
20.11.2023,Children and Adults,BEECHCROFT SUPPORT LIMITED,"7,475.52",LD LTS 18-64,SUPPORTED LIVING,2103786554,1000085412
27.11.2023,Environment Neighbourhoods and Growth,BARCHAM TREES PLC,"7,474.00",CAPITAL PS (LEISURE),CONSTRUCTION FEES,5902610284,11254891
16.11.2023,Children and Adults,CHARTER SCHOOLS EDUCATIONAL TRUST T/A LYNDHURST PRIMARY SCHOOL,"7,473.34",AC & FREE - MSTREAM,STATEMENTED FEES,2103784743,1000086766
03.11.2023,Children and Adults,CHILDHOOD FIRST,"7,472.00",CHILDREN�S RESID,RESIDENTIAL CARE,2103779271,1000076330
20.11.2023,Children and Adults,LONDON CYRENIANS HOUSING LTD,"7,470.12",LD LTS 18-64,SUPPORTED LIVING,2103787193,1000078600
16.11.2023,Finance,NEC SOFTWARE SOLUTIONS UK LTD,"7,468.00",ADMINISTRATIVE SUPPORT,SOFTWARE,5902608103,1000087043
21.11.2023,Corporate,RIVERSIDE PRIMARY SCHOOL,"7,461.15",EDUCATION VAT INPUTS,VAT CONTROL ACCOUNT,2103788080,5001000056
20.11.2023,Children and Adults,ALWAYS INCLUSIVE LTD,"7,450.56",LD LTS 18-64,SUPPORTED LIVING,2103787282,1000088268
30.11.2023,Environment Neighbourhoods and Growth,KNOX BHAVAN ARCHITECTS LLP,"7,446.38",CAPITAL PS (REGEN),CONSTRUCTION FEES - ARCHITECT,5902610942,1000088675
15.11.2023,Children and Adults,ROCKINGHAM COMMUNITY DAY NURSERY,"7,446.00",NURSERY ED GRANT 3 AND 4 YR OLDS,GRANTS,2103784435,1095826
14.11.2023,Environment Neighbourhoods and Growth,METIS CONSULTANTS LIMITED,"7,442.00",CAPITAL PS (LEISURE),CAPITAL GRANTS,5902608429,1000086330
22.11.2023,Housing,BRIDGEWATER ROOFING CONTRACTORS LTD,"7,440.50",MAJOR REPAIRS,BUILDING R&M,2103788103,3000001482
30.11.2023,Housing,VIGILANT SECURITY SERVICES UK,"7,439.76",MANOR PLACE HOSTEL,SECURITY SERVICES,5902610878,1000090073
20.11.2023,Children and Adults,LONDON CYRENIANS HOUSING LTD,"7,427.20",LD LTS 18-64,SUPPORTED LIVING,2103786597,1000078600
02.11.2023,Children and Adults,VICTORY IN COMMUNITY RESOURCE CENTRE,"7,419.75",NURSERY ED GRANT 3 AND 4 YR OLDS,GRANTS,2103778297,1000058383
10.11.2023,Children and Adults,GRANGE PRIMARY SCHOOL,"7,417.00",LBS MAINSTREAM,HIGH NEEDS - TOP UP FUNDING,5902607663,5001000029
29.11.2023,Children and Adults,SYNERGY FOSTERING LTD,"7,410.00",FRIENDS & FAMILY FOSTERING,EXTERNAL AGENCIES AND BODIES,2103790046,1000031559
20.11.2023,Children and Adults,HIGH VIEW CARE SERVICES LTD,"7,398.72",MH LTS 18-64,RESIDENTIAL CARE,2103787269,1000065920
20.11.2023,Children and Adults,CHOICE SUPPORT,"7,395.32",LD LTS 18-64,RESIDENTIAL CARE,2103787271,1104183
08.11.2023,Children and Adults,ST SAVIOURS & ST OLAVES SCHOOL,"7,392.67",YPLA SCHL SIXTH FORM,SCHOOLS CAPITATION,2103780907,5001000084
02.11.2023,Children and Adults,ARC COMMUNITY TRUSTEES,"7,357.80",NURSERY ED GRANT 3 AND 4 YR OLDS,GRANTS,2103778213,1000046206
18.11.2023,Suspense,LONDON TOOLS LIMITED,"7,350.00",SUSPENSE ACCOUNT (COMPANY CODE 1000),CREDITORS -GR/IR CLEARING ACCOUNT,5902609134,1000003017
20.11.2023,Children and Adults,BURGESS AUTISTIC TRUST,"7,349.48",LD LTS 18-64,SUPPORTED LIVING,2103787419,1000044550
20.11.2023,Children and Adults,COUNTRY COURT CARE HOMES 2 LTD,"7,346.91",DISCHARGE TO ACCESS,NURSING PLACEMENTS FEES,2103786663,1000080172
21.11.2023,Corporate,BEORMUND PRIMARY SCHOOL,"7,342.97",EDUCATION VAT INPUTS,VAT CONTROL ACCOUNT,2103788064,5001000008
10.11.2023,Children and Adults,BRUNSWICK PARK PRIMARY SCHOOL,"7,333.00",LBS RB / SEN UNIT,HIGH NEEDS - BASE FUNDING,5902607622,5001000013
10.11.2023,Children and Adults,BRUNSWICK PARK PRIMARY SCHOOL,"7,333.00",LBS MAINSTREAM,HIGH NEEDS - TOP UP FUNDING,5902607625,5001000013
10.11.2023,Children and Adults,ST JAMES THE GREAT RC SCHOOL,"7,333.00",LBS MAINSTREAM,HIGH NEEDS - TOP UP FUNDING,5902607774,5001000071
16.11.2023,Environment Neighbourhoods and Growth,BERMONDSEY PROJECT SPACE,"7,333.00",BUSINESS SUPPORT,GRANTS,5902608882,1000088331
09.11.2023,Children and Adults,OWNLIFE RESIDENTIAL LTD,"7,328.57",CHILDREN�S RESID,RESIDENTIAL CARE,2103781049,1000085398
20.11.2023,Children and Adults,LONDON RESIDENTIAL HEALTHCARE LTD,"7,321.43",PHY LTS 65+,NURSING PLACEMENTS FEES,2103786606,1000030895
14.11.2023,Children and Adults,KAIROS COMMUNITY TRUST,"7,320.00",SUB LTS 18-64,RESIDENTIAL CARE,2103783321,1000025479
21.11.2023,Corporate,COMBER GROVE PRIMARY SCHOOL,"7,312.82",EDUCATION VAT INPUTS,VAT CONTROL ACCOUNT,2103788035,5001000022
02.11.2023,Children and Adults,SMART KIDS DAY NURSERY LTD,"7,307.63",NURSERY ED GRANT 3 AND 4 YR OLDS,GRANTS,2103778281,1000074580
20.11.2023,Children and Adults,BRANDON TRUST,"7,299.92",LD LTS 18-64,SUPPORTED LIVING,2103787360,1000042417
14.11.2023,Environment Neighbourhoods and Growth,NATIONWIDE ACCOMMODATION,"7,290.00",UKRAINIAN REFUGEES,ACCOMMODATION CHARGES,5902608502,1000076112
15.11.2023,Children and Adults,SURREY SQUARE PRIMARY SCHOOL,"7,277.00",NURSERY ED GRANT 3 AND 4 YR OLDS,GRANTS,2103784450,1000082648
20.11.2023,Children and Adults,ALWAYS INCLUSIVE LTD,"7,250.88",LD LTS 18-64,SUPPORTED LIVING,2103786825,1000088268
10.11.2023,Children and Adults,BOUCHER C OF E PRIMARY SCHOOL,"7,250.00",LBS MAINSTREAM,HIGH NEEDS - TOP UP FUNDING,5902607619,5001000011
19.11.2023,Children and Adults,BLOOM PROCUREMENT SERVICES LTD,"7,250.00",CAPITAL PS (EDUCATION),CONSTRUCTION FEES  - EXTERNAL,5902608573,1000082531
20.11.2023,Children and Adults,AGINCARE (SOUTHWARK) LIMITED,"7,242.86",PHY LTS 65+,RESIDENTIAL CARE,2103786863,1000089635
20.11.2023,Children and Adults,SALISBURY SUPPORT 4 AUTISM LTD,"7,235.20",LD LTS 18-64,SUPPORTED LIVING,2103787618,1000082674
14.11.2023,Housing,NATIONWIDE ACCOMMODATION,"7,215.00",NIGHTLY TA (NSC),EXTERNAL AGENCIES AND BODIES,5902608499,1000076112
02.11.2023,Children and Adults,HIGHVIEW CARE LTD,"7,200.00",CHILDREN�S RESID,RESIDENTIAL CARE,2103779146,1000089728
08.11.2023,Children and Adults,ANGELS BREAKFAST AND AFTER SCHOOL CLUB,"7,200.00",HOLIDAY ACTIVITIES & FOOD,EXTERNAL AGENCIES AND BODIES,5902607293,1000087659
21.11.2023,Corporate,OLIVER GOLDSMITH PRIMARY SCHOOL,"7,189.00",EDUCATION VAT INPUTS,VAT CONTROL ACCOUNT,2103788059,5001000051
10.11.2023,Children and Adults,ENGLISH MARTYRS RC PRIMARY SCHOOL,"7,167.00",LBS MAINSTREAM,HIGH NEEDS - TOP UP FUNDING,5902607667,5001000030
11.11.2023,Suspense,CROSSFOLD ELECTRICAL WHOLESALERS,"7,160.90",SUSPENSE ACCOUNT (COMPANY CODE 1000),CREDITORS -GR/IR CLEARING ACCOUNT,5902607425,1918395
20.11.2023,Children and Adults,COUNTRY COURT CARE HOMES 2 LTD,"7,157.43",PHY LTS 65+,NURSING PLACEMENTS FEES,2103787447,1000080172
19.11.2023,Environment Neighbourhoods and Growth,UK CONTAINER MAINTENANCE LTD,"7,150.00",COMMERCIAL WASTE,EQUIPMENT PURCHASE & REPAIR,5902608990,1000081591
20.11.2023,Children and Adults,BRANDON TRUST,"7,141.32",LD LTS 18-64,SUPPORTED LIVING,2103786797,1000042417
20.11.2023,Children and Adults,BRANDON TRUST,"7,141.32",LD LTS 18-64,SUPPORTED LIVING,2103787490,1000042417
20.11.2023,Children and Adults,BRANDON TRUST,"7,141.32",LD LTS 18-64,SUPPORTED LIVING,2103787492,1000042417
20.11.2023,Children and Adults,ALWAYS INCLUSIVE LTD,"7,138.56",LD LTS 18-64,SUPPORTED LIVING,2103786827,1000088268
20.11.2023,Children and Adults,ALWAYS INCLUSIVE LTD,"7,138.56",LD LTS 18-64,SUPPORTED LIVING,2103787642,1000088268
